Workbook

Sheet SkillConfig
A1: ID | B1: PieceID | C1: power | D1: name | E1: dec | H1: attribute | I1: icon | J1: scriptName | K1: IDGroup | L1: timelineName | M1: cd | N1: addcd | O1: SkillType | P1: level | Q1: effectUpK | R1: effectValue | S1: intensifierIndex | T1: addPropertyType | U1: addPropertyValue | V1: PromoteLan | W1: PromoteLanPara | X1: PromoteLanPara
A2: int | B2: int | C2: float | D2: int | E2: int | H2: int | I2: string | J2: string | K2: int | L2: string | M2: float | N2: float | O2: int | P2: int | Q2: int | R2: float[] | S2: int[] | T2: int[] | U2: float[] | V2: int | W2: float[] | X2: float[]
AQ3: =SUMIFS(AQ5:AQ10095,$A5:$A10095,"<>"&"",$P5:$P10095,6) -> 210 | AR3: =SUMIFS(AR5:AR10095,$A5:$A10095,"<>"&"",$P5:$P10095,6) -> 236 | AS3: 202 | AT3: 10 | AU3: 10 | AV3: 20 | AW3: 20 | AX3: 10
A4: 技能ID IDGroup+技能等级 | B4: 对应的碎片ID | C4: 功法强度 基于标准强度的百分比 50=50% | D4: 名称语言表ID | E4: 描述语言表ID | F4: 技能名称 | G4: 技能效果 | H4: 技能属性 1=金 2=水 4=木 8=火 16=土 | I4: 图标 | J4: 脚本名称 | K4: 技能组 | L4: 技能的timeline表现，没得就不填，这个可以程序填 | M4: 功法：多少圈释放1次 法宝：CD多少秒 | N4: 功法上阵后，大道增加的CD 大道的默认CD | O4: 技能类型: 1=主动功法 2=被动功法 3=法宝技能 4=大道 | P4: 星级 | Q4: 效果升级的强化因子100=100% | R4: 效果值 | S4: 允许被加强的效果下表 | T4: 属性ID表内对应 101=生命百分比 102=攻击百分比 103=防御百分比 106~110=金木水火土灵根 | U4: 具体效果值 | V4: 升星简短描述 | W4: 升星简短描述参数 | X4: 哪边的法宝被影响 0=无 1=前方 -1=后方 | Y4: 数值1 | Z4: 数值2 | AA4: 数值3 | AB4: 数值4 | AC4: 数值5 | AD4: 数值6 | AE4: 数值7 | AF4: 升星描述 | AI4: 总威力 | AJ4: 段数 | AK4: 单段伤害 | AL4: buff占比 | AM4: 额外占比 | AN4: 恢复能力 | AO4: 恢复类型 0=攻击力 1=最大生命值 | AP4: 技能生效最大次数 | AQ4: 101 | AR4: 102 | AS4: 103 | AT4: 106 | AU4: 107 | AV4: 108 | AW4: 109 | AX4: 110 | AY4: 名称 | AZ4: 描述 | BA4: 升级描述
B5: 英雄-主动功法区域
A6: =K6*10+P6-1 -> 11010 | B6: 13001 | C6: =异常状态效果值!G23 -> 100 | D6: =A6+1000000 -> 1011010 | E6: =A6+1100000 -> 1111010 | F6: 太虚幻剑经 | G6: 身体周围幻化出{0}柄细剑，每柄细剑造成{1}%攻击力的伤害，并有{2}%的几率对敌人造成1层流血。 | H6: 1 | I6: =IF(A6="","",CONCATENATE("icon_s",K6)) -> icon_s1101 | J6: =CONCATENATE("S",K6) -> S1101 | K6: 1101 | L6: 1101_timeline_TD | M6: 1 | N6: 1 | O6: 1 | P6: 1 | Q6: 100 | R6: =_xlfn.TEXTJOIN(";",1,Y6:AE6) -> 4;30;100 | S6: 2 | T6: =_xlfn.TEXTJOIN(";",1,IF(AQ6="","",101),IF(AR6="","",102),IF(AS6="","",103),IF(AT6="","",106),IF(AU6="","",107),IF(AV6="","",108),IF(AW6="","",109),IF(AX6="","",110)) ->  | U6: =_xlfn.TEXTJOIN(";",1,AQ6:AX6) ->  | V6: -1 | Y6: 4 | Z6: =ROUND(异常状态效果值!G9*(1-AL6)/AJ6,0) -> 30 | AA6: 100 | AG6: =IF(F6="","",CONCATENATE(F6,"·",CHOOSE(P6,"壹","贰","叁","肆","伍","陆"))) -> 太虚幻剑经·壹 | AI6: =IF(A6="","",AJ6*AK6/(1-AL6-AM6)) -> 150 | AJ6: =Y6 -> 4 | AK6: =Z6 -> 30 | AL6: =AJ6*5/100 -> 0.2 | AY6: =VLOOKUP(D6,[1]語言配置表!$A:$B,2,FALSE) -> 太虚幻剑经
A7: =K7*10+P7-1 -> 11011 | B7: 13001 | C7: =异常状态效果值!G24 -> 150 | D7: =A7+1000000 -> 1011011 | E7: =A7+1100000 -> 1111011 | F7: 太虚幻剑经 | G7: 身体周围幻化出{0}柄细剑，每柄细剑造成{1}%攻击力的伤害，并有{2}%的几率对敌人造成1层流血。 | H7: 1 | I7: =IF(A7="","",CONCATENATE("icon_s",K7)) -> icon_s1101 | J7: =CONCATENATE("S",K7) -> S1101 | K7: 1101 | L7: 1101_timeline_TD | M7: 1 | N7: 1 | O7: 1 | P7: 2 | Q7: 100 | R7: =_xlfn.TEXTJOIN(";",1,Y7:AE7) -> 5;26;100 | S7: 2 | T7: =_xlfn.TEXTJOIN(";",1,IF(AQ7="","",101),IF(AR7="","",102),IF(AS7="","",103),IF(AT7="","",106),IF(AU7="","",107),IF(AV7="","",108),IF(AW7="","",109),IF(AX7="","",110)) ->  | U7: =_xlfn.TEXTJOIN(";",1,AQ7:AX7) ->  | V7: =A7+1200000 -> 1211011 | W7: 1 | Y7: 5 | Z7: =ROUND(异常状态效果值!G10*(1-AL7)/AJ7,0) -> 26 | AA7: 100 | AF7: =CONCATENATE("飞剑数量+",W7) -> 飞剑数量+1 | AG7: =IF(F7="","",CONCATENATE(F7,"·",CHOOSE(P7,"壹","贰","叁","肆","伍","陆"))) -> 太虚幻剑经·贰 | AI7: =IF(A7="","",AJ7*AK7/(1-AL7-AM7)) -> 173.3333333 | AJ7: =Y7 -> 5 | AK7: =Z7 -> 26 | AL7: =AJ7*5/100 -> 0.25
A8: 11012 | B8: 13001 | C8: =异常状态效果值!G25 -> 225 | D8: 1011012 | E8: 1111012 | F8: 太虚幻剑经 | G8: 身体周围幻化出{0}柄细剑，每柄细剑造成{1}%攻击力的伤害，并有{2}%的几率对敌人造成1层流血。 | H8: 1 | I8: icon_s1101 | J8: S1101 | K8: 1101 | L8: 1101_timeline_TD | M8: 1 | N8: 1 | O8: 1 | P8: 3 | Q8: 100 | R8: 5;30;100 | S8: 2 | T8: 101 | U8: 10 | V8: =A8+1200000 -> 1211012 | W8: 10 | Y8: 5 | Z8: =ROUND(异常状态效果值!G11*(1-AL8)/AJ8,0) -> 30 | AA8: 100 | AF8: =CONCATENATE("人物",CHOOSE(T8-100,"生命","攻击","防御"),"永久+",W8,"%") -> 人物生命永久+10% | AG8: 太虚幻剑经·叁 | AI8: 200 | AJ8: 5 | AK8: 30 | AL8: =AJ8*5/100 -> 0.25 | AQ8: 10
A9: 11013 | B9: 13001 | C9: =异常状态效果值!G26 -> 337.5 | D9: 1011013 | E9: 1111013 | F9: 太虚幻剑经 | G9: 身体周围幻化出{0}柄细剑，每柄细剑造成{1}%攻击力的伤害，并有{2}%的几率对敌人造成1层流血。 如果敌人有减益状态，则细剑伤害提升{3}%。 | H9: 1 | I9: icon_s1101 | J9: S1101 | K9: 1101 | L9: 1101_timeline_TD | M9: 1 | N9: 1 | O9: 1 | P9: 4 | Q9: 100 | R9: 6;23;100;10 | S9: 2 | T9: 101 | U9: 10 | V9: 1211013 | W9: 1 | Y9: 6 | Z9: =ROUND(异常状态效果值!G12*(1-AL9)/AJ9,0) -> 23 | AA9: 100 | AB9: 10 | AF9: =CONCATENATE("飞剑数量+",W9,"，对带减益的敌人增伤") -> 飞剑数量+1，对带减益的敌人增伤 | AG9: 太虚幻剑经·肆 | AI9: 230 | AJ9: 6 | AK9: 23 | AL9: =AJ9*5/100+AB9/100 -> 0.4 | AQ9: 10
A10: 11014 | B10: 13001 | C10: =异常状态效果值!G27 -> 506.25 | D10: 1011014 | E10: 1111014 | F10: 太虚幻剑经 | G10: 身体周围幻化出{0}柄细剑，每柄细剑造成{1}%攻击力的伤害，并有{2}%的几率对敌人造成1层流血。 如果敌人有减益状态，则细剑伤害提升{3}%。 | H10: 1 | I10: icon_s1101 | J10: S1101 | K10: 1101 | L10: 1101_timeline_TD | M10: 1 | N10: 1 | O10: 1 | P10: 5 | Q10: 100 | R10: 6;26;100;10 | S10: 2 | T10: 101 | U10: 20 | V10: 1211014 | W10: 10 | Y10: 6 | Z10: =ROUND(异常状态效果值!G13*(1-AL10)/AJ10,0) -> 26 | AA10: 100 | AB10: 10 | AF10: =CONCATENATE("人物",CHOOSE(T10-100,"生命","攻击","防御"),"永久+",W10,"%") -> 人物生命永久+10% | AG10: 太虚幻剑经·伍 | AI10: 260 | AJ10: 6 | AK10: 26 | AL10: =AJ10*5/100+AB10/100 -> 0.4 | AQ10: 20
A11: 11015 | B11: 13001 | C11: =异常状态效果值!G28 -> 759.375 | D11: 1011015 | E11: 1111015 | F11: 太虚幻剑经 | G11: 身体周围幻化出{0}柄更加巨大的虚剑，每柄虚剑造成{1}%攻击力的伤害，并有{2}%的几率对敌人造成1层流血。 如果敌人有减益状态，则虚剑伤害提升{3}%。 | H11: 1 | I11: icon_s1101 | J11: S1101 | K11: 1101 | L11: 1101_timeline_TD | M11: 1 | N11: 1 | O11: 1 | P11: 6 | Q11: 100 | R11: 6;30;100;10 | S11: 2 | T11: 101 | U11: 20 | V11: 1211015 | Y11: 6 | Z11: =ROUND(异常状态效果值!G14*(1-AL11)/AJ11,0) -> 30 | AA11: 100 | AB11: 10 | AF11: 发射伤害更高的幻剑 | AG11: 太虚幻剑经·陆 | AI11: 300 | AJ11: 6 | AK11: 30 | AL11: =AJ11*5/100+AB11/100 -> 0.4 | AQ11: 20
N12: 1 | Q12: 100
A13: =K13*10+P13-1 -> 11020 | B13: =B6+1 -> 13002 | C13: =异常状态效果值!G23*1.3 -> 130 | D13: =A13+1000000 -> 1011020 | E13: =A13+1100000 -> 1111020 | F13: 天罡剑气诀 | G13: 吸收自身灵气凝聚{0}柄大剑，大剑旋转快速穿透敌人对其造成{1}%攻击力的伤害 | H13: 1 | I13: icon_s1102 | J13: =CONCATENATE("S",K13) -> S1102 | K13: =K6+1 -> 1102 | L13: 1102_timeline_TD | M13: 1 | N13: 1 | O13: 1 | P13: 1 | Q13: 100 | R13: =_xlfn.TEXTJOIN(";",1,Y13:AE13) -> 1;170 | S13: 2 | T13: =_xlfn.TEXTJOIN(";",1,IF(AQ13="","",101),IF(AR13="","",102),IF(AS13="","",103),IF(AT13="","",106),IF(AU13="","",107),IF(AV13="","",108),IF(AW13="","",109),IF(AX13="","",110)) ->  | U13: =_xlfn.TEXTJOIN(";",1,AQ13:AX13) ->  | V13: -1 | Y13: 1 | Z13: =ROUND(异常状态效果值!F9*(1-AL13)/AJ13,0) -> 170 | AG13: 天罡剑气诀·壹 | AI13: 170 | AJ13: =Y13 -> 1 | AK13: =Z13 -> 170
A14: =K14*10+P14-1 -> 11021 | B14: =B7+1 -> 13002 | C14: =异常状态效果值!G24*1.3 -> 195 | D14: 1011021 | E14: =A14+1100000 -> 1111021 | F14: 天罡剑气诀 | G14: 吸收自身灵气凝聚{0}柄大剑，大剑旋转快速穿透敌人对其造成{1}%攻击力的伤害 对处在流血或放血状态下的敌人造成的伤害+{2}% | H14: 1 | I14: icon_s1102 | J14: =CONCATENATE("S",K14) -> S1102 | K14: =K7+1 -> 1102 | L14: 1102_timeline_TD | M14: 1 | N14: 1 | O14: 1 | P14: 2 | Q14: 100 | R14: =_xlfn.TEXTJOIN(";",1,Y14:AE14) -> 1;150;25 | S14: 2 | T14: =_xlfn.TEXTJOIN(";",1,IF(AQ14="","",101),IF(AR14="","",102),IF(AS14="","",103),IF(AT14="","",106),IF(AU14="","",107),IF(AV14="","",108),IF(AW14="","",109),IF(AX14="","",110)) ->  | U14: =_xlfn.TEXTJOIN(";",1,AQ14:AX14) ->  | V14: =A14+1200000 -> 1211021 | W14: 2 | Y14: 1 | Z14: =ROUND(异常状态效果值!F10*(1-AL14)/AJ14,0) -> 150 | AA14: 25 | AF14: 对流血或放血敌人增伤 | AG14: 天罡剑气诀·贰 | AI14: 200 | AJ14: =Y14 -> 1 | AK14: =Z14 -> 150 | AL14: =AA14/100 -> 0.25
A15: 11022 | B15: 13002 | C15: =异常状态效果值!G25*1.3 -> 292.5 | D15: 1011022 | E15: 1111022 | F15: 天罡剑气诀 | G15: 吸收自身灵气凝聚{0}柄大剑，大剑旋转快速穿透敌人对其造成{1}%攻击力的伤害 对处在流血或放血状态下的敌人造成的伤害+{2}% | H15: 1 | I15: icon_s1102 | J15: S1102 | K15: 1102 | L15: 1102_timeline_TD | M15: 1 | N15: 1 | O15: 1 | P15: 3 | Q15: 100 | R15: 1;173;25 | S15: 2 | T15: 102 | U15: 10 | V15: =A15+1200000 -> 1211022 | W15: 10 | Y15: 1 | Z15: =ROUND(异常状态效果值!F11*(1-AL15)/AJ15,0) -> 173 | AA15: 25 | AF15: =CONCATENATE("人物",CHOOSE(T15-100,"生命","攻击","防御"),"永久+",W15,"%") -> 人物攻击永久+10% | AG15: 天罡剑气诀·叁 | AI15: 230.6666667 | AJ15: 1 | AK15: =Z15 -> 173 | AL15: =AA15/100 -> 0.25 | AR15: 10
A16: 11023 | B16: 13002 | C16: =异常状态效果值!G26*1.3 -> 438.75 | D16: 1011023 | E16: 1111023 | F16: 天罡剑气诀 | G16: 吸收自身灵气凝聚{0}柄大剑，大剑旋转快速穿透敌人对其造成{1}%攻击力的伤害 对处在流血或放血状态下的敌人造成的伤害+{2}% 重伤敌人后，如果目标没在放血状态，直接放血且不消耗流血层数 | H16: 1 | I16: icon_s1102 | J16: S1102 | K16: 1102 | L16: 1102_timeline_TD | M16: 1 | N16: 1 | O16: 1 | P16: 4 | Q16: 100 | R16: 1;169;25 | S16: 2 | T16: 102 | U16: 10 | V16: 1211023 | W16: 1 | Y16: 1 | Z16: =ROUND(异常状态效果值!F12*(1-AL16)/AJ16,0) -> 169 | AA16: 25 | AF16: 无条件放血 | AG16: 天罡剑气诀·肆 | AI16: 260 | AJ16: 1 | AK16: 169 | AL16: =AA16/100+0.1 -> 0.35 | AR16: 10
A17: 11024 | B17: 13002 | C17: =异常状态效果值!G27*1.3 -> 658.125 | D17: 1011024 | E17: 1111024 | F17: 天罡剑气诀 | G17: 吸收自身灵气凝聚{0}柄大剑，大剑旋转快速穿透敌人对其造成{1}%攻击力的伤害 对处在流血或放血状态下的敌人造成的伤害+{2}% 重伤敌人后，如果目标没在放血状态，直接放血且不消耗流血层数 | H17: 1 | I17: icon_s1102 | J17: S1102 | K17: 1102 | L17: 1102_timeline_TD | M17: 1 | N17: 1 | O17: 1 | P17: 5 | Q17: 100 | R17: 1;195;25 | S17: 2 | T17: 102 | U17: 20 | V17: 1211024 | W17: 10 | Y17: 1 | Z17: =ROUND(异常状态效果值!F13*(1-AL17)/AJ17,0) -> 195 | AA17: 25 | AF17: =CONCATENATE("人物",CHOOSE(T17-100,"生命","攻击","防御"),"永久+",W17,"%") -> 人物攻击永久+10% | AG17: 天罡剑气诀·伍 | AI17: 300 | AJ17: 1 | AK17: 195 | AL17: =AA17/100+0.1 -> 0.35 | AR17: 20
A18: 11025 | B18: 13002 | C18: =异常状态效果值!G28*1.3 -> 987.1875 | D18: 1011025 | E18: 1111025 | F18: 天罡剑气诀 | G18: 吸收自身灵气凝聚{0}柄大剑，大剑旋转快速穿透敌人对其造成{1}%攻击力的伤害 对处在流血或放血状态下的敌人造成的伤害+{2}% 重伤敌人后，如果目标没在放血状态，直接放血且不消耗流血层数 大剑体型巨大化进入全盛状态，对拼强度+{3}%，伤害提升{4}% | H18: 1 | I18: icon_s1102 | J18: S1102 | K18: 1102 | L18: 1102_timeline_TD | M18: 1 | N18: 1 | O18: 1 | P18: 6 | Q18: 100 | R18: 1;234;25;100 | S18: 2 | T18: 102 | U18: 20 | V18: 1211025 | Y18: 1 | Z18: =ROUND(异常状态效果值!F14*(1-AL18)/AJ18,0) -> 234 | AA18: 25 | AB18: 100 | AF18: 对拼强度和伤害提升 | AG18: 天罡剑气诀·陆 | AI18: 360 | AJ18: 1 | AK18: 234 | AL18: =(AA18+AC18)/100+0.1 -> 0.35 | AR18: 20
N19: 1 | Q19: 100
A20: =K20*10+P20-1 -> 11030 | B20: =B13+1 -> 13003 | C20: 100 | D20: =A20+1000000 -> 1011030 | E20: =A20+1100000 -> 1111030 | F20: 血刃金煌功 | G20: 向前方挥动{0}次，每次挥动形成一道血刃剑气，每道剑气对敌人造成{1}%攻击力的伤害，并有{2}%概率对敌人造成流血。 | H20: 1 | I20: icon_s1103 | J20: =CONCATENATE("S",K20) -> S1103 | K20: =K13+1 -> 1103 | L20: 1103_timeline_TD | M20: 1 | N20: 1 | O20: 1 | P20: 1 | Q20: 100 | R20: =_xlfn.TEXTJOIN(";",1,Y20:AE20) -> 3;53;100 | S20: 2 | T20: =_xlfn.TEXTJOIN(";",1,IF(AQ20="","",101),IF(AR20="","",102),IF(AS20="","",103),IF(AT20="","",106),IF(AU20="","",107),IF(AV20="","",108),IF(AW20="","",109),IF(AX20="","",110)) ->  | U20: =_xlfn.TEXTJOIN(";",1,AQ20:AX20) ->  | V20: -1 | Y20: 3 | Z20: =ROUND(异常状态效果值!F9*(1-AL20-AN20*0.1)/AJ20,0) -> 53 | AA20: 100 | AG20: 血刃金煌功·壹 | AI20: 169.1489362 | AJ20: =Y20 -> 3 | AK20: =Z20 -> 53 | AL20: =AJ20*异常状态效果值!B1/100 -> 0.06
A21: =K21*10+P21-1 -> 11031 | B21: =B14+1 -> 13003 | C21: 150 | D21: 1011031 | E21: =A21+1100000 -> 1111031 | F21: 血刃金煌功 | G21: 向前方挥动{0}次，每次挥动形成一道血刃剑气，每道剑气对敌人造成{1}%攻击力的伤害，并有{2}%概率对敌人造成流血。 刀气命中目标后，恢复本次伤害{3}%的生命。 | H21: 1 | I21: icon_s1103 | J21: =CONCATENATE("S",K21) -> S1103 | K21: =K14+1 -> 1103 | L21: 1103_timeline_TD | M21: 1 | N21: 1 | O21: 1 | P21: 2 | Q21: 100 | R21: =_xlfn.TEXTJOIN(";",1,Y21:AE21) -> 3;56;100;15 | S21: 2 | T21: =_xlfn.TEXTJOIN(";",1,IF(AQ21="","",101),IF(AR21="","",102),IF(AS21="","",103),IF(AT21="","",106),IF(AU21="","",107),IF(AV21="","",108),IF(AW21="","",109),IF(AX21="","",110)) ->  | U21: =_xlfn.TEXTJOIN(";",1,AQ21:AX21) ->  | V21: =A21+1200000 -> 1211031 | Y21: 3 | Z21: =ROUND(异常状态效果值!F10*(1-AL21-0.1)/AJ21,0) -> 56 | AA21: 100 | AB21: 15 | AF21: 刀气命中回血 | AG21: 血刃金煌功·贰 | AI21: 178.7234043 | AJ21: =Y21 -> 3 | AK21: =Z21 -> 56 | AL21: =AJ21*异常状态效果值!B1/100 -> 0.06 | AN21: =Z21*Y21*AB21/10000 -> 0.252
A22: 11032 | B22: 13003 | C22: 225 | D22: 1011032 | E22: 1111032 | F22: 血刃金煌功 | G22: 向前方挥动{0}次，每次挥动形成一道血刃剑气，每道剑气对敌人造成{1}%攻击力的伤害，并有{2}%概率对敌人造成流血。 刀气命中目标后，恢复本次伤害{3}%的生命。 | H22: 1 | I22: icon_s1103 | J22: S1103 | K22: 1103 | L22: 1103_timeline_TD | M22: 1 | N22: 1 | O22: 1 | P22: 3 | Q22: 100 | R22: 3;64;100;20 | S22: 2 | T22: 103 | U22: 10 | V22: =A22+1200000 -> 1211032 | W22: 10 | Y22: 3 | Z22: =ROUND(异常状态效果值!F11*(1-AL22-0.1)/AJ22,0) -> 64 | AA22: 100 | AB22: 20 | AF22: =CONCATENATE("人物",CHOOSE(T22-100,"生命","攻击","防御"),"永久+",W22,"%") -> 人物防御永久+10% | AG22: 血刃金煌功·叁 | AI22: 204.2553191 | AJ22: 3 | AK22: 64 | AL22: =AJ22*异常状态效果值!B1/100 -> 0.06 | AN22: =Z22*Y22*AB22/10000 -> 0.384 | AS22: 10
A23: 11033 | B23: 13003 | C23: 337.5 | D23: 1011033 | E23: 1111033 | F23: 血刃金煌功 | G23: 向前方挥动{0}次，每次挥动形成一道血刃剑气，每道剑气对敌人造成{1}%攻击力的伤害，并有{2}%概率对敌人造成流血。 刀气命中目标后，恢复本次伤害{3}%的生命。 | H23: 1 | I23: icon_s1103 | J23: S1103 | K23: 1103 | L23: 1103_timeline_TD | M23: 1 | N23: 1 | O23: 1 | P23: 4 | Q23: 100 | R23: 4;53;100;25 | S23: 2 | T23: 103 | U23: 10 | V23: 1211033 | W23: 1 | Y23: 4 | Z23: =ROUND(异常状态效果值!F12*(1-AL23-0.1)/AJ23,0) -> 53 | AA23: 100 | AB23: 25 | AF23: =CONCATENATE("刀气+",W23) -> 刀气+1 | AG23: 血刃金煌功·肆 | AI23: 230.4347826 | AJ23: 4 | AK23: 53 | AL23: =AJ23*异常状态效果值!B1/100 -> 0.08 | AN23: =Z23*Y23*AB23/10000 -> 0.53 | AS23: 10
A24: 11034 | B24: 13003 | C24: 506.25 | D24: 1011034 | E24: 1111034 | F24: 血刃金煌功 | G24: 向前方挥动{0}次，每次挥动形成一道血刃剑气，每道剑气对敌人造成{1}%攻击力的伤害，并有{2}%概率对敌人造成流血。 刀气命中目标后，恢复本次伤害{3}%的生命。 | H24: 1 | I24: icon_s1103 | J24: S1103 | K24: 1103 | L24: 1103_timeline_TD | M24: 1 | N24: 1 | O24: 1 | P24: 5 | Q24: 100 | R24: 4;62;100;30 | S24: 2 | T24: 103 | U24: 20 | V24: 1211034 | W24: 10 | Y24: 4 | Z24: =ROUND(异常状态效果值!F13*(1-AL24-0.1)/AJ24,0) -> 62 | AA24: 100 | AB24: 30 | AF24: =CONCATENATE("人物",CHOOSE(T24-100,"生命","攻击","防御"),"永久+",W24,"%") -> 人物防御永久+10% | AG24: 血刃金煌功·伍 | AI24: 269.5652174 | AJ24: 4 | AK24: 62 | AL24: =AJ24*异常状态效果值!B1/100 -> 0.08 | AN24: =Z24*Y24*AB24/10000 -> 0.744 | AS24: 20
A25: 11035 | B25: 13003 | C25: 759.375 | D25: 1011035 | E25: 1111035 | F25: 血刃金煌功 | G25: 向前方挥动{0}次，每次挥动形成一道血刃剑气，每道剑气对敌人造成{1}%攻击力的伤害，并有{2}%概率对敌人造成流血。 刀气命中目标后，恢复本次伤害{3}%的生命。 刀气对流血状态下的敌人造成的伤害+{4}% | H25: 1 | I25: icon_s1103 | J25: S1103 | K25: 1103 | L25: 1103_timeline_TD | M25: 1 | N25: 1 | O25: 1 | P25: 6 | Q25: 100 | R25: 4;56;100;35;20 | S25: 2 | T25: 103 | U25: 20 | V25: 1211035 | Y25: 4 | Z25: =ROUND(异常状态效果值!F14*(1-AL25-0.1)/AJ25,0) -> 56 | AA25: 100 | AB25: 35 | AC25: 20 | AF25: 对流血目标增伤，再次放血 | AG25: 血刃金煌功·陆 | AI25: 311.1111111 | AJ25: 4 | AK25: 56 | AL25: =AJ25*异常状态效果值!B1/100+AC25/100 -> 0.28 | AN25: =Z25*Y25*AB25/10000 -> 0.784 | AS25: 20
N26: 1 | Q26: 100
A27: =K27*10+P27-1 -> 11040 | B27: =B20+1 -> 13004 | C27: =异常状态效果值!H23 -> 80 | D27: =A27+1000000 -> 1011040 | E27: =A27+1100000 -> 1111040 | F27: 飞刃 | G27: 发射{0}枚飞刀，每把飞刀对敌人造成{1}%攻击力的伤害。 | H27: 1 | I27: icon_s1104 | J27: =CONCATENATE("S",K27) -> S1104 | K27: =K20+1 -> 1104 | L27: 1104_timeline_TD | M27: 1 | N27: 1 | O27: 1 | P27: 1 | Q27: 100 | R27: =_xlfn.TEXTJOIN(";",1,Y27:AE27) -> 3;50 | S27: 2 | T27: =_xlfn.TEXTJOIN(";",1,IF(AQ27="","",101),IF(AR27="","",102),IF(AS27="","",103),IF(AT27="","",106),IF(AU27="","",107),IF(AV27="","",108),IF(AW27="","",109),IF(AX27="","",110)) ->  | U27: =_xlfn.TEXTJOIN(";",1,AQ27:AX27) ->  | V27: -1 | Y27: 3 | Z27: =ROUND(异常状态效果值!H9*(1-AL27-AN27*0.1)/AJ27,0) -> 50 | AG27: 飞刃·壹 | AI27: 150 | AJ27: =Y27 -> 3 | AK27: =Z27 -> 50
A28: =K28*10+P28-1 -> 11041 | B28: =B21+1 -> 13004 | C28: =异常状态效果值!H24 -> 120 | D28: 1011041 | E28: =A28+1100000 -> 1111041 | F28: 飞刃 | G28: 发射{0}枚飞刀，每把飞刀对敌人造成{1}%攻击力的伤害。 | H28: 1 | I28: icon_s1104 | J28: =CONCATENATE("S",K28) -> S1104 | K28: =K21+1 -> 1104 | L28: 1104_timeline_TD | M28: 1 | N28: 1 | O28: 1 | P28: 2 | Q28: 100 | R28: =_xlfn.TEXTJOIN(";",1,Y28:AE28) -> 3;57 | S28: 2 | T28: =_xlfn.TEXTJOIN(";",1,IF(AQ28="","",101),IF(AR28="","",102),IF(AS28="","",103),IF(AT28="","",106),IF(AU28="","",107),IF(AV28="","",108),IF(AW28="","",109),IF(AX28="","",110)) -> 102 | U28: =_xlfn.TEXTJOIN(";",1,AQ28:AX28) -> 5 | V28: =A28+1200000 -> 1211041 | W28: 5 | Y28: 3 | Z28: =ROUND(异常状态效果值!H10*(1-AL28-AN28*0.1)/AJ28,0) -> 57 | AF28: =CONCATENATE("人物",CHOOSE(T28-100,"生命","攻击","防御"),"永久+",W28,"%") -> 人物攻击永久+5% | AG28: 飞刃·贰 | AI28: 171 | AJ28: =Y28 -> 3 | AK28: =Z28 -> 57 | AR28: 5
A29: 11042 | B29: 13004 | C29: =异常状态效果值!H25 -> 180 | D29: 1011042 | E29: 1111042 | F29: 飞刃 | G29: 发射{0}枚飞刀，每把飞刀对敌人造成{1}%攻击力的伤害。 | H29: 1 | I29: icon_s1104 | J29: S1104 | K29: 1104 | L29: 1104_timeline_TD | M29: 1 | N29: 1 | O29: 1 | P29: 3 | Q29: 100 | R29: 4;45 | S29: 2 | T29: 102 | U29: 5 | V29: =A29+1200000 -> 1211042 | W29: 1 | Y29: 4 | Z29: =ROUND(异常状态效果值!H11*(1-AL29-AN29*0.1)/AJ29,0) -> 45 | AF29: =CONCATENATE("飞刀数量+",W29) -> 飞刀数量+1 | AG29: 飞刃·叁 | AI29: 180 | AJ29: 4 | AK29: 45 | AR29: 5
A30: 11043 | B30: 13004 | C30: =异常状态效果值!H26 -> 270 | D30: 1011043 | E30: 1111043 | F30: 飞刃 | G30: 发射{0}枚飞刀，每把飞刀对敌人造成{1}%攻击力的伤害。 | H30: 1 | I30: icon_s1104 | J30: S1104 | K30: 1104 | L30: 1104_timeline_TD | M30: 1 | N30: 1 | O30: 1 | P30: 4 | Q30: 100 | R30: 4;48 | S30: 2 | T30: 102 | U30: 10 | V30: 1211043 | W30: 5 | Y30: 4 | Z30: =ROUND(异常状态效果值!H12*(1-AL30-AN30*0.1)/AJ30,0) -> 48 | AF30: =CONCATENATE("人物",CHOOSE(T30-100,"生命","攻击","防御"),"永久+",W30,"%") -> 人物攻击永久+5% | AG30: 飞刃·肆 | AI30: 192 | AJ30: 4 | AK30: 48 | AR30: 10
A31: 11044 | B31: 13004 | C31: =异常状态效果值!H27 -> 405 | D31: 1011044 | E31: 1111044 | F31: 飞刃 | G31: 发射{0}枚飞刀，每把飞刀对敌人造成{1}%攻击力的伤害。 | H31: 1 | I31: icon_s1104 | J31: S1104 | K31: 1104 | L31: 1104_timeline_TD | M31: 1 | N31: 1 | O31: 1 | P31: 5 | Q31: 100 | R31: 5;40 | S31: 2 | T31: 102 | U31: 10 | V31: 1211044 | W31: 1 | Y31: 5 | Z31: =ROUND(异常状态效果值!H13*(1-AL31-AN31*0.1)/AJ31,0) -> 40 | AF31: =CONCATENATE("飞刀数量+",W31) -> 飞刀数量+1 | AG31: 飞刃·伍 | AI31: 200 | AJ31: 5 | AK31: 40 | AR31: 10
A32: 11045 | B32: 13004 | C32: =异常状态效果值!H28 -> 607.5 | D32: 1011045 | E32: 1111045 | F32: 飞刃 | G32: 发射{0}枚飞刀，每把飞刀对敌人造成{1}%攻击力的伤害。 | H32: 1 | I32: icon_s1104 | J32: S1104 | K32: 1104 | L32: 1104_timeline_TD | M32: 1 | N32: 1 | O32: 1 | P32: 6 | Q32: 100 | R32: 5;44 | S32: 2 | T32: 102 | U32: 15 | V32: 1211045 | W32: 5 | Y32: 5 | Z32: =ROUND(异常状态效果值!H14*(1-AL32-AN32*0.1)/AJ32,0) -> 44 | AF32: =CONCATENATE("人物",CHOOSE(T32-100,"生命","攻击","防御"),"永久+",W32,"%") -> 人物攻击永久+5% | AG32: 飞刃·陆 | AI32: 220 | AJ32: 5 | AK32: 44 | AR32: 15
N33: 1 | Q33: 100
A34: =K34*10+P34-1 -> 11050 | B34: =B27+1 -> 13005 | C34: =异常状态效果值!H23 -> 80 | D34: =A34+1000000 -> 1011050 | E34: =A34+1100000 -> 1111050 | F34: 金针 | G34: 手中快速发射{0}枚金针，每枚金针对敌人造成{1}%攻击力的伤害，并有{2}%的概率施加1层流血。 | H34: 1 | I34: icon_s1105 | J34: =CONCATENATE("S",K34) -> S1105 | K34: =K27+1 -> 1105 | L34: 1105_timeline_TD | M34: 1 | N34: 1 | O34: 1 | P34: 1 | Q34: 100 | R34: =_xlfn.TEXTJOIN(";",1,Y34:AE34) -> 3;47;40 | S34: 2 | T34: =_xlfn.TEXTJOIN(";",1,IF(AQ34="","",101),IF(AR34="","",102),IF(AS34="","",103),IF(AT34="","",106),IF(AU34="","",107),IF(AV34="","",108),IF(AW34="","",109),IF(AX34="","",110)) ->  | U34: =_xlfn.TEXTJOIN(";",1,AQ34:AX34) ->  | V34: -1 | Y34: 3 | Z34: =ROUND(异常状态效果值!H9*(1-AL34-AN34*0.1)/AJ34,0) -> 47 | AA34: 40 | AG34: 金针·壹 | AI34: 150 | AJ34: =Y34 -> 3 | AK34: =Z34 -> 47 | AL34: =Y34*异常状态效果值!B1/100 -> 0.06
A35: =K35*10+P35-1 -> 11051 | B35: =B28+1 -> 13005 | C35: =异常状态效果值!H24 -> 120 | D35: 1011051 | E35: =A35+1100000 -> 1111051 | F35: 金针 | G35: 手中快速发射{0}枚金针，每枚金针对敌人造成{1}%攻击力的伤害，并有{2}%的概率施加1层流血。 | H35: 1 | I35: icon_s1105 | J35: =CONCATENATE("S",K35) -> S1105 | K35: =K28+1 -> 1105 | L35: 1105_timeline_TD | M35: 1 | N35: 1 | O35: 1 | P35: 2 | Q35: 100 | R35: =_xlfn.TEXTJOIN(";",1,Y35:AE35) -> 3;53;40 | S35: 2 | T35: =_xlfn.TEXTJOIN(";",1,IF(AQ35="","",101),IF(AR35="","",102),IF(AS35="","",103),IF(AT35="","",106),IF(AU35="","",107),IF(AV35="","",108),IF(AW35="","",109),IF(AX35="","",110)) -> 103 | U35: =_xlfn.TEXTJOIN(";",1,AQ35:AX35) -> 5 | V35: =A35+1200000 -> 1211051 | W35: 5 | Y35: 3 | Z35: =ROUND(异常状态效果值!H10*(1-AL35-AN35*0.1)/AJ35,0) -> 53 | AA35: 40 | AF35: =CONCATENATE("人物",CHOOSE(T35-100,"生命","攻击","防御"),"永久+",W35,"%") -> 人物防御永久+5% | AG35: 金针·贰 | AI35: 169.1489362 | AJ35: 3 | AK35: 53 | AL35: =Y35*异常状态效果值!B1/100 -> 0.06 | AS35: 5
A36: 11052 | B36: 13005 | C36: =异常状态效果值!H25 -> 180 | D36: 1011052 | E36: 1111052 | F36: 金针 | G36: 手中快速发射{0}枚金针，每枚金针对敌人造成{1}%攻击力的伤害，并有{2}%的概率施加1层流血。 | H36: 1 | I36: icon_s1105 | J36: S1105 | K36: 1105 | L36: 1105_timeline_TD | M36: 1 | N36: 1 | O36: 1 | P36: 3 | Q36: 100 | R36: 4;41;40 | S36: 2 | T36: 103 | U36: 5 | V36: =A36+1200000 -> 1211052 | W36: 1 | Y36: 4 | Z36: =ROUND(异常状态效果值!H11*(1-AL36-AN36*0.1)/AJ36,0) -> 41 | AA36: 40 | AF36: =CONCATENATE("金针数量+",W36) -> 金针数量+1 | AG36: 金针·叁 | AI36: 178.2608696 | AJ36: 4 | AK36: 41 | AL36: =Y36*异常状态效果值!B1/100 -> 0.08 | AS36: 5
A37: 11053 | B37: 13005 | C37: =异常状态效果值!H26 -> 270 | D37: 1011053 | E37: 1111053 | F37: 金针 | G37: 手中快速发射{0}枚金针，每枚金针对敌人造成{1}%攻击力的伤害，并有{2}%的概率施加1层流血。 | H37: 1 | I37: icon_s1105 | J37: S1105 | K37: 1105 | L37: 1105_timeline_TD | M37: 1 | N37: 1 | O37: 1 | P37: 4 | Q37: 100 | R37: 4;44;40 | S37: 2 | T37: 103 | U37: 10 | V37: 1211053 | W37: 5 | Y37: 4 | Z37: =ROUND(异常状态效果值!H12*(1-AL37-AN37*0.1)/AJ37,0) -> 44 | AA37: 40 | AF37: =CONCATENATE("人物",CHOOSE(T37-100,"生命","攻击","防御"),"永久+",W37,"%") -> 人物防御永久+5% | AG37: 金针·肆 | AI37: 191.3043478 | AJ37: 4 | AK37: 44 | AL37: =Y37*异常状态效果值!B1/100 -> 0.08 | AS37: 10
A38: 11054 | B38: 13005 | C38: =异常状态效果值!H27 -> 405 | D38: 1011054 | E38: 1111054 | F38: 金针 | G38: 手中快速发射{0}枚金针，每枚金针对敌人造成{1}%攻击力的伤害，并有{2}%的概率施加1层流血。 | H38: 1 | I38: icon_s1105 | J38: S1105 | K38: 1105 | L38: 1105_timeline_TD | M38: 1 | N38: 1 | O38: 1 | P38: 5 | Q38: 100 | R38: 5;36;40 | S38: 2 | T38: 103 | U38: 10 | V38: 1211054 | W38: 1 | Y38: 5 | Z38: =ROUND(异常状态效果值!H13*(1-AL38-AN38*0.1)/AJ38,0) -> 36 | AA38: 40 | AF38: =CONCATENATE("金针数量+",W38) -> 金针数量+1 | AG38: 金针·伍 | AI38: 200 | AJ38: 5 | AK38: 36 | AL38: =Y38*异常状态效果值!B1/100 -> 0.1 | AS38: 10
A39: 11055 | B39: 13005 | C39: =异常状态效果值!H28 -> 607.5 | D39: 1011055 | E39: 1111055 | F39: 金针 | G39: 手中快速发射{0}枚金针，每枚金针对敌人造成{1}%攻击力的伤害，并有{2}%的概率施加1层流血。 | H39: 1 | I39: icon_s1105 | J39: S1105 | K39: 1105 | L39: 1105_timeline_TD | M39: 1 | N39: 1 | O39: 1 | P39: 6 | Q39: 100 | R39: 5;40;40 | S39: 2 | T39: 103 | U39: 15 | V39: 1211055 | W39: 5 | Y39: 5 | Z39: =ROUND(异常状态效果值!H14*(1-AL39-AN39*0.1)/AJ39,0) -> 40 | AA39: 40 | AF39: =CONCATENATE("人物",CHOOSE(T39-100,"生命","攻击","防御"),"永久+",W39,"%") -> 人物防御永久+5% | AG39: 金针·陆 | AI39: 222.2222222 | AJ39: 5 | AK39: 40 | AL39: =Y39*异常状态效果值!B1/100 -> 0.1 | AS39: 15
N40: 1 | Q40: 100
A41: =K41*10+P41-1 -> 12010 | B41: =B34+1 -> 13006 | C41: 100 | D41: =A41+1000000 -> 1012010 | E41: =A41+1100000 -> 1112010 | F41: 碧落幽冥劲 | G41: 发出{0}道寒气冰锥，每道冰锥对敌人造成{1}%攻击力的伤害，每道冰锥有{2}%的概率对敌人施加1层寒气 | H41: 2 | I41: icon_s1201 | J41: =CONCATENATE("S",K41) -> S1201 | K41: 1201 | L41: 1201_timeline_TD | M41: 1 | N41: 1 | O41: 1 | P41: 1 | Q41: 100 | R41: =_xlfn.TEXTJOIN(";",1,Y41:AE41) -> 3;47;100 | S41: 2 | T41: =_xlfn.TEXTJOIN(";",1,IF(AQ41="","",101),IF(AR41="","",102),IF(AS41="","",103),IF(AT41="","",106),IF(AU41="","",107),IF(AV41="","",108),IF(AW41="","",109),IF(AX41="","",110)) ->  | U41: =_xlfn.TEXTJOIN(";",1,AQ41:AX41) ->  | V41: -1 | Y41: 3 | Z41: =ROUND(异常状态效果值!G9*(1-AL41-AN41*0.1)/AJ41,0) -> 47 | AA41: 100 | AG41: 碧落幽冥劲·壹 | AI41: 150 | AJ41: =Y41 -> 3 | AK41: =Z41 -> 47 | AL41: =Y41*异常状态效果值!B2/100 -> 0.06
A42: =K42*10+P42-1 -> 12011 | B42: =B35+1 -> 13006 | C42: 150 | D42: 1012011 | E42: =A42+1100000 -> 1112011 | F42: 碧落幽冥劲 | G42: 发出{0}道寒气冰锥，每道冰锥对敌人造成{1}%攻击力的伤害，每道冰锥有{2}%的概率对敌人施加1层寒气 | H42: 2 | I42: icon_s1201 | J42: =CONCATENATE("S",K42) -> S1201 | K42: 1201 | L42: 1201_timeline_TD | M42: 1 | N42: 1 | O42: 1 | P42: 2 | Q42: 100 | R42: =_xlfn.TEXTJOIN(";",1,Y42:AE42) -> 4;39;100 | S42: 2 | T42: =_xlfn.TEXTJOIN(";",1,IF(AQ42="","",101),IF(AR42="","",102),IF(AS42="","",103),IF(AT42="","",106),IF(AU42="","",107),IF(AV42="","",108),IF(AW42="","",109),IF(AX42="","",110)) ->  | U42: =_xlfn.TEXTJOIN(";",1,AQ42:AX42) ->  | V42: =A42+1200000 -> 1212011 | W42: 1 | Y42: 4 | Z42: =ROUND(异常状态效果值!G10*(1-AL42-AN42*0.1)/AJ42,0) -> 39 | AA42: 100 | AF42: =CONCATENATE("冰锥数量+",W42) -> 冰锥数量+1 | AG42: 碧落幽冥劲·贰 | AI42: 169.5652174 | AJ42: 4 | AK42: 39 | AL42: =Y42*异常状态效果值!B2/100 -> 0.08
A43: 12012 | B43: 13006 | C43: 225 | D43: 1012012 | E43: 1112012 | F43: 碧落幽冥劲 | G43: 发出{0}道寒气冰锥，每道冰锥对敌人造成{1}%攻击力的伤害，每道冰锥有{2}%的概率对敌人施加1层寒气 | H43: 2 | I43: icon_s1201 | J43: S1201 | K43: 1201 | L43: 1201_timeline_TD | M43: 1 | N43: 1 | O43: 1 | P43: 3 | Q43: 100 | R43: 4;46;100 | S43: 2 | T43: 101 | U43: 10 | V43: =A43+1200000 -> 1212012 | W43: 10 | Y43: 4 | Z43: =ROUND(异常状态效果值!G11*(1-AL43-AN43*0.1)/AJ43,0) -> 46 | AA43: 100 | AF43: =CONCATENATE("人物",CHOOSE(T43-100,"生命","攻击","防御"),"永久+",W43,"%") -> 人物生命永久+10% | AG43: 碧落幽冥劲·叁 | AI43: 200 | AJ43: 4 | AK43: 46 | AL43: =Y43*异常状态效果值!B2/100 -> 0.08 | AQ43: 10
A44: 12013 | B44: 13006 | C44: 337.5 | D44: 1012013 | E44: 1112013 | F44: 碧落幽冥劲 | G44: 发出{0}道寒气冰锥，每道冰锥对敌人造成{1}%攻击力的伤害，每道冰锥有{2}%的概率对敌人施加1层寒气 | H44: 2 | I44: icon_s1201 | J44: S1201 | K44: 1201 | L44: 1201_timeline_TD | M44: 1 | N44: 1 | O44: 1 | P44: 4 | Q44: 100 | R44: 5;41;100 | S44: 2 | T44: 101 | U44: 10 | V44: 1212013 | W44: 1 | Y44: 5 | Z44: =ROUND(异常状态效果值!G12*(1-AL44-AN44*0.1)/AJ44,0) -> 41 | AA44: 100 | AF44: =CONCATENATE("冰锥数量+",W44) -> 冰锥数量+1 | AG44: 碧落幽冥劲·肆 | AI44: 227.7777778 | AJ44: 5 | AK44: 41 | AL44: =Y44*异常状态效果值!B2/100 -> 0.1 | AQ44: 10
A45: 12014 | B45: 13006 | C45: 506.25 | D45: 1012014 | E45: 1112014 | F45: 碧落幽冥劲 | G45: 发出{0}道寒气冰锥，每道冰锥对敌人造成{1}%攻击力的伤害，每道冰锥有{2}%的概率对敌人施加1层寒气 | H45: 2 | I45: icon_s1201 | J45: S1201 | K45: 1201 | L45: 1201_timeline_TD | M45: 1 | N45: 1 | O45: 1 | P45: 5 | Q45: 100 | R45: 5;47;100 | S45: 2 | T45: 101 | U45: 20 | V45: 1212014 | W45: 10 | Y45: 5 | Z45: =ROUND(异常状态效果值!G13*(1-AL45-AN45*0.1)/AJ45,0) -> 47 | AA45: 100 | AF45: =CONCATENATE("人物",CHOOSE(T45-100,"生命","攻击","防御"),"永久+",W45,"%") -> 人物生命永久+10% | AG45: 碧落幽冥劲·伍 | AI45: 261.1111111 | AJ45: 5 | AK45: 47 | AL45: =Y45*异常状态效果值!B2/100 -> 0.1 | AQ45: 20
A46: 12015 | B46: 13006 | C46: 759.375 | D46: 1012015 | E46: 1112015 | F46: 碧落幽冥劲 | G46: 发出{0}道寒气冰锥，每道冰锥对敌人造成{1}%攻击力的伤害，每道冰锥有{2}%的概率对敌人施加1层寒气 | H46: 2 | I46: icon_s1201 | J46: S1201 | K46: 1201 | L46: 1201_timeline_TD | M46: 1 | N46: 1 | O46: 1 | P46: 6 | Q46: 100 | R46: 6;44;100 | S46: 2 | T46: 101 | U46: 20 | V46: 1212015 | W46: 1 | Y46: 6 | Z46: =ROUND(异常状态效果值!G14*(1-AL46-AN46*0.1)/AJ46,0) -> 44 | AA46: 100 | AF46: =CONCATENATE("冰锥数量+",W46) -> 冰锥数量+1 | AG46: 碧落幽冥劲·陆 | AI46: 300 | AJ46: 6 | AK46: 44 | AL46: =Y46*异常状态效果值!B2/100 -> 0.12 | AQ46: 20
N47: 1 | Q47: 100
A48: =K48*10+P48-1 -> 12020 | B48: =B41+1 -> 13007 | C48: 100 | D48: =A48+1000000 -> 1012020 | E48: =A48+1100000 -> 1112020 | F48: 雾隐千流法 | G48: 身体散发出一团迷雾。从迷雾中飞出{0}个冰球，每个冰球对敌人造成{1}%攻击力的伤害，并有{2}%概率施加1层寒气 | H48: 2 | I48: icon_s1202 | J48: =CONCATENATE("S",K48) -> S1202 | K48: =K41+1 -> 1202 | L48: 1202_timeline_TD | M48: 1 | N48: 1 | O48: 1 | P48: 1 | Q48: 100 | R48: =_xlfn.TEXTJOIN(";",1,Y48:AE48) -> 3;47;100 | S48: 2 | T48: =_xlfn.TEXTJOIN(";",1,IF(AQ48="","",101),IF(AR48="","",102),IF(AS48="","",103),IF(AT48="","",106),IF(AU48="","",107),IF(AV48="","",108),IF(AW48="","",109),IF(AX48="","",110)) ->  | U48: =_xlfn.TEXTJOIN(";",1,AQ48:AX48) ->  | V48: -1 | Y48: 3 | Z48: =ROUND(异常状态效果值!G9*(1-AL48-AN48*0.1)/AJ48,0) -> 47 | AA48: 100 | AG48: 雾隐千流法·壹 | AI48: =IF(A48="","",AJ48*AK48/(1-AL48-AM48)) -> 150 | AJ48: =Y48 -> 3 | AK48: =Z48 -> 47 | AL48: =Y48*异常状态效果值!B2/100 -> 0.06
A49: =K49*10+P49-1 -> 12021 | B49: =B42+1 -> 13007 | C49: 150 | D49: 1012021 | E49: =A49+1100000 -> 1112021 | F49: 雾隐千流法 | G49: 身体散发出一团迷雾。从迷雾中飞出{0}个冰球，每个冰球对敌人造成{1}%攻击力的伤害，并有{2}%概率施加1层寒气 | H49: 2 | I49: icon_s1202 | J49: =CONCATENATE("S",K49) -> S1202 | K49: =K42+1 -> 1202 | L49: 1202_timeline_TD | M49: 1 | N49: 1 | O49: 1 | P49: 2 | Q49: 100 | R49: =_xlfn.TEXTJOIN(";",1,Y49:AE49) -> 4;39;100 | S49: 2 | T49: =_xlfn.TEXTJOIN(";",1,IF(AQ49="","",101),IF(AR49="","",102),IF(AS49="","",103),IF(AT49="","",106),IF(AU49="","",107),IF(AV49="","",108),IF(AW49="","",109),IF(AX49="","",110)) ->  | U49: =_xlfn.TEXTJOIN(";",1,AQ49:AX49) ->  | V49: =A49+1200000 -> 1212021 | W49: 1 | Y49: 4 | Z49: =ROUND(异常状态效果值!G10*(1-AL49-AN49*0.1)/AJ49,0) -> 39 | AA49: 100 | AF49: =CONCATENATE("冰球数量+",W49) -> 冰球数量+1 | AG49: 雾隐千流法·贰 | AI49: 169.5652174 | AJ49: 4 | AK49: 39 | AL49: =Y49*异常状态效果值!B2/100 -> 0.08
A50: 12022 | B50: 13007 | C50: 225 | D50: 1012022 | E50: 1112022 | F50: 雾隐千流法 | G50: 身体散发出一团迷雾。从迷雾中飞出{0}个冰球，每个冰球对敌人造成{1}%攻击力的伤害，并有{2}%概率施加1层寒气 | H50: 2 | I50: icon_s1202 | J50: S1202 | K50: 1202 | L50: 1202_timeline_TD | M50: 1 | N50: 1 | O50: 1 | P50: 3 | Q50: 100 | R50: 4;46;100 | S50: 2 | T50: 103 | U50: 10 | V50: =A50+1200000 -> 1212022 | W50: 10 | Y50: 4 | Z50: =ROUND(异常状态效果值!G11*(1-AL50-AN50*0.1)/AJ50,0) -> 46 | AA50: 100 | AF50: =CONCATENATE("人物",CHOOSE(T50-100,"生命","攻击","防御"),"永久+",W50,"%") -> 人物防御永久+10% | AG50: 雾隐千流法·叁 | AI50: 200 | AJ50: 4 | AK50: 46 | AL50: =Y50*异常状态效果值!B2/100 -> 0.08 | AS50: 10
A51: 12023 | B51: 13007 | C51: 337.5 | D51: 1012023 | E51: 1112023 | F51: 雾隐千流法 | G51: 身体散发出一团迷雾。从迷雾中飞出{0}个冰球，每个冰球对敌人造成{1}%攻击力的伤害，并有{2}%概率施加1层寒气 | H51: 2 | I51: icon_s1202 | J51: S1202 | K51: 1202 | L51: 1202_timeline_TD | M51: 1 | N51: 1 | O51: 1 | P51: 4 | Q51: 100 | R51: 5;41;100 | S51: 2 | T51: 103 | U51: 10 | V51: 1212023 | W51: 1 | Y51: 5 | Z51: =ROUND(异常状态效果值!G12*(1-AL51-AN51*0.1)/AJ51,0) -> 41 | AA51: 100 | AF51: =CONCATENATE("冰球数量+",W51) -> 冰球数量+1 | AG51: 雾隐千流法·肆 | AI51: 227.7777778 | AJ51: 5 | AK51: 41 | AL51: =Y51*异常状态效果值!B2/100 -> 0.1 | AS51: 10
A52: 12024 | B52: 13007 | C52: 506.25 | D52: 1012024 | E52: 1112024 | F52: 雾隐千流法 | G52: 身体散发出一团迷雾。从迷雾中飞出{0}个冰球，每个冰球对敌人造成{1}%攻击力的伤害，并有{2}%概率施加1层寒气 | H52: 2 | I52: icon_s1202 | J52: S1202 | K52: 1202 | L52: 1202_timeline_TD | M52: 1 | N52: 1 | O52: 1 | P52: 5 | Q52: 100 | R52: 5;47;100 | S52: 2 | T52: 103 | U52: 20 | V52: 1212024 | W52: 10 | Y52: 5 | Z52: =ROUND(异常状态效果值!G13*(1-AL52-AN52*0.1)/AJ52,0) -> 47 | AA52: 100 | AF52: =CONCATENATE("人物",CHOOSE(T52-100,"生命","攻击","防御"),"永久+",W52,"%") -> 人物防御永久+10% | AG52: 雾隐千流法·伍 | AI52: 261.1111111 | AJ52: 5 | AK52: 47 | AL52: =Y52*异常状态效果值!B2/100 -> 0.1 | AS52: 20
A53: 12025 | B53: 13007 | C53: 759.375 | D53: 1012025 | E53: 1112025 | F53: 雾隐千流法 | G53: 身体散发出一团迷雾。从迷雾中飞出{0}个冰球，每个冰球对敌人造成{1}%攻击力的伤害，并有{2}%概率施加1层寒气 | H53: 2 | I53: icon_s1202 | J53: S1202 | K53: 1202 | L53: 1202_timeline_TD | M53: 1 | N53: 1 | O53: 1 | P53: 6 | Q53: 100 | R53: 6;44;100 | S53: 2 | T53: 103 | U53: 20 | V53: 1212025 | W53: 1 | Y53: 6 | Z53: =ROUND(异常状态效果值!G14*(1-AL53-AN53*0.1)/AJ53,0) -> 44 | AA53: 100 | AF53: =CONCATENATE("冰球数量+",W53) -> 冰球数量+1 | AG53: 雾隐千流法·陆 | AI53: 300 | AJ53: 6 | AK53: 44 | AL53: =Y53*异常状态效果值!B2/100 -> 0.12 | AS53: 20
N54: 1 | Q54: 100
B55: =B48+1 -> 13008 | C55: 100 | D55: =A55+1000000 -> 1000000 | E55: =A55+1100000 -> 1100000 | G55: 占位 | H55: 2 | J55: =CONCATENATE("S",K55) -> S1203 | K55: =K48+1 -> 1203 | L55: bingqiu_timeline_TD | M55: 1 | N55: 1 | O55: 1 | P55: 1 | Q55: 100 | R55: =_xlfn.TEXTJOIN(";",1,Y55:AE55) -> 4;120;30 | S55: 2 | T55: =_xlfn.TEXTJOIN(";",1,IF(AQ55="","",101),IF(AR55="","",102),IF(AS55="","",103),IF(AT55="","",106),IF(AU55="","",107),IF(AV55="","",108),IF(AW55="","",109),IF(AX55="","",110)) ->  | U55: =_xlfn.TEXTJOIN(";",1,AQ55:AX55) ->  | V55: -1 | Y55: 4 | Z55: 120 | AA55: 30 | AG55: =IF(F55="","",CONCATENATE(F55,"·",CHOOSE(P55,"壹","贰","叁","肆","伍","陆"))) ->  | AJ55: =Y55 -> 4 | AK55: =Z55 -> 120
B56: =B49+1 -> 13008 | C56: 150 | D56: 1000000 | E56: =A56+1100000 -> 1100000 | G56: 占位 | H56: 2 | J56: =CONCATENATE("S",K56) -> S1203 | K56: =K49+1 -> 1203 | L56: bingqiu_timeline_TD | M56: 1 | N56: 1 | O56: 1 | P56: 2 | Q56: 100 | R56: =_xlfn.TEXTJOIN(";",1,Y56:AE56) -> 4;120;30 | S56: 2 | T56: =_xlfn.TEXTJOIN(";",1,IF(AQ56="","",101),IF(AR56="","",102),IF(AS56="","",103),IF(AT56="","",106),IF(AU56="","",107),IF(AV56="","",108),IF(AW56="","",109),IF(AX56="","",110)) -> 102 | U56: =_xlfn.TEXTJOIN(";",1,AQ56:AX56) -> 10 | V56: =A56+1200000 -> 1200000 | W56: 1 | Y56: 4 | Z56: 120 | AA56: 30 | AF56: =CONCATENATE("冰球数量+",W56) -> 冰球数量+1 | AJ56: 4 | AK56: 120 | AR56: 10
B57: 13008 | C57: 225 | D57: 1000000 | E57: 1100000 | G57: 占位 | H57: 2 | J57: S1203 | K57: 1203 | L57: bingqiu_timeline_TD | M57: 1 | N57: 1 | O57: 1 | P57: 3 | Q57: 100 | R57: 4;120;30 | S57: 2 | T57: 102 | U57: 10 | V57: =A57+1200000 -> 1200000 | W57: 10 | Y57: 4 | Z57: 120 | AA57: 30 | AF57: =CONCATENATE("人物",CHOOSE(T57-100,"生命","攻击","防御"),"永久+",W57,"%") -> 人物攻击永久+10% | AJ57: 4 | AK57: 120 | AL57: 0.2 | AR57: 10
B58: 13008 | C58: 337.5 | D58: 1000000 | E58: 1100000 | G58: 占位 | H58: 2 | J58: S1203 | K58: 1203 | L58: bingqiu_timeline_TD | M58: 1 | N58: 1 | O58: 1 | P58: 4 | Q58: 100 | R58: 5;120;30 | S58: 2 | T58: 102 | U58: 20 | V58: 1200000 | W58: 1 | Y58: 5 | Z58: 120 | AA58: 30 | AF58: =CONCATENATE("冰球数量+",W58) -> 冰球数量+1 | AJ58: 5 | AK58: 120 | AL58: 0.2 | AR58: 20
B59: 13008 | C59: 506.25 | D59: 1000000 | E59: 1100000 | G59: 占位 | H59: 2 | J59: S1203 | K59: 1203 | L59: bingqiu_timeline_TD | M59: 1 | N59: 1 | O59: 1 | P59: 5 | Q59: 100 | R59: 5;120;30 | S59: 2 | T59: 102 | U59: 20 | V59: 1200000 | W59: 10 | Y59: 5 | Z59: 120 | AA59: 30 | AF59: =CONCATENATE("人物",CHOOSE(T59-100,"生命","攻击","防御"),"永久+",W59,"%") -> 人物攻击永久+10% | AJ59: 5 | AK59: 120 | AL59: 0.2 | AR59: 20
B60: 13008 | C60: 759.375 | D60: 1000000 | E60: 1100000 | G60: 占位 | H60: 2 | J60: S1203 | K60: 1203 | L60: bingqiu_timeline_TD | M60: 1 | N60: 1 | O60: 1 | P60: 6 | Q60: 100 | R60: 6;120;30 | S60: 2 | V60: 1200000 | W60: 1 | Y60: 6 | Z60: 120 | AA60: 30 | AF60: =CONCATENATE("冰球数量+",W60) -> 冰球数量+1 | AJ60: 6 | AK60: 120 | AL60: 0.2
N61: 1 | Q61: 100
A62: =K62*10+P62-1 -> 12040 | B62: =B55+1 -> 13009 | C62: =异常状态效果值!H23 -> 80 | D62: =A62+1000000 -> 1012040 | E62: =A62+1100000 -> 1112040 | F62: 水球 | G62: 发射{0}枚水球，每枚对敌人造成{1}%攻击力的伤害。 | H62: 2 | I62: icon_s1204 | J62: =CONCATENATE("S",K62) -> S1204 | K62: 1204 | L62: 1204_timeline_TD | M62: 1 | N62: 1 | O62: 1 | P62: 1 | Q62: 100 | R62: =_xlfn.TEXTJOIN(";",1,Y62:AE62) -> 3;50 | S62: 2 | T62: =_xlfn.TEXTJOIN(";",1,IF(AQ62="","",101),IF(AR62="","",102),IF(AS62="","",103),IF(AT62="","",106),IF(AU62="","",107),IF(AV62="","",108),IF(AW62="","",109),IF(AX62="","",110)) ->  | U62: =_xlfn.TEXTJOIN(";",1,AQ62:AX62) ->  | V62: -1 | Y62: 3 | Z62: =ROUND(异常状态效果值!H9*(1-AL62-AN62*0.1)/AJ62,0) -> 50 | AG62: 水球·壹 | AI62: 150 | AJ62: =Y62 -> 3 | AK62: =Z62 -> 50
A63: =K63*10+P63-1 -> 12041 | B63: =B56+1 -> 13009 | C63: =异常状态效果值!H24 -> 120 | D63: 1012041 | E63: =A63+1100000 -> 1112041 | F63: 水球 | G63: 发射{0}枚水球，每枚对敌人造成{1}%攻击力的伤害。 | H63: 2 | I63: icon_s1204 | J63: =CONCATENATE("S",K63) -> S1204 | K63: 1204 | L63: 1204_timeline_TD | M63: 1 | N63: 1 | O63: 1 | P63: 2 | Q63: 100 | R63: =_xlfn.TEXTJOIN(";",1,Y63:AE63) -> 3;57 | S63: 2 | T63: =_xlfn.TEXTJOIN(";",1,IF(AQ63="","",101),IF(AR63="","",102),IF(AS63="","",103),IF(AT63="","",106),IF(AU63="","",107),IF(AV63="","",108),IF(AW63="","",109),IF(AX63="","",110)) -> 102 | U63: =_xlfn.TEXTJOIN(";",1,AQ63:AX63) -> 5 | V63: =A63+1200000 -> 1212041 | W63: 5 | Y63: 3 | Z63: =ROUND(异常状态效果值!H10*(1-AL63-AN63*0.1)/AJ63,0) -> 57 | AF63: =CONCATENATE("人物",CHOOSE(T63-100,"生命","攻击","防御"),"永久+",W63,"%") -> 人物攻击永久+5% | AG63: 水球·贰 | AI63: 171 | AJ63: 3 | AK63: 57 | AR63: 5
A64: 12042 | B64: 13009 | C64: =异常状态效果值!H25 -> 180 | D64: 1012042 | E64: 1112042 | F64: 水球 | G64: 发射{0}枚水球，每枚对敌人造成{1}%攻击力的伤害。 | H64: 2 | I64: icon_s1204 | J64: S1204 | K64: 1204 | L64: 1204_timeline_TD | M64: 1 | N64: 1 | O64: 1 | P64: 3 | Q64: 100 | R64: 4;45 | S64: 2 | T64: 102 | U64: 5 | V64: =A64+1200000 -> 1212042 | W64: 1 | Y64: 4 | Z64: =ROUND(异常状态效果值!H11*(1-AL64-AN64*0.1)/AJ64,0) -> 45 | AF64: =CONCATENATE("水波数量+",W64) -> 水波数量+1 | AG64: 水球·叁 | AI64: 180 | AJ64: 4 | AK64: 45 | AR64: 5
A65: 12043 | B65: 13009 | C65: =异常状态效果值!H26 -> 270 | D65: 1012043 | E65: 1112043 | F65: 水球 | G65: 发射{0}枚水球，每枚对敌人造成{1}%攻击力的伤害。 | H65: 2 | I65: icon_s1204 | J65: S1204 | K65: 1204 | L65: 1204_timeline_TD | M65: 1 | N65: 1 | O65: 1 | P65: 4 | Q65: 100 | R65: 4;48 | S65: 2 | T65: 102 | U65: 10 | V65: 1212043 | W65: 10 | Y65: 4 | Z65: =ROUND(异常状态效果值!H12*(1-AL65-AN65*0.1)/AJ65,0) -> 48 | AF65: =CONCATENATE("人物",CHOOSE(T65-100,"生命","攻击","防御"),"永久+",W65,"%") -> 人物攻击永久+10% | AG65: 水球·肆 | AI65: 192 | AJ65: 4 | AK65: 48 | AR65: 10
A66: 12044 | B66: 13009 | C66: =异常状态效果值!H27 -> 405 | D66: 1012044 | E66: 1112044 | F66: 水球 | G66: 发射{0}枚水球，每枚对敌人造成{1}%攻击力的伤害。 | H66: 2 | I66: icon_s1204 | J66: S1204 | K66: 1204 | L66: 1204_timeline_TD | M66: 1 | N66: 1 | O66: 1 | P66: 5 | Q66: 100 | R66: 5;40 | S66: 2 | T66: 102 | U66: 10 | V66: 1212044 | W66: 1 | Y66: 5 | Z66: =ROUND(异常状态效果值!H13*(1-AL66-AN66*0.1)/AJ66,0) -> 40 | AF66: =CONCATENATE("水波数量+",W66) -> 水波数量+1 | AG66: 水球·伍 | AI66: 200 | AJ66: 5 | AK66: 40 | AR66: 10
A67: 12045 | B67: 13009 | C67: =异常状态效果值!H28 -> 607.5 | D67: 1012045 | E67: 1112045 | F67: 水球 | G67: 发射{0}枚水球，每枚对敌人造成{1}%攻击力的伤害。 | H67: 2 | I67: icon_s1204 | J67: S1204 | K67: 1204 | L67: 1204_timeline_TD | M67: 1 | N67: 1 | O67: 1 | P67: 6 | Q67: 100 | R67: 5;44 | S67: 2 | T67: 102 | U67: 15 | V67: 1212045 | W67: 15 | Y67: 5 | Z67: =ROUND(异常状态效果值!H14*(1-AL67-AN67*0.1)/AJ67,0) -> 44 | AF67: =CONCATENATE("人物",CHOOSE(T67-100,"生命","攻击","防御"),"永久+",W67,"%") -> 人物攻击永久+15% | AG67: 水球·陆 | AI67: 220 | AJ67: 5 | AK67: 44 | AR67: 15
N68: 1 | Q68: 100
A69: =K69*10+P69-1 -> 12050 | B69: =B62+1 -> 13010 | C69: =异常状态效果值!H23 -> 80 | D69: =A69+1000000 -> 1012050 | E69: =A69+1100000 -> 1112050 | F69: 冰刀 | G69: 发射{0}枚冰刀，每把冰刀对敌人造成{1}%攻击力的伤害。 | H69: 2 | I69: icon_s1205 | J69: =CONCATENATE("S",K69) -> S1205 | K69: 1205 | L69: 1205_timeline_TD | M69: 1 | N69: 1 | O69: 1 | P69: 1 | Q69: 100 | R69: =_xlfn.TEXTJOIN(";",1,Y69:AE69) -> 2;75 | S69: 2 | T69: =_xlfn.TEXTJOIN(";",1,IF(AQ69="","",101),IF(AR69="","",102),IF(AS69="","",103),IF(AT69="","",106),IF(AU69="","",107),IF(AV69="","",108),IF(AW69="","",109),IF(AX69="","",110)) ->  | U69: =_xlfn.TEXTJOIN(";",1,AQ69:AX69) ->  | V69: -1 | Y69: 2 | Z69: =ROUND(异常状态效果值!H9*(1-AL69-AN69*0.1)/AJ69,0) -> 75 | AG69: 冰刀·壹 | AI69: =IF(A69="","",AJ69*AK69/(1-AL69-AM69)) -> 150 | AJ69: =Y69 -> 2 | AK69: =Z69 -> 75
A70: =K70*10+P70-1 -> 12051 | B70: =B63+1 -> 13010 | C70: =异常状态效果值!H24 -> 120 | D70: 1012051 | E70: =A70+1100000 -> 1112051 | F70: 冰刀 | G70: 发射{0}枚冰刀，每把冰刀对敌人造成{1}%攻击力的伤害。 | H70: 2 | I70: icon_s1205 | J70: =CONCATENATE("S",K70) -> S1205 | K70: 1205 | L70: 1205_timeline_TD | M70: 1 | N70: 1 | O70: 1 | P70: 2 | Q70: 100 | R70: =_xlfn.TEXTJOIN(";",1,Y70:AE70) -> 2;85 | S70: 2 | T70: =_xlfn.TEXTJOIN(";",1,IF(AQ70="","",101),IF(AR70="","",102),IF(AS70="","",103),IF(AT70="","",106),IF(AU70="","",107),IF(AV70="","",108),IF(AW70="","",109),IF(AX70="","",110)) -> 103 | U70: =_xlfn.TEXTJOIN(";",1,AQ70:AX70) -> 5 | V70: =A70+1200000 -> 1212051 | W70: 5 | Y70: 2 | Z70: =ROUND(异常状态效果值!H10*(1-AL70-AN70*0.1)/AJ70,0) -> 85 | AF70: =CONCATENATE("人物",CHOOSE(T70-100,"生命","攻击","防御"),"永久+",W70,"%") -> 人物防御永久+5% | AG70: 冰刀·贰 | AI70: 170 | AJ70: 2 | AK70: 85 | AS70: 5
A71: 12052 | B71: 13010 | C71: =异常状态效果值!H25 -> 180 | D71: 1012052 | E71: 1112052 | F71: 冰刀 | G71: 发射{0}枚冰刀，每把冰刀对敌人造成{1}%攻击力的伤害。 | H71: 2 | I71: =IF(A71="","",CONCATENATE("icon_s",K71)) -> icon_s1205 | J71: S1205 | K71: 1205 | L71: 1205_timeline_TD | M71: 1 | N71: 1 | O71: 1 | P71: 3 | Q71: 100 | R71: 3;60 | S71: 2 | T71: 103 | U71: 5 | V71: =A71+1200000 -> 1212052 | W71: 1 | Y71: 3 | Z71: =ROUND(异常状态效果值!H11*(1-AL71-AN71*0.1)/AJ71,0) -> 60 | AF71: =CONCATENATE("冰刀数量+",W71) -> 冰刀数量+1 | AG71: 冰刀·叁 | AI71: 180 | AJ71: 3 | AK71: 60 | AS71: 5
A72: 12053 | B72: 13010 | C72: =异常状态效果值!H26 -> 270 | D72: 1012053 | E72: 1112053 | F72: 冰刀 | G72: 发射{0}枚冰刀，每把冰刀对敌人造成{1}%攻击力的伤害。 | H72: 2 | I72: icon_s1205 | J72: S1205 | K72: 1205 | L72: 1205_timeline_TD | M72: 1 | N72: 1 | O72: 1 | P72: 4 | Q72: 100 | R72: 3;63 | S72: 2 | T72: 103 | U72: 10 | V72: 1212053 | W72: 5 | Y72: 3 | Z72: =ROUND(异常状态效果值!H12*(1-AL72-AN72*0.1)/AJ72,0) -> 63 | AF72: =CONCATENATE("人物",CHOOSE(T72-100,"生命","攻击","防御"),"永久+",W72,"%") -> 人物防御永久+5% | AG72: 冰刀·肆 | AI72: 189 | AJ72: 3 | AK72: 63 | AS72: 10
A73: 12054 | B73: 13010 | C73: =异常状态效果值!H27 -> 405 | D73: 1012054 | E73: 1112054 | F73: 冰刀 | G73: 发射{0}枚冰刀，每把冰刀对敌人造成{1}%攻击力的伤害。 | H73: 2 | I73: icon_s1205 | J73: S1205 | K73: 1205 | L73: 1205_timeline_TD | M73: 1 | N73: 1 | O73: 1 | P73: 5 | Q73: 100 | R73: 4;50 | S73: 2 | T73: 103 | U73: 10 | V73: 1212054 | W73: 1 | Y73: 4 | Z73: =ROUND(异常状态效果值!H13*(1-AL73-AN73*0.1)/AJ73,0) -> 50 | AF73: =CONCATENATE("冰刀数量+",W73) -> 冰刀数量+1 | AG73: 冰刀·伍 | AI73: 200 | AJ73: 4 | AK73: 50 | AS73: 10
A74: 12055 | B74: 13010 | C74: =异常状态效果值!H28 -> 607.5 | D74: 1012055 | E74: 1112055 | F74: 冰刀 | G74: 发射{0}枚冰刀，每把冰刀对敌人造成{1}%攻击力的伤害。 | H74: 2 | I74: icon_s1205 | J74: S1205 | K74: 1205 | L74: 1205_timeline_TD | M74: 1 | N74: 1 | O74: 1 | P74: 6 | Q74: 100 | R74: 4;55 | S74: 2 | T74: 103 | U74: 15 | V74: 1212055 | W74: 5 | Y74: 4 | Z74: =ROUND(异常状态效果值!H14*(1-AL74-AN74*0.1)/AJ74,0) -> 55 | AF74: =CONCATENATE("人物",CHOOSE(T74-100,"生命","攻击","防御"),"永久+",W74,"%") -> 人物防御永久+5% | AG74: 冰刀·陆 | AI74: 220 | AJ74: 4 | AK74: 55 | AS74: 15
N75: 1 | Q75: 100 | AI75: =IF(A75="","",AJ75*AK75/(1-AL75-AM75)) -> 
A76: =K76*10+P76-1 -> 13010 | B76: =B69+1 -> 13011 | C76: 100 | D76: =A76+1000000 -> 1013010 | E76: =A76+1100000 -> 1113010 | F76: 瘴影千丝术 | G76: 发出{0}条细细的毒针，每颗毒针对敌人造成{1}%攻击力的伤害，每颗针有{2}%概率施加1层毒 | H76: 4 | I76: icon_s1301 | J76: =CONCATENATE("S",K76) -> S1301 | K76: 1301 | L76: 1301_timeline_TD | M76: 1 | N76: 1 | O76: 1 | P76: 1 | Q76: 100 | R76: =_xlfn.TEXTJOIN(";",1,Y76:AE76) -> 3;47;100 | S76: 2 | T76: =_xlfn.TEXTJOIN(";",1,IF(AQ76="","",101),IF(AR76="","",102),IF(AS76="","",103),IF(AT76="","",106),IF(AU76="","",107),IF(AV76="","",108),IF(AW76="","",109),IF(AX76="","",110)) ->  | U76: =_xlfn.TEXTJOIN(";",1,AQ76:AX76) ->  | V76: -1 | Y76: 3 | Z76: =ROUND(异常状态效果值!G9*(1-AL76-AN76*0.1)/AJ76,0) -> 47 | AA76: 100 | AG76: 瘴影千丝术·壹 | AI76: 150 | AJ76: =Y76 -> 3 | AK76: =Z76 -> 47 | AL76: =AJ76*异常状态效果值!B3/100 -> 0.06
A77: =K77*10+P77-1 -> 13011 | B77: =B70+1 -> 13011 | C77: 150 | D77: 1013011 | E77: =A77+1100000 -> 1113011 | F77: 瘴影千丝术 | G77: 发出{0}条细细的毒针，每颗毒针对敌人造成{1}%攻击力的伤害，每颗针有{2}%概率施加1层毒 | H77: 4 | I77: icon_s1301 | J77: =CONCATENATE("S",K77) -> S1301 | K77: 1301 | L77: 1301_timeline_TD | M77: 1 | N77: 1 | O77: 1 | P77: 2 | Q77: 100 | R77: =_xlfn.TEXTJOIN(";",1,Y77:AE77) -> 4;39;100 | S77: 2 | T77: =_xlfn.TEXTJOIN(";",1,IF(AQ77="","",101),IF(AR77="","",102),IF(AS77="","",103),IF(AT77="","",106),IF(AU77="","",107),IF(AV77="","",108),IF(AW77="","",109),IF(AX77="","",110)) ->  | U77: =_xlfn.TEXTJOIN(";",1,AQ77:AX77) ->  | V77: =A77+1200000 -> 1213011 | W77: 1 | Y77: 4 | Z77: =ROUND(异常状态效果值!G10*(1-AL77-AN77*0.1)/AJ77,0) -> 39 | AA77: 100 | AF77: =CONCATENATE("毒针数量+",W77) -> 毒针数量+1 | AG77: 瘴影千丝术·贰 | AI77: 169.5652174 | AJ77: 4 | AK77: 39 | AL77: =AJ77*异常状态效果值!B3/100 -> 0.08
A78: 13012 | B78: 13011 | C78: 225 | D78: 1013012 | E78: 1113012 | F78: 瘴影千丝术 | G78: 发出{0}条细细的毒针，每颗毒针对敌人造成{1}%攻击力的伤害，每颗针有{2}%概率施加1层毒 | H78: 4 | I78: icon_s1301 | J78: S1301 | K78: 1301 | L78: 1301_timeline_TD | M78: 1 | N78: 1 | O78: 1 | P78: 3 | Q78: 100 | R78: 4;46;100 | S78: 2 | T78: 101 | U78: 10 | V78: =A78+1200000 -> 1213012 | W78: 10 | Y78: 4 | Z78: =ROUND(异常状态效果值!G11*(1-AL78-AN78*0.1)/AJ78,0) -> 46 | AA78: 100 | AF78: =CONCATENATE("人物",CHOOSE(T78-100,"生命","攻击","防御"),"永久+",W78,"%") -> 人物生命永久+10% | AG78: =IF(F78="","",CONCATENATE(F78,"·",CHOOSE(P78,"壹","贰","叁","肆","伍","陆"))) -> 瘴影千丝术·叁 | AI78: 200 | AJ78: 4 | AK78: 46 | AL78: =AJ78*异常状态效果值!B3/100 -> 0.08 | AQ78: 10
A79: 13013 | B79: 13011 | C79: 337.5 | D79: 1013013 | E79: 1113013 | F79: 瘴影千丝术 | G79: 发出{0}条细细的毒针，每颗毒针对敌人造成{1}%攻击力的伤害，每颗针有{2}%概率施加1层毒 | H79: 4 | I79: icon_s1301 | J79: S1301 | K79: 1301 | L79: 1301_timeline_TD | M79: 1 | N79: 1 | O79: 1 | P79: 4 | Q79: 100 | R79: 5;41;100 | S79: 2 | T79: 101 | U79: 10 | V79: 1213013 | W79: 1 | Y79: 5 | Z79: =ROUND(异常状态效果值!G12*(1-AL79-AN79*0.1)/AJ79,0) -> 41 | AA79: 100 | AF79: =CONCATENATE("毒针数量+",W79) -> 毒针数量+1 | AG79: 瘴影千丝术·肆 | AI79: 227.7777778 | AJ79: 5 | AK79: 41 | AL79: =AJ79*异常状态效果值!B3/100 -> 0.1 | AQ79: 10
A80: 13014 | B80: 13011 | C80: 506.25 | D80: 1013014 | E80: 1113014 | F80: 瘴影千丝术 | G80: 发出{0}条细细的毒针，每颗毒针对敌人造成{1}%攻击力的伤害，每颗针有{2}%概率施加1层毒 | H80: 4 | I80: icon_s1301 | J80: S1301 | K80: 1301 | L80: 1301_timeline_TD | M80: 1 | N80: 1 | O80: 1 | P80: 5 | Q80: 100 | R80: 5;47;100 | S80: 2 | T80: 101 | U80: 20 | V80: 1213014 | W80: 10 | Y80: 5 | Z80: =ROUND(异常状态效果值!G13*(1-AL80-AN80*0.1)/AJ80,0) -> 47 | AA80: 100 | AF80: =CONCATENATE("人物",CHOOSE(T80-100,"生命","攻击","防御"),"永久+",W80,"%") -> 人物生命永久+10% | AG80: 瘴影千丝术·伍 | AI80: 261.1111111 | AJ80: 5 | AK80: 47 | AL80: =AJ80*异常状态效果值!B3/100 -> 0.1 | AQ80: 20
A81: 13015 | B81: 13011 | C81: 759.375 | D81: 1013015 | E81: 1113015 | F81: 瘴影千丝术 | G81: 发出{0}条细细的毒针，每颗毒针对敌人造成{1}%攻击力的伤害，每颗针有{2}%概率施加1层毒 | H81: 4 | I81: icon_s1301 | J81: S1301 | K81: 1301 | L81: 1301_timeline_TD | M81: 1 | N81: 1 | O81: 1 | P81: 6 | Q81: 100 | R81: 6;44;100 | S81: 2 | T81: 101 | U81: 20 | V81: 1213015 | W81: 1 | Y81: 6 | Z81: =ROUND(异常状态效果值!G14*(1-AL81-AN81*0.1)/AJ81,0) -> 44 | AA81: 100 | AF81: =CONCATENATE("毒针数量+",W81) -> 毒针数量+1 | AG81: 瘴影千丝术·陆 | AI81: 300 | AJ81: 6 | AK81: 44 | AL81: =AJ81*异常状态效果值!B3/100 -> 0.12 | AQ81: 20
N82: 1 | Q82: 100
A83: =K83*10+P83-1 -> 13020 | B83: =B76+1 -> 13012 | C83: 100 | D83: =A83+1000000 -> 1013020 | E83: =A83+1100000 -> 1113020 | F83: 蚀骨腐血掌 | G83: 迅速释放{0}掌，每掌对敌人造成{1}%攻击力的伤害，并对敌人施加1层毒,每层毒额外提高{2}%伤害 | H83: 4 | I83: icon_s1302 | J83: =CONCATENATE("S",K83) -> S1302 | K83: 1302 | L83: 1302_timeline_TD | M83: 1 | N83: 1 | O83: 1 | P83: 1 | Q83: 100 | R83: =_xlfn.TEXTJOIN(";",1,Y83:AE83) -> 2;77;5 | S83: 2 | T83: =_xlfn.TEXTJOIN(";",1,IF(AQ83="","",101),IF(AR83="","",102),IF(AS83="","",103),IF(AT83="","",106),IF(AU83="","",107),IF(AV83="","",108),IF(AW83="","",109),IF(AX83="","",110)) ->  | U83: =_xlfn.TEXTJOIN(";",1,AQ83:AX83) ->  | V83: -1 | Y83: 2 | Z83: =ROUND(异常状态效果值!F9*(1-AL83-AN83*0.1-AM83)/AJ83,0) -> 77 | AA83: 5 | AG83: 蚀骨腐血掌·壹 | AI83: =IF(A83="","",AJ83*AK83/(1-AL83-AM83)) -> 169.2307692 | AJ83: =Y83 -> 2 | AK83: =Z83 -> 77 | AL83: =AJ83*异常状态效果值!B3/100 -> 0.04 | AM83: =AA83/100 -> 0.05
A84: =K84*10+P84-1 -> 13021 | B84: =B77+1 -> 13012 | C84: 150 | D84: 1013021 | E84: =A84+1100000 -> 1113021 | F84: 蚀骨腐血掌 | G84: 迅速释放{0}掌，每掌对敌人造成{1}%攻击力的伤害，并对敌人施加1层毒,每层毒额外提高{2}%伤害 | H84: 4 | I84: icon_s1302 | J84: =CONCATENATE("S",K84) -> S1302 | K84: 1302 | L84: 1302_timeline_TD | M84: 1 | N84: 1 | O84: 1 | P84: 2 | Q84: 100 | R84: =_xlfn.TEXTJOIN(";",1,Y84:AE84) -> 3;59;6 | S84: 2 | T84: =_xlfn.TEXTJOIN(";",1,IF(AQ84="","",101),IF(AR84="","",102),IF(AS84="","",103),IF(AT84="","",106),IF(AU84="","",107),IF(AV84="","",108),IF(AW84="","",109),IF(AX84="","",110)) ->  | U84: =_xlfn.TEXTJOIN(";",1,AQ84:AX84) ->  | V84: =A84+1200000 -> 1213021 | W84: 1 | Y84: 3 | Z84: =ROUND(异常状态效果值!F10*(1-AL84-AN84*0.1-AM84)/AJ84,0) -> 59 | AA84: 6 | AF84: =CONCATENATE("手掌数量+",W84) -> 手掌数量+1 | AG84: 蚀骨腐血掌·贰 | AI84: 201.1363636 | AJ84: 3 | AK84: 59 | AL84: =AJ84*异常状态效果值!B3/100 -> 0.06 | AM84: 0.06
A85: 13022 | B85: 13012 | C85: 225 | D85: 1013022 | E85: 1113022 | F85: 蚀骨腐血掌 | G85: 迅速释放{0}掌，每掌对敌人造成{1}%攻击力的伤害，并对敌人施加1层毒,每层毒额外提高{2}%伤害 | H85: 4 | I85: icon_s1302 | J85: S1302 | K85: 1302 | L85: 1302_timeline_TD | M85: 1 | N85: 1 | O85: 1 | P85: 3 | Q85: 100 | R85: 3;67;7 | S85: 2 | T85: 103 | U85: 10 | V85: =A85+1200000 -> 1213022 | W85: 10 | Y85: 3 | Z85: =ROUND(异常状态效果值!F11*(1-AL85-AN85*0.1-AM85)/AJ85,0) -> 67 | AA85: 7 | AF85: =CONCATENATE("人物",CHOOSE(T85-100,"生命","攻击","防御"),"永久+",W85,"%") -> 人物防御永久+10% | AG85: 蚀骨腐血掌·叁 | AI85: 231.0344828 | AJ85: 3 | AK85: 67 | AL85: =AJ85*异常状态效果值!B3/100 -> 0.06 | AM85: 0.07 | AS85: 10
A86: 13023 | B86: 13012 | C86: 337.5 | D86: 1013023 | E86: 1113023 | F86: 蚀骨腐血掌 | G86: 迅速释放{0}掌，每掌对敌人造成{1}%攻击力的伤害，并对敌人施加1层毒,每层毒额外提高{2}%伤害 | H86: 4 | I86: icon_s1302 | J86: S1302 | K86: 1302 | L86: 1302_timeline_TD | M86: 1 | N86: 1 | O86: 1 | P86: 4 | Q86: 100 | R86: 4;55;8 | S86: 2 | T86: 103 | U86: 10 | V86: 1213023 | W86: 1 | Y86: 4 | Z86: =ROUND(异常状态效果值!F12*(1-AL86-AN86*0.1-AM86)/AJ86,0) -> 55 | AA86: 8 | AF86: =CONCATENATE("手掌数量+",W86) -> 手掌数量+1 | AG86: 蚀骨腐血掌·肆 | AI86: 261.9047619 | AJ86: 4 | AK86: 55 | AL86: =AJ86*异常状态效果值!B3/100 -> 0.08 | AM86: 0.08 | AS86: 10
A87: 13024 | B87: 13012 | C87: 506.25 | D87: 1013024 | E87: 1113024 | F87: 蚀骨腐血掌 | G87: 迅速释放{0}掌，每掌对敌人造成{1}%攻击力的伤害，并对敌人施加1层毒,每层毒额外提高{2}%伤害 | H87: 4 | I87: icon_s1302 | J87: S1302 | K87: 1302 | L87: 1302_timeline_TD | M87: 1 | N87: 1 | O87: 1 | P87: 5 | Q87: 100 | R87: 4;62;9 | S87: 2 | T87: 103 | U87: 20 | V87: 1213024 | W87: 10 | Y87: 4 | Z87: =ROUND(异常状态效果值!F13*(1-AL87-AN87*0.1-AM87)/AJ87,0) -> 62 | AA87: 9 | AF87: =CONCATENATE("人物",CHOOSE(T87-100,"生命","攻击","防御"),"永久+",W87,"%") -> 人物防御永久+10% | AG87: 蚀骨腐血掌·伍 | AI87: 298.7951807 | AJ87: 4 | AK87: 62 | AL87: =AJ87*异常状态效果值!B3/100 -> 0.08 | AM87: 0.09 | AS87: 20
A88: 13025 | B88: 13012 | C88: 759.375 | D88: 1013025 | E88: 1113025 | F88: 蚀骨腐血掌 | G88: 迅速释放{0}掌，每掌对敌人造成{1}%攻击力的伤害，并对敌人施加1层毒,每层毒额外提高{2}%伤害 | H88: 4 | I88: icon_s1302 | J88: S1302 | K88: 1302 | L88: 1302_timeline_TD | M88: 1 | N88: 1 | O88: 1 | P88: 6 | Q88: 100 | R88: 5;58;10 | S88: 2 | T88: 103 | U88: 20 | V88: 1213025 | W88: 1 | Y88: 5 | Z88: =ROUND(异常状态效果值!F14*(1-AL88-AN88*0.1-AM88)/AJ88,0) -> 58 | AA88: 10 | AF88: =CONCATENATE("手掌数量+",W88) -> 手掌数量+1 | AG88: 蚀骨腐血掌·陆 | AI88: 362.5 | AJ88: 5 | AK88: 58 | AL88: =AJ88*异常状态效果值!B3/100 -> 0.1 | AM88: 0.1 | AS88: 20
N89: 1 | Q89: 100
B90: =B83+1 -> 13013 | C90: 100 | D90: =A90+1000000 -> 1000000 | E90: =A90+1100000 -> 1100000 | G90: 占位 | H90: 4 | J90: =CONCATENATE("S",K90) -> S1303 | K90: 1303 | L90: duzhen_timeline_TD | M90: 1 | N90: 1 | O90: 1 | P90: 1 | Q90: 100 | R90: =_xlfn.TEXTJOIN(";",1,Y90:AE90) -> 3;90;45;5;6;100 | S90: 2 | T90: =_xlfn.TEXTJOIN(";",1,IF(AQ90="","",101),IF(AR90="","",102),IF(AS90="","",103),IF(AT90="","",106),IF(AU90="","",107),IF(AV90="","",108),IF(AW90="","",109),IF(AX90="","",110)) ->  | U90: =_xlfn.TEXTJOIN(";",1,AQ90:AX90) ->  | V90: -1 | Y90: 3 | Z90: 90 | AA90: 45 | AB90: 5 | AC90: 6 | AD90: 100 | AG90: =IF(F90="","",CONCATENATE(F90,"·",CHOOSE(P90,"壹","贰","叁","肆","伍","陆"))) ->  | AJ90: =Y90 -> 3 | AK90: =Z90 -> 90
B91: =B84+1 -> 13013 | C91: 150 | D91: 1000000 | E91: =A91+1100000 -> 1100000 | G91: 占位 | H91: 4 | J91: =CONCATENATE("S",K91) -> S1303 | K91: 1303 | L91: duzhen_timeline_TD | M91: 1 | N91: 1 | O91: 1 | P91: 2 | Q91: 100 | R91: =_xlfn.TEXTJOIN(";",1,Y91:AE91) -> 4;90;45;5;6;100 | S91: 2 | T91: =_xlfn.TEXTJOIN(";",1,IF(AQ91="","",101),IF(AR91="","",102),IF(AS91="","",103),IF(AT91="","",106),IF(AU91="","",107),IF(AV91="","",108),IF(AW91="","",109),IF(AX91="","",110)) ->  | U91: =_xlfn.TEXTJOIN(";",1,AQ91:AX91) ->  | V91: =A91+1200000 -> 1200000 | W91: 1 | Y91: 4 | Z91: 90 | AA91: 45 | AB91: 5 | AC91: 6 | AD91: 100 | AF91: =CONCATENATE("手掌数量+",W91) -> 手掌数量+1 | AJ91: 4 | AK91: 90
B92: 13013 | C92: 225 | D92: 1000000 | E92: 1100000 | G92: 占位 | H92: 4 | J92: S1303 | K92: 1303 | L92: duzhen_timeline_TD | M92: 1 | N92: 1 | O92: 1 | P92: 3 | Q92: 100 | R92: 4;90;45;5;6;100 | S92: 2 | T92: 102 | U92: 10 | V92: =A92+1200000 -> 1200000 | W92: 10 | Y92: 4 | Z92: 90 | AA92: 45 | AB92: 5 | AC92: 6 | AD92: 100 | AF92: =CONCATENATE("人物",CHOOSE(T92-100,"生命","攻击","防御"),"永久+",W92,"%") -> 人物攻击永久+10% | AJ92: 4 | AK92: 90 | AR92: 10
B93: 13013 | C93: 337.5 | D93: 1000000 | E93: 1100000 | G93: 占位 | H93: 4 | J93: S1303 | K93: 1303 | L93: duzhen_timeline_TD | M93: 1 | N93: 1 | O93: 1 | P93: 4 | Q93: 100 | R93: 5;90;45;5;6;100 | S93: 2 | T93: 102 | U93: 10 | V93: 1200000 | W93: 1 | Y93: 5 | Z93: 90 | AA93: 45 | AB93: 5 | AC93: 6 | AD93: 100 | AF93: =CONCATENATE("手掌数量+",W93) -> 手掌数量+1 | AJ93: 5 | AK93: 90 | AR93: 10
B94: 13013 | C94: 506.25 | D94: 1000000 | E94: 1100000 | G94: 占位 | H94: 4 | J94: S1303 | K94: 1303 | L94: duzhen_timeline_TD | M94: 1 | N94: 1 | O94: 1 | P94: 5 | Q94: 100 | R94: 5;90;45;5;6;100 | S94: 2 | T94: 102 | U94: 20 | V94: 1200000 | W94: 10 | Y94: 5 | Z94: 90 | AA94: 45 | AB94: 5 | AC94: 6 | AD94: 100 | AF94: =CONCATENATE("人物",CHOOSE(T94-100,"生命","攻击","防御"),"永久+",W94,"%") -> 人物攻击永久+10% | AJ94: 5 | AK94: 90 | AR94: 20
B95: 13013 | C95: 759.375 | D95: 1000000 | E95: 1100000 | G95: 占位 | H95: 4 | J95: S1303 | K95: 1303 | L95: duzhen_timeline_TD | M95: 1 | N95: 1 | O95: 1 | P95: 6 | Q95: 100 | R95: 6;90;45;5;6;100 | S95: 2 | T95: 102 | U95: 20 | V95: 1200000 | W95: 1 | Y95: 6 | Z95: 90 | AA95: 45 | AB95: 5 | AC95: 6 | AD95: 100 | AF95: =CONCATENATE("手掌数量+",W95) -> 手掌数量+1 | AJ95: 6 | AK95: 90 | AR95: 20
N96: 1 | Q96: 100
A97: =K97*10+P97-1 -> 13040 | B97: =B90+1 -> 13014 | C97: =异常状态效果值!H23 -> 80 | D97: =A97+1000000 -> 1013040 | E97: =A97+1100000 -> 1113040 | F97: 竹刺 | G97: 发射{0}枚竹刺，每发对敌人造成{1}%攻击力的伤害。 | H97: 4 | I97: icon_s1304 | J97: =CONCATENATE("S",K97) -> S1304 | K97: 1304 | L97: 1304_timeline_TD | M97: 1 | N97: 1 | O97: 1 | P97: 1 | Q97: 100 | R97: =_xlfn.TEXTJOIN(";",1,Y97:AE97) -> 3;50 | S97: 2 | T97: =_xlfn.TEXTJOIN(";",1,IF(AQ97="","",101),IF(AR97="","",102),IF(AS97="","",103),IF(AT97="","",106),IF(AU97="","",107),IF(AV97="","",108),IF(AW97="","",109),IF(AX97="","",110)) ->  | U97: =_xlfn.TEXTJOIN(";",1,AQ97:AX97) ->  | V97: -1 | Y97: 3 | Z97: =ROUND(异常状态效果值!H9*(1-AL97-AN97*0.1)/AJ97,0) -> 50 | AG97: 竹刺·壹 | AI97: 150 | AJ97: =Y97 -> 3 | AK97: =Z97 -> 50
A98: =K98*10+P98-1 -> 13041 | B98: =B91+1 -> 13014 | C98: =异常状态效果值!H24 -> 120 | D98: 1013041 | E98: =A98+1100000 -> 1113041 | F98: 竹刺 | G98: 发射{0}枚竹刺，每发对敌人造成{1}%攻击力的伤害。 | H98: 4 | I98: icon_s1304 | J98: =CONCATENATE("S",K98) -> S1304 | K98: 1304 | L98: 1304_timeline_TD | M98: 1 | N98: 1 | O98: 1 | P98: 2 | Q98: 100 | R98: =_xlfn.TEXTJOIN(";",1,Y98:AE98) -> 3;57 | S98: 2 | T98: =_xlfn.TEXTJOIN(";",1,IF(AQ98="","",101),IF(AR98="","",102),IF(AS98="","",103),IF(AT98="","",106),IF(AU98="","",107),IF(AV98="","",108),IF(AW98="","",109),IF(AX98="","",110)) -> 101 | U98: =_xlfn.TEXTJOIN(";",1,AQ98:AX98) -> 5 | V98: =A98+1200000 -> 1213041 | W98: 5 | Y98: 3 | Z98: =ROUND(异常状态效果值!H10*(1-AL98-AN98*0.1)/AJ98,0) -> 57 | AF98: =CONCATENATE("人物",CHOOSE(T98-100,"生命","攻击","防御"),"永久+",W98,"%") -> 人物生命永久+5% | AG98: 竹刺·贰 | AI98: 171 | AJ98: 3 | AK98: 57 | AQ98: 5
A99: 13042 | B99: 13014 | C99: =异常状态效果值!H25 -> 180 | D99: 1013042 | E99: 1113042 | F99: 竹刺 | G99: 发射{0}枚竹刺，每发对敌人造成{1}%攻击力的伤害。 | H99: 4 | I99: icon_s1304 | J99: S1304 | K99: 1304 | L99: 1304_timeline_TD | M99: 1 | N99: 1 | O99: 1 | P99: 3 | Q99: 100 | R99: 4;45 | S99: 2 | T99: 101 | U99: 5 | V99: =A99+1200000 -> 1213042 | W99: 1 | Y99: 4 | Z99: =ROUND(异常状态效果值!H11*(1-AL99-AN99*0.1)/AJ99,0) -> 45 | AF99: =CONCATENATE("竹刺数量+",W99) -> 竹刺数量+1 | AG99: 竹刺·叁 | AI99: 180 | AJ99: 4 | AK99: 45 | AQ99: 5
A100: 13043 | B100: 13014 | C100: =异常状态效果值!H26 -> 270 | D100: 1013043 | E100: 1113043 | F100: 竹刺 | G100: 发射{0}枚竹刺，每发对敌人造成{1}%攻击力的伤害。 | H100: 4 | I100: icon_s1304 | J100: S1304 | K100: 1304 | L100: 1304_timeline_TD | M100: 1 | N100: 1 | O100: 1 | P100: 4 | Q100: 100 | R100: 4;48 | S100: 2 | T100: 101 | U100: 10 | V100: 1213043 | W100: 5 | Y100: 4 | Z100: =ROUND(异常状态效果值!H12*(1-AL100-AN100*0.1)/AJ100,0) -> 48 | AF100: =CONCATENATE("人物",CHOOSE(T100-100,"生命","攻击","防御"),"永久+",W100,"%") -> 人物生命永久+5% | AG100: 竹刺·肆 | AI100: 192 | AJ100: 4 | AK100: 48 | AQ100: 10
A101: 13044 | B101: 13014 | C101: =异常状态效果值!H27 -> 405 | D101: 1013044 | E101: 1113044 | F101: 竹刺 | G101: 发射{0}枚竹刺，每发对敌人造成{1}%攻击力的伤害。 | H101: 4 | I101: icon_s1304 | J101: S1304 | K101: 1304 | L101: 1304_timeline_TD | M101: 1 | N101: 1 | O101: 1 | P101: 5 | Q101: 100 | R101: 5;40 | S101: 2 | T101: 101 | U101: 10 | V101: 1213044 | W101: 1 | Y101: 5 | Z101: =ROUND(异常状态效果值!H13*(1-AL101-AN101*0.1)/AJ101,0) -> 40 | AF101: =CONCATENATE("竹刺数量+",W101) -> 竹刺数量+1 | AG101: 竹刺·伍 | AI101: 200 | AJ101: 5 | AK101: 40 | AQ101: 10
A102: 13045 | B102: 13014 | C102: =异常状态效果值!H28 -> 607.5 | D102: 1013045 | E102: 1113045 | F102: 竹刺 | G102: 发射{0}枚竹刺，每发对敌人造成{1}%攻击力的伤害。 | H102: 4 | I102: icon_s1304 | J102: S1304 | K102: 1304 | L102: 1304_timeline_TD | M102: 1 | N102: 1 | O102: 1 | P102: 6 | Q102: 100 | R102: 5;44 | S102: 2 | T102: 101 | U102: 15 | V102: 1213045 | W102: 5 | Y102: 5 | Z102: =ROUND(异常状态效果值!H14*(1-AL102-AN102*0.1)/AJ102,0) -> 44 | AF102: =CONCATENATE("人物",CHOOSE(T102-100,"生命","攻击","防御"),"永久+",W102,"%") -> 人物生命永久+5% | AG102: 竹刺·陆 | AI102: 220 | AJ102: 5 | AK102: 44 | AQ102: 15
N103: 1 | Q103: 100
A104: =K104*10+P104-1 -> 13050 | B104: =B97+1 -> 13015 | C104: =异常状态效果值!H23 -> 80 | D104: =A104+1000000 -> 1013050 | E104: =A104+1100000 -> 1113050 | F104: 飞叶 | G104: 发射{0}枚飞叶，每发对敌人造成{1}%攻击力的伤害。 | H104: 4 | I104: icon_s1305 | J104: =CONCATENATE("S",K104) -> S1305 | K104: 1305 | L104: 1305_timeline_TD | M104: 1 | N104: 1 | O104: 1 | P104: 1 | Q104: 100 | R104: =_xlfn.TEXTJOIN(";",1,Y104:AE104) -> 3;50 | S104: 2 | T104: =_xlfn.TEXTJOIN(";",1,IF(AQ104="","",101),IF(AR104="","",102),IF(AS104="","",103),IF(AT104="","",106),IF(AU104="","",107),IF(AV104="","",108),IF(AW104="","",109),IF(AX104="","",110)) ->  | U104: =_xlfn.TEXTJOIN(";",1,AQ104:AX104) ->  | V104: -1 | Y104: 3 | Z104: =ROUND(异常状态效果值!H9*(1-AL104-AN104*0.1)/AJ104,0) -> 50 | AG104: 飞叶·壹 | AI104: =IF(A104="","",AJ104*AK104/(1-AL104-AM104)) -> 150 | AJ104: =Y104 -> 3 | AK104: =Z104 -> 50
A105: =K105*10+P105-1 -> 13051 | B105: =B98+1 -> 13015 | C105: =异常状态效果值!H24 -> 120 | D105: 1013051 | E105: =A105+1100000 -> 1113051 | F105: 飞叶 | G105: 发射{0}枚飞叶，每发对敌人造成{1}%攻击力的伤害。 | H105: 4 | I105: icon_s1305 | J105: =CONCATENATE("S",K105) -> S1305 | K105: 1305 | L105: 1305_timeline_TD | M105: 1 | N105: 1 | O105: 1 | P105: 2 | Q105: 100 | R105: =_xlfn.TEXTJOIN(";",1,Y105:AE105) -> 3;57 | S105: 2 | T105: =_xlfn.TEXTJOIN(";",1,IF(AQ105="","",101),IF(AR105="","",102),IF(AS105="","",103),IF(AT105="","",106),IF(AU105="","",107),IF(AV105="","",108),IF(AW105="","",109),IF(AX105="","",110)) -> 102 | U105: =_xlfn.TEXTJOIN(";",1,AQ105:AX105) -> 5 | V105: =A105+1200000 -> 1213051 | W105: 5 | Y105: 3 | Z105: =ROUND(异常状态效果值!H10*(1-AL105-AN105*0.1)/AJ105,0) -> 57 | AF105: =CONCATENATE("人物",CHOOSE(T105-100,"生命","攻击","防御"),"永久+",W105,"%") -> 人物攻击永久+5% | AG105: 飞叶·贰 | AI105: 171 | AJ105: 3 | AK105: 57 | AR105: 5
A106: 13052 | B106: 13015 | C106: =异常状态效果值!H25 -> 180 | D106: 1013052 | E106: 1113052 | F106: 飞叶 | G106: 发射{0}枚飞叶，每发对敌人造成{1}%攻击力的伤害。 | H106: 4 | I106: icon_s1305 | J106: S1305 | K106: 1305 | L106: 1305_timeline_TD | M106: 1 | N106: 1 | O106: 1 | P106: 3 | Q106: 100 | R106: 4;45 | S106: 2 | T106: 102 | U106: 5 | V106: =A106+1200000 -> 1213052 | W106: 1 | Y106: 4 | Z106: =ROUND(异常状态效果值!H11*(1-AL106-AN106*0.1)/AJ106,0) -> 45 | AF106: =CONCATENATE("飞叶数量+",W106) -> 飞叶数量+1 | AG106: 飞叶·叁 | AI106: 180 | AJ106: 4 | AK106: 45 | AR106: 5
A107: 13053 | B107: 13015 | C107: =异常状态效果值!H26 -> 270 | D107: 1013053 | E107: 1113053 | F107: 飞叶 | G107: 发射{0}枚飞叶，每发对敌人造成{1}%攻击力的伤害。 | H107: 4 | I107: icon_s1305 | J107: S1305 | K107: 1305 | L107: 1305_timeline_TD | M107: 1 | N107: 1 | O107: 1 | P107: 4 | Q107: 100 | R107: 4;48 | S107: 2 | T107: 102 | U107: 10 | V107: 1213053 | W107: 5 | Y107: 4 | Z107: =ROUND(异常状态效果值!H12*(1-AL107-AN107*0.1)/AJ107,0) -> 48 | AF107: =CONCATENATE("人物",CHOOSE(T107-100,"生命","攻击","防御"),"永久+",W107,"%") -> 人物攻击永久+5% | AG107: 飞叶·肆 | AI107: 192 | AJ107: 4 | AK107: 48 | AR107: 10
A108: 13054 | B108: 13015 | C108: =异常状态效果值!H27 -> 405 | D108: 1013054 | E108: 1113054 | F108: 飞叶 | G108: 发射{0}枚飞叶，每发对敌人造成{1}%攻击力的伤害。 | H108: 4 | I108: icon_s1305 | J108: S1305 | K108: 1305 | L108: 1305_timeline_TD | M108: 1 | N108: 1 | O108: 1 | P108: 5 | Q108: 100 | R108: 5;40 | S108: 2 | T108: 102 | U108: 10 | V108: 1213054 | W108: 1 | Y108: 5 | Z108: =ROUND(异常状态效果值!H13*(1-AL108-AN108*0.1)/AJ108,0) -> 40 | AF108: =CONCATENATE("飞叶数量+",W108) -> 飞叶数量+1 | AG108: 飞叶·伍 | AI108: 200 | AJ108: 5 | AK108: 40 | AR108: 10
A109: 13055 | B109: 13015 | C109: =异常状态效果值!H28 -> 607.5 | D109: 1013055 | E109: 1113055 | F109: 飞叶 | G109: 发射{0}枚飞叶，每发对敌人造成{1}%攻击力的伤害。 | H109: 4 | I109: icon_s1305 | J109: S1305 | K109: 1305 | L109: 1305_timeline_TD | M109: 1 | N109: 1 | O109: 1 | P109: 6 | Q109: 100 | R109: 5;44 | S109: 2 | T109: 102 | U109: 15 | V109: 1213055 | W109: 5 | Y109: 5 | Z109: =ROUND(异常状态效果值!H14*(1-AL109-AN109*0.1)/AJ109,0) -> 44 | AF109: =CONCATENATE("人物",CHOOSE(T109-100,"生命","攻击","防御"),"永久+",W109,"%") -> 人物攻击永久+5% | AG109: 飞叶·陆 | AI109: 220 | AJ109: 5 | AK109: 44 | AR109: 15
N110: 1 | Q110: 100
A111: =K111*10+P111-1 -> 14010 | B111: =B104+1 -> 13016 | C111: 100 | D111: =A111+1000000 -> 1014010 | E111: =A111+1100000 -> 1114010 | F111: 烈焰剑 | G111: 向前方发出{0}柄飞剑，每柄飞剑对敌人造成{1}%攻击力的伤害，并有{2}%的概率施加1层灼烧。 | H111: 8 | I111: icon_s1401 | J111: =CONCATENATE("S",K111) -> S1401 | K111: 1401 | L111: 1401_timeline_TD | M111: 1 | N111: 1 | O111: 1 | P111: 1 | Q111: 100 | R111: =_xlfn.TEXTJOIN(";",1,Y111:AE111) -> 3;53;100 | S111: 2 | T111: =_xlfn.TEXTJOIN(";",1,IF(AQ111="","",101),IF(AR111="","",102),IF(AS111="","",103),IF(AT111="","",106),IF(AU111="","",107),IF(AV111="","",108),IF(AW111="","",109),IF(AX111="","",110)) ->  | U111: =_xlfn.TEXTJOIN(";",1,AQ111:AX111) ->  | V111: -1 | Y111: 3 | Z111: =ROUND(异常状态效果值!F9*(1-AL111-AN111*0.1)/AJ111,0) -> 53 | AA111: 100 | AG111: 烈焰剑·壹 | AI111: 169.1489362 | AJ111: =Y111 -> 3 | AK111: =Z111 -> 53 | AL111: =Y111*异常状态效果值!B4/100 -> 0.06
A112: =K112*10+P112-1 -> 14011 | B112: =B105+1 -> 13016 | C112: 150 | D112: 1014011 | E112: =A112+1100000 -> 1114011 | F112: 烈焰剑 | G112: 向前方发出{0}柄飞剑，每柄飞剑对敌人造成{1}%攻击力的伤害，并有{2}%的概率施加1层灼烧。 | H112: 8 | I112: icon_s1401 | J112: =CONCATENATE("S",K112) -> S1401 | K112: 1401 | L112: 1401_timeline_TD | M112: 1 | N112: 1 | O112: 1 | P112: 2 | Q112: 100 | R112: =_xlfn.TEXTJOIN(";",1,Y112:AE112) -> 4;46;100 | S112: 2 | T112: =_xlfn.TEXTJOIN(";",1,IF(AQ112="","",101),IF(AR112="","",102),IF(AS112="","",103),IF(AT112="","",106),IF(AU112="","",107),IF(AV112="","",108),IF(AW112="","",109),IF(AX112="","",110)) ->  | U112: =_xlfn.TEXTJOIN(";",1,AQ112:AX112) ->  | V112: =A112+1200000 -> 1214011 | W112: 1 | Y112: 4 | Z112: =ROUND(异常状态效果值!F10*(1-AL112-AN112*0.1)/AJ112,0) -> 46 | AA112: 100 | AF112: =CONCATENATE("剑柄数量+",W112) -> 剑柄数量+1 | AG112: 烈焰剑·贰 | AI112: 200 | AJ112: 4 | AK112: 46 | AL112: =Y112*异常状态效果值!B4/100 -> 0.08
A113: 14012 | B113: 13016 | C113: 225 | D113: 1014012 | E113: 1114012 | F113: 烈焰剑 | G113: 向前方发出{0}柄飞剑，每柄飞剑对敌人造成{1}%攻击力的伤害，并有{2}%的概率施加1层灼烧。 | H113: 8 | I113: icon_s1401 | J113: S1401 | K113: 1401 | L113: 1401_timeline_TD | M113: 1 | N113: 1 | O113: 1 | P113: 3 | Q113: 100 | R113: 4;53;100 | S113: 2 | T113: 101 | U113: 10 | V113: =A113+1200000 -> 1214012 | W113: 10 | Y113: 4 | Z113: =ROUND(异常状态效果值!F11*(1-AL113-AN113*0.1)/AJ113,0) -> 53 | AA113: 100 | AF113: =CONCATENATE("人物",CHOOSE(T113-100,"生命","攻击","防御"),"永久+",W113,"%") -> 人物生命永久+10% | AG113: 烈焰剑·叁 | AI113: 230.4347826 | AJ113: 4 | AK113: 53 | AL113: =Y113*异常状态效果值!B4/100 -> 0.08 | AQ113: 10
A114: 14013 | B114: 13016 | C114: 337.5 | D114: 1014013 | E114: 1114013 | F114: 烈焰剑 | G114: 向前方发出{0}柄飞剑，每柄飞剑对敌人造成{1}%攻击力的伤害，并有{2}%的概率施加1层灼烧。 | H114: 8 | I114: icon_s1401 | J114: S1401 | K114: 1401 | L114: 1401_timeline_TD | M114: 1 | N114: 1 | O114: 1 | P114: 4 | Q114: 100 | R114: 5;47;100 | S114: 2 | T114: 101 | U114: 10 | V114: 1214013 | W114: 1 | Y114: 5 | Z114: =ROUND(异常状态效果值!F12*(1-AL114-AN114*0.1)/AJ114,0) -> 47 | AA114: 100 | AF114: =CONCATENATE("剑柄数量+",W114) -> 剑柄数量+1 | AG114: 烈焰剑·肆 | AI114: 261.1111111 | AJ114: 5 | AK114: 47 | AL114: =Y114*异常状态效果值!B4/100 -> 0.1 | AQ114: 10
A115: 14014 | B115: 13016 | C115: 506.25 | D115: 1014014 | E115: 1114014 | F115: 烈焰剑 | G115: 向前方发出{0}柄飞剑，每柄飞剑对敌人造成{1}%攻击力的伤害，并有{2}%的概率施加1层灼烧。 | H115: 8 | I115: icon_s1401 | J115: S1401 | K115: 1401 | L115: 1401_timeline_TD | M115: 1 | N115: 1 | O115: 1 | P115: 5 | Q115: 100 | R115: 5;54;100 | S115: 2 | T115: 101 | U115: 20 | V115: 1214014 | W115: 10 | Y115: 5 | Z115: =ROUND(异常状态效果值!F13*(1-AL115-AN115*0.1)/AJ115,0) -> 54 | AA115: 100 | AF115: =CONCATENATE("人物",CHOOSE(T115-100,"生命","攻击","防御"),"永久+",W115,"%") -> 人物生命永久+10% | AG115: 烈焰剑·伍 | AI115: 300 | AJ115: 5 | AK115: 54 | AL115: =Y115*异常状态效果值!B4/100 -> 0.1 | AQ115: 20
A116: 14015 | B116: 13016 | C116: 759.375 | D116: 1014015 | E116: 1114015 | F116: 烈焰剑 | G116: 向前方发出{0}柄飞剑，每柄飞剑对敌人造成{1}%攻击力的伤害，并有{2}%的概率施加1层灼烧。 每柄烈焰剑将会对敌人造成爆燃，爆燃额外造成{3}%攻击力的伤害。 | H116: 8 | I116: icon_s1401 | J116: S1401 | K116: 1401 | L116: 1401_timeline_TD | M116: 1 | N116: 1 | O116: 1 | P116: 6 | Q116: 100 | R116: 5;65;100;20 | S116: 2 | T116: 101 | U116: 20 | V116: 1214015 | Y116: 5 | Z116: =ROUND(异常状态效果值!F14*(1-AL116-AN116*0.1)/AJ116,0) -> 65 | AA116: 100 | AB116: 20 | AF116: 额外造成爆燃伤害 | AG116: 烈焰剑·陆 | AI116: 433.3333333 | AJ116: 5 | AK116: 65 | AL116: =Y116*异常状态效果值!B4/100 -> 0.1 | AM116: 0.15 | AQ116: 20
N117: 1 | Q117: 100
A118: =K118*10+P118-1 -> 14020 | B118: =B111+1 -> 13017 | C118: =异常状态效果值!G23*1.2 -> 120 | D118: =A118+1000000 -> 1014020 | E118: =A118+1100000 -> 1114020 | F118: 赤焰龙吟功 | G118: 飞出{0}道巨龙，每道巨龙对敌人造成{1}%攻击力的伤害。 | H118: 8 | I118: icon_s1402 | J118: =CONCATENATE("S",K118) -> S1402 | K118: 1402 | L118: 1402_timeline_TD | M118: 1 | N118: 1 | O118: 1 | P118: 1 | Q118: 100 | R118: =_xlfn.TEXTJOIN(";",1,Y118:AE118) -> 2;85 | S118: 2 | T118: =_xlfn.TEXTJOIN(";",1,IF(AQ118="","",101),IF(AR118="","",102),IF(AS118="","",103),IF(AT118="","",106),IF(AU118="","",107),IF(AV118="","",108),IF(AW118="","",109),IF(AX118="","",110)) ->  | U118: =_xlfn.TEXTJOIN(";",1,AQ118:AX118) ->  | V118: -1 | Y118: 2 | Z118: =ROUND(异常状态效果值!F9*(1-AL118-AN118*0.1)/AJ118,0) -> 85 | AG118: 赤焰龙吟功·壹 | AI118: =IF(A118="","",AJ118*AK118/(1-AL118-AM118)) -> 170 | AJ118: =Y118 -> 2 | AK118: =Z118 -> 85
A119: =K119*10+P119-1 -> 14021 | B119: =B112+1 -> 13017 | C119: =异常状态效果值!G24*1.2 -> 180 | D119: 1014021 | E119: =A119+1100000 -> 1114021 | F119: 赤焰龙吟功 | G119: 飞出{0}道巨龙，每道巨龙对敌人造成{1}%攻击力的伤害。 如果敌人处于灼烧中，每层灼烧对其有{2}%概率造成胆摄，眩晕敌人{3}秒。 | H119: 8 | I119: icon_s1402 | J119: =CONCATENATE("S",K119) -> S1402 | K119: 1402 | L119: 1402_timeline_TD | M119: 1 | N119: 1 | O119: 1 | P119: 2 | Q119: 100 | R119: =_xlfn.TEXTJOIN(";",1,Y119:AE119) -> 2;90;5;3 | S119: 2 | T119: =_xlfn.TEXTJOIN(";",1,IF(AQ119="","",101),IF(AR119="","",102),IF(AS119="","",103),IF(AT119="","",106),IF(AU119="","",107),IF(AV119="","",108),IF(AW119="","",109),IF(AX119="","",110)) ->  | U119: =_xlfn.TEXTJOIN(";",1,AQ119:AX119) ->  | V119: =A119+1200000 -> 1214021 | Y119: 2 | Z119: =ROUND(异常状态效果值!F10*(1-AL119-AN119*0.1)/AJ119,0) -> 90 | AA119: 5 | AB119: 3 | AF119: 眩晕处于灼烧中的敌人 | AG119: 赤焰龙吟功·贰 | AI119: 200 | AJ119: 2 | AK119: 90 | AL119: 0.1
A120: 14022 | B120: 13017 | C120: =异常状态效果值!G25*1.2 -> 270 | D120: 1014022 | E120: 1114022 | F120: 赤焰龙吟功 | G120: 飞出{0}道巨龙，每道巨龙对敌人造成{1}%攻击力的伤害。 如果敌人处于灼烧中，每层灼烧对其有{2}%概率造成胆摄，眩晕敌人{3}秒。 | H120: 8 | I120: icon_s1402 | J120: S1402 | K120: 1402 | L120: 1402_timeline_TD | M120: 1 | N120: 1 | O120: 1 | P120: 3 | Q120: 100 | R120: 2;104;5;3 | S120: 2 | T120: 102 | U120: 10 | V120: =A120+1200000 -> 1214022 | W120: 10 | Y120: 2 | Z120: =ROUND(异常状态效果值!F11*(1-AL120-AN120*0.1)/AJ120,0) -> 104 | AA120: 5 | AB120: 3 | AF120: =CONCATENATE("人物",CHOOSE(T120-100,"生命","攻击","防御"),"永久+",W120,"%") -> 人物攻击永久+10% | AG120: 赤焰龙吟功·叁 | AI120: 231.1111111 | AJ120: 2 | AK120: 104 | AL120: 0.1 | AR120: 10
A121: 14023 | B121: 13017 | C121: =异常状态效果值!G26*1.2 -> 405 | D121: 1014023 | E121: 1114023 | F121: 赤焰龙吟功 | G121: 飞出{0}道巨龙，每道巨龙对敌人造成{1}%攻击力的伤害。 如果敌人处于灼烧中，每层灼烧对其有{2}%概率造成胆摄，眩晕敌人{3}秒。 | H121: 8 | I121: icon_s1402 | J121: S1402 | K121: 1402 | L121: 1402_timeline_TD | M121: 1 | N121: 1 | O121: 1 | P121: 4 | Q121: 100 | R121: 3;73;5;3 | S121: 2 | T121: 102 | U121: 10 | V121: 1214023 | W121: 1 | Y121: 3 | Z121: =ROUND(异常状态效果值!F12*(1-AL121-AN121*0.1)/AJ121,0) -> 73 | AA121: 5 | AB121: 3 | AF121: =CONCATENATE("飞龙数量+",W121,"，额外造成灼烧") -> 飞龙数量+1，额外造成灼烧 | AG121: 赤焰龙吟功·肆 | AI121: 260.7142857 | AJ121: 3 | AK121: 73 | AL121: =Y121*异常状态效果值!B4/100+10/100 -> 0.16 | AR121: 10
A122: 14024 | B122: 13017 | C122: =异常状态效果值!G27*1.2 -> 607.5 | D122: 1014024 | E122: 1114024 | F122: 赤焰龙吟功 | G122: 飞出{0}道巨龙，每道巨龙对敌人造成{1}%攻击力的伤害。 并施加一层灼烧 如果敌人处于灼烧中，每层灼烧对其有{2}%概率造成胆摄，眩晕敌人{3}秒。 | H122: 8 | I122: icon_s1402 | J122: S1402 | K122: 1402 | L122: 1402_timeline_TD | M122: 1 | N122: 1 | O122: 1 | P122: 5 | Q122: 100 | R122: 3;84;5;3 | S122: 2 | T122: 102 | U122: 20 | V122: 1214024 | W122: 10 | Y122: 3 | Z122: =ROUND(异常状态效果值!F13*(1-AL122-AN122*0.1)/AJ122,0) -> 84 | AA122: 5 | AB122: 3 | AF122: =CONCATENATE("人物",CHOOSE(T122-100,"生命","攻击","防御"),"永久+",W122,"%") -> 人物攻击永久+10% | AG122: 赤焰龙吟功·伍 | AI122: 300 | AJ122: 3 | AK122: 84 | AL122: =Y122*异常状态效果值!B4/100+10/100 -> 0.16 | AR122: 20
A123: 14025 | B123: 13017 | C123: =异常状态效果值!G28*1.2 -> 911.25 | D123: 1014025 | E123: 1114025 | F123: 赤焰龙吟功 | G123: 飞出{0}道巨龙，每道巨龙对敌人造成{1}%攻击力的伤害。 如果敌人处于灼烧造成伤害时，每层燃烧有{2}%的概率对其眩晕{3}秒 并施加一层灼烧 飞龙命中目标后引发天雷，对敌人额外造成{4}%攻击力的伤害。 | H123: 8 | I123: icon_s1402 | J123: S1402 | K123: 1402 | L123: 1402_timeline_TD | M123: 1 | N123: 1 | O123: 1 | P123: 6 | Q123: 100 | R123: 3;101;5;3;25 | S123: 2 | T123: 102 | U123: 20 | V123: 1214025 | Y123: 3 | Z123: =ROUND(异常状态效果值!F14*(1-AL123-AN123*0.1)/AJ123,0) -> 101 | AA123: 5 | AB123: 3 | AC123: 25 | AF123: 额外引发天雷伤害 | AG123: 赤焰龙吟功·陆 | AI123: 360.7142857 | AJ123: 3 | AK123: 101 | AL123: =Y123*异常状态效果值!B4/100+10/100 -> 0.16 | AR123: 20
N124: 1 | Q124: 100
A125: =K125*10+P125-1 -> 14030 | B125: =B118+1 -> 13018 | C125: 100 | D125: =A125+1000000 -> 1014030 | E125: =A125+1100000 -> 1114030 | F125: 朱雀燎原指 | G125: 身后出现一只大手，每个手指发射{0}道烈焰，每道对敌人造成{1}%攻击力的伤害，同时有{2}%概率施加1层灼烧。 | H125: 8 | I125: icon_s1403 | J125: =CONCATENATE("S",K125) -> S1403 | K125: 1403 | L125: 1403_timeline_TD | M125: 1 | N125: 1 | O125: 1 | P125: 1 | Q125: 100 | R125: =_xlfn.TEXTJOIN(";",1,Y125:AE125) -> 1;27;25 | S125: 2 | T125: =_xlfn.TEXTJOIN(";",1,IF(AQ125="","",101),IF(AR125="","",102),IF(AS125="","",103),IF(AT125="","",106),IF(AU125="","",107),IF(AV125="","",108),IF(AW125="","",109),IF(AX125="","",110)) ->  | U125: =_xlfn.TEXTJOIN(";",1,AQ125:AX125) ->  | V125: -1 | Y125: 1 | Z125: =ROUND(异常状态效果值!G9*(1-(AL125+AM125)-AN125*0.1)/AJ125,0) -> 27 | AA125: 25 | AG125: 朱雀燎原指·壹 | AI125: 150 | AJ125: =Y125*5 -> 5 | AK125: =Z125 -> 27 | AL125: =AJ125*异常状态效果值!B4/100 -> 0.1
A126: =K126*10+P126-1 -> 14031 | B126: =B119+1 -> 13018 | C126: 150 | D126: 1014031 | E126: =A126+1100000 -> 1114031 | F126: 朱雀燎原指 | G126: 身后出现一只大手，每个手指发射{0}道烈焰，每道对敌人造成{1}%攻击力的伤害，同时有{2}%概率施加1层灼烧。 对有灼烧的敌人额外造成{3}%最终伤害。 | H126: 8 | I126: icon_s1403 | J126: =CONCATENATE("S",K126) -> S1403 | K126: 1403 | L126: 1403_timeline_TD | M126: 1 | N126: 1 | O126: 1 | P126: 2 | Q126: 100 | R126: =_xlfn.TEXTJOIN(";",1,Y126:AE126) -> 1;31;25;30 | S126: 2 | T126: =_xlfn.TEXTJOIN(";",1,IF(AQ126="","",101),IF(AR126="","",102),IF(AS126="","",103),IF(AT126="","",106),IF(AU126="","",107),IF(AV126="","",108),IF(AW126="","",109),IF(AX126="","",110)) ->  | U126: =_xlfn.TEXTJOIN(";",1,AQ126:AX126) ->  | V126: =A126+1200000 -> 1214031 | Y126: 1 | Z126: =ROUND(异常状态效果值!G10*(1-(AL126+AM126)-AN126*0.1)/AJ126,0) -> 31 | AA126: 25 | AB126: 30 | AF126: 对灼烧的敌人额外增伤 | AG126: 朱雀燎原指·贰 | AI126: 172.2222222 | AJ126: 5 | AK126: 31 | AL126: =AJ126*异常状态效果值!B4/100 -> 0.1
A127: 14032 | B127: 13018 | C127: 225 | D127: 1014032 | E127: 1114032 | F127: 朱雀燎原指 | G127: 身后出现一只大手，每个手指发射{0}道烈焰，每道对敌人造成{1}%攻击力的伤害，同时有{2}%概率施加1层灼烧。 对有灼烧的敌人额外造成{3}%最终伤害。 | H127: 8 | I127: icon_s1403 | J127: S1403 | K127: 1403 | L127: 1403_timeline_TD | M127: 1 | N127: 1 | O127: 1 | P127: 3 | Q127: 100 | R127: 1;36;25;30 | S127: 2 | T127: 103 | U127: 10 | V127: =A127+1200000 -> 1214032 | W127: 10 | Y127: 1 | Z127: =ROUND(异常状态效果值!G11*(1-(AL127+AM127)-AN127*0.1)/AJ127,0) -> 36 | AA127: 25 | AB127: 30 | AF127: =CONCATENATE("人物",CHOOSE(T127-100,"生命","攻击","防御"),"永久+",W127,"%") -> 人物防御永久+10% | AG127: 朱雀燎原指·叁 | AI127: 200 | AJ127: 5 | AK127: 36 | AL127: =AJ127*异常状态效果值!B4/100 -> 0.1 | AS127: 10
A128: 14033 | B128: 13018 | C128: 337.5 | D128: 1014033 | E128: 1114033 | F128: 朱雀燎原指 | G128: 身后出现一只大手，每个手指发射{0}道烈焰，每道对敌人造成{1}%攻击力的伤害，同时有{2}%概率施加1层灼烧。 对有灼烧的敌人额外造成{3}%最终伤害。 | H128: 8 | I128: icon_s1403 | J128: S1403 | K128: 1403 | L128: 1403_timeline_TD | M128: 1 | N128: 1 | O128: 1 | P128: 4 | Q128: 100 | R128: 1;41;25;30 | S128: 2 | T128: 103 | U128: 10 | V128: 1214033 | Y128: 1 | Z128: =ROUND(异常状态效果值!G12*(1-(AL128+AM128)-AN128*0.1)/AJ128,0) -> 41 | AA128: 25 | AB128: 30 | AF128: 烈焰伤害提升 | AG128: 朱雀燎原指·肆 | AI128: 227.7777778 | AJ128: 5 | AK128: 41 | AL128: =AJ128*异常状态效果值!B4/100 -> 0.1 | AS128: 10
A129: 14034 | B129: 13018 | C129: 506.25 | D129: 1014034 | E129: 1114034 | F129: 朱雀燎原指 | G129: 身后出现一只大手，每个手指发射{0}道烈焰，每道对敌人造成{1}%攻击力的伤害，同时有{2}%概率施加1层灼烧。 对有灼烧的敌人额外造成{3}%最终伤害。 | H129: 8 | I129: icon_s1403 | J129: S1403 | K129: 1403 | L129: 1403_timeline_TD | M129: 1 | N129: 1 | O129: 1 | P129: 5 | Q129: 100 | R129: 1;47;25;30 | S129: 2 | T129: 103 | U129: 20 | V129: 1214034 | W129: 10 | Y129: 1 | Z129: =ROUND(异常状态效果值!G13*(1-(AL129+AM129)-AN129*0.1)/AJ129,0) -> 47 | AA129: 25 | AB129: 30 | AF129: =CONCATENATE("人物",CHOOSE(T129-100,"生命","攻击","防御"),"永久+",W129,"%") -> 人物防御永久+10% | AG129: 朱雀燎原指·伍 | AI129: 261.1111111 | AJ129: 5 | AK129: 47 | AL129: =AJ129*异常状态效果值!B4/100 -> 0.1 | AS129: 20
A130: 14035 | B130: 13018 | C130: 759.375 | D130: 1014035 | E130: 1114035 | F130: 朱雀燎原指 | G130: 身后出现一只大手，每个手指发射{0}道烈焰，每道对敌人造成{1}%攻击力的伤害，同时有{2}%概率施加1层灼烧。 对有灼烧的敌人额外造成{3}%最终伤害。 烈焰数量翻倍，但每道烈焰伤害降低{4}%。 | H130: 8 | I130: icon_s1403 | J130: S1403 | K130: 1403 | L130: 1403_timeline_TD | M130: 1 | N130: 1 | O130: 1 | P130: 6 | Q130: 100 | R130: 1;54;25;40;40 | S130: 2 | T130: 103 | U130: 20 | V130: 1214035 | Y130: 1 | Z130: =ROUND(异常状态效果值!G14*(1-(AL130+AM130)-AN130*0.1)/AJ130,0) -> 54 | AA130: 25 | AB130: 40 | AC130: 40 | AF130: 每只手指额外发射一个弹道 | AG130: 朱雀燎原指·陆 | AI130: 300 | AJ130: 5 | AK130: 54 | AL130: =AJ130*异常状态效果值!B4/100 -> 0.1 | AS130: 20
N131: 1 | Q131: 100
A132: =K132*10+P132-1 -> 14040 | B132: =B125+1 -> 13019 | C132: =异常状态效果值!H23 -> 80 | D132: =A132+1000000 -> 1014040 | E132: =A132+1100000 -> 1114040 | F132: 火球 | G132: 发射{0}枚火球，每枚火球对敌人造成{1}%攻击力的伤害。有{2}%概率对敌人施加1层灼烧 | H132: 8 | I132: icon_s1404 | J132: =CONCATENATE("S",K132) -> S1404 | K132: 1404 | L132: 1404_timeline_TD | M132: 1 | N132: 1 | O132: 1 | P132: 1 | Q132: 100 | R132: =_xlfn.TEXTJOIN(";",1,Y132:AE132) -> 3;47;100 | S132: 2 | T132: =_xlfn.TEXTJOIN(";",1,IF(AQ132="","",101),IF(AR132="","",102),IF(AS132="","",103),IF(AT132="","",106),IF(AU132="","",107),IF(AV132="","",108),IF(AW132="","",109),IF(AX132="","",110)) ->  | U132: =_xlfn.TEXTJOIN(";",1,AQ132:AX132) ->  | V132: -1 | Y132: 3 | Z132: =ROUND(异常状态效果值!H9*(1-(AL132+AM132)-AN132*0.1)/AJ132,0) -> 47 | AA132: 100 | AG132: 火球·壹 | AI132: 150 | AJ132: =Y132 -> 3 | AK132: =Z132 -> 47 | AL132: =AJ132*异常状态效果值!B4/100 -> 0.06
A133: =K133*10+P133-1 -> 14041 | B133: =B126+1 -> 13019 | C133: =异常状态效果值!H24 -> 120 | D133: 1014041 | E133: =A133+1100000 -> 1114041 | F133: 火球 | G133: 发射{0}枚火球，每枚火球对敌人造成{1}%攻击力的伤害。有{2}%概率对敌人施加1层灼烧 | H133: 8 | I133: icon_s1404 | J133: =CONCATENATE("S",K133) -> S1404 | K133: 1404 | L133: 1404_timeline_TD | M133: 1 | N133: 1 | O133: 1 | P133: 2 | Q133: 100 | R133: =_xlfn.TEXTJOIN(";",1,Y133:AE133) -> 3;53;100 | S133: 2 | T133: =_xlfn.TEXTJOIN(";",1,IF(AQ133="","",101),IF(AR133="","",102),IF(AS133="","",103),IF(AT133="","",106),IF(AU133="","",107),IF(AV133="","",108),IF(AW133="","",109),IF(AX133="","",110)) -> 103 | U133: =_xlfn.TEXTJOIN(";",1,AQ133:AX133) -> 5 | V133: =A133+1200000 -> 1214041 | W133: 5 | Y133: 3 | Z133: =ROUND(异常状态效果值!H10*(1-(AL133+AM133)-AN133*0.1)/AJ133,0) -> 53 | AA133: 100 | AF133: =CONCATENATE("人物",CHOOSE(T133-100,"生命","攻击","防御"),"永久+",W133,"%") -> 人物防御永久+5% | AG133: 火球·贰 | AI133: 169.1489362 | AJ133: 3 | AK133: 53 | AL133: =AJ133*异常状态效果值!B4/100 -> 0.06 | AS133: 5
A134: 14042 | B134: 13019 | C134: =异常状态效果值!H25 -> 180 | D134: 1014042 | E134: 1114042 | F134: 火球 | G134: 发射{0}枚火球，每枚火球对敌人造成{1}%攻击力的伤害。有{2}%概率对敌人施加1层灼烧 | H134: 8 | I134: icon_s1404 | J134: S1404 | K134: 1404 | L134: 1404_timeline_TD | M134: 1 | N134: 1 | O134: 1 | P134: 3 | Q134: 100 | R134: 4;41;100 | S134: 2 | T134: 103 | U134: 5 | V134: =A134+1200000 -> 1214042 | W134: 1 | Y134: 4 | Z134: =ROUND(异常状态效果值!H11*(1-(AL134+AM134)-AN134*0.1)/AJ134,0) -> 41 | AA134: 100 | AF134: =CONCATENATE("火球数量+",W134) -> 火球数量+1 | AG134: 火球·叁 | AI134: 178.2608696 | AJ134: 4 | AK134: 41 | AL134: =AJ134*异常状态效果值!B4/100 -> 0.08 | AS134: 5
A135: 14043 | B135: 13019 | C135: =异常状态效果值!H26 -> 270 | D135: 1014043 | E135: 1114043 | F135: 火球 | G135: 发射{0}枚火球，每枚火球对敌人造成{1}%攻击力的伤害。有{2}%概率对敌人施加1层灼烧 | H135: 8 | I135: =IF(A135="","",CONCATENATE("icon_s",K135)) -> icon_s1404 | J135: S1404 | K135: 1404 | L135: 1404_timeline_TD | M135: 1 | N135: 1 | O135: 1 | P135: 4 | Q135: 100 | R135: 4;44;100 | S135: 2 | T135: 103 | U135: 10 | V135: 1214043 | W135: 5 | Y135: 4 | Z135: =ROUND(异常状态效果值!H12*(1-(AL135+AM135)-AN135*0.1)/AJ135,0) -> 44 | AA135: 100 | AF135: =CONCATENATE("人物",CHOOSE(T135-100,"生命","攻击","防御"),"永久+",W135,"%") -> 人物防御永久+5% | AG135: 火球·肆 | AI135: =IF(A135="","",AJ135*AK135/(1-AL135-AM135)) -> 191.3043478 | AJ135: 4 | AK135: 44 | AL135: =AJ135*异常状态效果值!B4/100 -> 0.08 | AS135: 10
A136: 14044 | B136: 13019 | C136: =异常状态效果值!H27 -> 405 | D136: 1014044 | E136: 1114044 | F136: 火球 | G136: 发射{0}枚火球，每枚火球对敌人造成{1}%攻击力的伤害。有{2}%概率对敌人施加1层灼烧 | H136: 8 | I136: icon_s1404 | J136: S1404 | K136: 1404 | L136: 1404_timeline_TD | M136: 1 | N136: 1 | O136: 1 | P136: 5 | Q136: 100 | R136: 5;36;100 | S136: 2 | T136: 103 | U136: 10 | V136: 1214044 | W136: 1 | Y136: 5 | Z136: =ROUND(异常状态效果值!H13*(1-(AL136+AM136)-AN136*0.1)/AJ136,0) -> 36 | AA136: 100 | AF136: =CONCATENATE("火球数量+",W136) -> 火球数量+1 | AG136: 火球·伍 | AI136: 200 | AJ136: 5 | AK136: 36 | AL136: =AJ136*异常状态效果值!B4/100 -> 0.1 | AS136: 10
A137: 14045 | B137: 13019 | C137: =异常状态效果值!H28 -> 607.5 | D137: 1014045 | E137: 1114045 | F137: 火球 | G137: 发射{0}枚火球，每枚火球对敌人造成{1}%攻击力的伤害。有{2}%概率对敌人施加1层灼烧 | H137: 8 | I137: icon_s1404 | J137: S1404 | K137: 1404 | L137: 1404_timeline_TD | M137: 1 | N137: 1 | O137: 1 | P137: 6 | Q137: 100 | R137: 5;40;100 | S137: 2 | T137: 103 | U137: 15 | V137: 1214045 | W137: 5 | Y137: 5 | Z137: =ROUND(异常状态效果值!H14*(1-(AL137+AM137)-AN137*0.1)/AJ137,0) -> 40 | AA137: 100 | AF137: =CONCATENATE("人物",CHOOSE(T137-100,"生命","攻击","防御"),"永久+",W137,"%") -> 人物防御永久+5% | AG137: 火球·陆 | AI137: 222.2222222 | AJ137: 5 | AK137: 40 | AL137: =AJ137*异常状态效果值!B4/100 -> 0.1 | AS137: 15
N138: 1 | Q138: 100 | AI138: =IF(A138="","",AJ138*AK138/(1-AL138-AM138)) -> 
A139: =K139*10+P139-1 -> 14050 | B139: =B132+1 -> 13020 | C139: =异常状态效果值!H23 -> 80 | D139: =A139+1000000 -> 1014050 | E139: =A139+1100000 -> 1114050 | F139: 火刀 | G139: 发射{0}枚火刃，每柄火刃对敌人造成{1}%攻击力的伤害。 | H139: 8 | I139: icon_s1405 | J139: =CONCATENATE("S",K139) -> S1405 | K139: 1405 | L139: 1405_timeline_TD | M139: 1 | N139: 1 | O139: 1 | P139: 1 | Q139: 100 | R139: =_xlfn.TEXTJOIN(";",1,Y139:AE139) -> 3;50 | S139: 2 | T139: =_xlfn.TEXTJOIN(";",1,IF(AQ139="","",101),IF(AR139="","",102),IF(AS139="","",103),IF(AT139="","",106),IF(AU139="","",107),IF(AV139="","",108),IF(AW139="","",109),IF(AX139="","",110)) ->  | U139: =_xlfn.TEXTJOIN(";",1,AQ139:AX139) ->  | V139: -1 | Y139: 3 | Z139: =ROUND(异常状态效果值!H9*(1-(AL139+AM139)-AN139*0.1)/AJ139,0) -> 50 | AG139: 火刀·壹 | AI139: 150 | AJ139: =Y139 -> 3 | AK139: =Z139 -> 50
A140: =K140*10+P140-1 -> 14051 | B140: =B133+1 -> 13020 | C140: =异常状态效果值!H24 -> 120 | D140: 1014051 | E140: =A140+1100000 -> 1114051 | F140: 火刀 | G140: 发射{0}枚火刃，每柄火刃对敌人造成{1}%攻击力的伤害。 | H140: 8 | I140: icon_s1405 | J140: =CONCATENATE("S",K140) -> S1405 | K140: 1405 | L140: 1405_timeline_TD | M140: 1 | N140: 1 | O140: 1 | P140: 2 | Q140: 100 | R140: =_xlfn.TEXTJOIN(";",1,Y140:AE140) -> 3;57 | S140: 2 | T140: =_xlfn.TEXTJOIN(";",1,IF(AQ140="","",101),IF(AR140="","",102),IF(AS140="","",103),IF(AT140="","",106),IF(AU140="","",107),IF(AV140="","",108),IF(AW140="","",109),IF(AX140="","",110)) -> 101 | U140: =_xlfn.TEXTJOIN(";",1,AQ140:AX140) -> 5 | V140: =A140+1200000 -> 1214051 | W140: 5 | Y140: 3 | Z140: =ROUND(异常状态效果值!H10*(1-(AL140+AM140)-AN140*0.1)/AJ140,0) -> 57 | AF140: =CONCATENATE("人物",CHOOSE(T140-100,"生命","攻击","防御"),"永久+",W140,"%") -> 人物生命永久+5% | AG140: 火刀·贰 | AI140: 171 | AJ140: 3 | AK140: 57 | AQ140: 5
A141: 14052 | B141: 13020 | C141: =异常状态效果值!H25 -> 180 | D141: 1014052 | E141: 1114052 | F141: 火刀 | G141: 发射{0}枚火刃，每柄火刃对敌人造成{1}%攻击力的伤害。 | H141: 8 | I141: icon_s1405 | J141: S1405 | K141: 1405 | L141: 1405_timeline_TD | M141: 1 | N141: 1 | O141: 1 | P141: 3 | Q141: 100 | R141: 4;45 | S141: 2 | T141: 101 | U141: 5 | V141: =A141+1200000 -> 1214052 | W141: 1 | Y141: 4 | Z141: =ROUND(异常状态效果值!H11*(1-(AL141+AM141)-AN141*0.1)/AJ141,0) -> 45 | AF141: =CONCATENATE("火刃数量+",W141) -> 火刃数量+1 | AG141: 火刀·叁 | AI141: 180 | AJ141: 4 | AK141: 45 | AQ141: 5
A142: 14053 | B142: 13020 | C142: =异常状态效果值!H26 -> 270 | D142: 1014053 | E142: 1114053 | F142: 火刀 | G142: 发射{0}枚火刃，每柄火刃对敌人造成{1}%攻击力的伤害。 | H142: 8 | I142: icon_s1405 | J142: S1405 | K142: 1405 | L142: 1405_timeline_TD | M142: 1 | N142: 1 | O142: 1 | P142: 4 | Q142: 100 | R142: 4;48 | S142: 2 | T142: 101 | U142: 10 | V142: 1214053 | W142: 5 | Y142: 4 | Z142: =ROUND(异常状态效果值!H12*(1-(AL142+AM142)-AN142*0.1)/AJ142,0) -> 48 | AF142: =CONCATENATE("人物",CHOOSE(T142-100,"生命","攻击","防御"),"永久+",W142,"%") -> 人物生命永久+5% | AG142: 火刀·肆 | AI142: 192 | AJ142: 4 | AK142: 48 | AQ142: 10
A143: 14054 | B143: 13020 | C143: =异常状态效果值!H27 -> 405 | D143: 1014054 | E143: 1114054 | F143: 火刀 | G143: 发射{0}枚火刃，每柄火刃对敌人造成{1}%攻击力的伤害。 | H143: 8 | I143: icon_s1405 | J143: S1405 | K143: 1405 | L143: 1405_timeline_TD | M143: 1 | N143: 1 | O143: 1 | P143: 5 | Q143: 100 | R143: 5;40 | S143: 2 | T143: 101 | U143: 10 | V143: 1214054 | W143: 1 | Y143: 5 | Z143: =ROUND(异常状态效果值!H13*(1-(AL143+AM143)-AN143*0.1)/AJ143,0) -> 40 | AF143: =CONCATENATE("火刃数量+",W143) -> 火刃数量+1 | AG143: 火刀·伍 | AI143: 200 | AJ143: 5 | AK143: 40 | AQ143: 10
A144: 14055 | B144: 13020 | C144: =异常状态效果值!H28 -> 607.5 | D144: 1014055 | E144: 1114055 | F144: 火刀 | G144: 发射{0}枚火刃，每柄火刃对敌人造成{1}%攻击力的伤害。 | H144: 8 | I144: icon_s1405 | J144: S1405 | K144: 1405 | L144: 1405_timeline_TD | M144: 1 | N144: 1 | O144: 1 | P144: 6 | Q144: 100 | R144: 5;44 | S144: 2 | T144: 101 | U144: 15 | V144: 1214055 | W144: 5 | Y144: 5 | Z144: =ROUND(异常状态效果值!H14*(1-(AL144+AM144)-AN144*0.1)/AJ144,0) -> 44 | AF144: =CONCATENATE("人物",CHOOSE(T144-100,"生命","攻击","防御"),"永久+",W144,"%") -> 人物生命永久+5% | AG144: 火刀·陆 | AI144: 220 | AJ144: 5 | AK144: 44 | AQ144: 15
N145: 1 | Q145: 100
A146: =K146*10+P146-1 -> 15010 | B146: =B139+1 -> 13021 | C146: 100 | D146: =A146+1000000 -> 1015010 | E146: =A146+1100000 -> 1115010 | F146: 黄尘灭魂刺 | G146: 沙尘汇聚成{0}枚土刺，每枚土刺对敌人造成{1}%攻击力的伤害，并有{2}%概率施加1层细尘。 | H146: 16 | I146: icon_s1501 | J146: =CONCATENATE("S",K146) -> S1501 | K146: 1501 | L146: 1501_timeline_TD | M146: 1 | N146: 1 | O146: 1 | P146: 1 | Q146: 100 | R146: =_xlfn.TEXTJOIN(";",1,Y146:AE146) -> 3;49;100 | S146: 2 | T146: =_xlfn.TEXTJOIN(";",1,IF(AQ146="","",101),IF(AR146="","",102),IF(AS146="","",103),IF(AT146="","",106),IF(AU146="","",107),IF(AV146="","",108),IF(AW146="","",109),IF(AX146="","",110)) ->  | U146: =_xlfn.TEXTJOIN(";",1,AQ146:AX146) ->  | V146: -1 | Y146: 3 | Z146: =ROUND(异常状态效果值!G9*(1-(AL146+AM146)-AN146*0.1)/AJ146,0) -> 49 | AA146: 100 | AG146: 黄尘灭魂刺·壹 | AI146: 151.5463918 | AJ146: =Y146 -> 3 | AK146: =Z146 -> 49 | AL146: =AJ146*异常状态效果值!B5/100 -> 0.03
A147: =K147*10+P147-1 -> 15011 | B147: =B140+1 -> 13021 | C147: 150 | D147: 1015011 | E147: =A147+1100000 -> 1115011 | F147: 黄尘灭魂刺 | G147: 沙尘汇聚成{0}枚土刺，每枚土刺对敌人造成{1}%攻击力的伤害，并有{2}%概率施加1层细尘。 | H147: 16 | I147: icon_s1501 | J147: =CONCATENATE("S",K147) -> S1501 | K147: 1501 | L147: 1501_timeline_TD | M147: 1 | N147: 1 | O147: 1 | P147: 2 | Q147: 100 | R147: =_xlfn.TEXTJOIN(";",1,Y147:AE147) -> 4;41;100 | S147: 2 | T147: =_xlfn.TEXTJOIN(";",1,IF(AQ147="","",101),IF(AR147="","",102),IF(AS147="","",103),IF(AT147="","",106),IF(AU147="","",107),IF(AV147="","",108),IF(AW147="","",109),IF(AX147="","",110)) ->  | U147: =_xlfn.TEXTJOIN(";",1,AQ147:AX147) ->  | V147: =A147+1200000 -> 1215011 | W147: 1 | Y147: 4 | Z147: =ROUND(异常状态效果值!G10*(1-(AL147+AM147)-AN147*0.1)/AJ147,0) -> 41 | AA147: 100 | AF147: =CONCATENATE("土刺数量+",W147) -> 土刺数量+1 | AG147: 黄尘灭魂刺·贰 | AI147: 170.8333333 | AJ147: 4 | AK147: 41 | AL147: =AJ147*异常状态效果值!B5/100 -> 0.04
A148: 15012 | B148: 13021 | C148: 225 | D148: 1015012 | E148: 1115012 | F148: 黄尘灭魂刺 | G148: 沙尘汇聚成{0}枚土刺，每枚土刺对敌人造成{1}%攻击力的伤害，并有{2}%概率施加1层细尘。 | H148: 16 | I148: icon_s1501 | J148: S1501 | K148: 1501 | L148: 1501_timeline_TD | M148: 1 | N148: 1 | O148: 1 | P148: 3 | Q148: 100 | R148: 4;48;100 | S148: 2 | T148: 101 | U148: 10 | V148: =A148+1200000 -> 1215012 | W148: 10 | Y148: 4 | Z148: =ROUND(异常状态效果值!G11*(1-(AL148+AM148)-AN148*0.1)/AJ148,0) -> 48 | AA148: 100 | AF148: =CONCATENATE("人物",CHOOSE(T148-100,"生命","攻击","防御"),"永久+",W148,"%") -> 人物生命永久+10% | AG148: =IF(F148="","",CONCATENATE(F148,"·",CHOOSE(P148,"壹","贰","叁","肆","伍","陆"))) -> 黄尘灭魂刺·叁 | AI148: 200 | AJ148: 4 | AK148: 48 | AL148: =AJ148*异常状态效果值!B5/100 -> 0.04 | AQ148: 10
A149: 15013 | B149: 13021 | C149: 337.5 | D149: 1015013 | E149: 1115013 | F149: 黄尘灭魂刺 | G149: 沙尘汇聚成{0}枚土刺，每枚土刺对敌人造成{1}%攻击力的伤害，并有{2}%概率施加1层细尘。 | H149: 16 | I149: icon_s1501 | J149: S1501 | K149: 1501 | L149: 1501_timeline_TD | M149: 1 | N149: 1 | O149: 1 | P149: 4 | Q149: 100 | R149: 5;44;100 | S149: 2 | T149: 101 | U149: 10 | V149: 1215013 | W149: 1 | Y149: 5 | Z149: =ROUND(异常状态效果值!G12*(1-(AL149+AM149)-AN149*0.1)/AJ149,0) -> 44 | AA149: 100 | AF149: =CONCATENATE("土刺数量+",W149) -> 土刺数量+1 | AG149: 黄尘灭魂刺·肆 | AI149: 231.5789474 | AJ149: 5 | AK149: 44 | AL149: =AJ149*异常状态效果值!B5/100 -> 0.05 | AQ149: 10
A150: 15014 | B150: 13021 | C150: 506.25 | D150: 1015014 | E150: 1115014 | F150: 黄尘灭魂刺 | G150: 沙尘汇聚成{0}枚土刺，每枚土刺对敌人造成{1}%攻击力的伤害，并有{2}%概率施加1层细尘。 | H150: 16 | I150: icon_s1501 | J150: S1501 | K150: 1501 | L150: 1501_timeline_TD | M150: 1 | N150: 1 | O150: 1 | P150: 5 | Q150: 100 | R150: 5;49;100 | S150: 2 | T150: 101 | U150: 20 | V150: 1215014 | W150: 10 | Y150: 5 | Z150: =ROUND(异常状态效果值!G13*(1-(AL150+AM150)-AN150*0.1)/AJ150,0) -> 49 | AA150: 100 | AF150: =CONCATENATE("人物",CHOOSE(T150-100,"生命","攻击","防御"),"永久+",W150,"%") -> 人物生命永久+10% | AG150: 黄尘灭魂刺·伍 | AI150: 257.8947368 | AJ150: 5 | AK150: 49 | AL150: =AJ150*异常状态效果值!B5/100 -> 0.05 | AQ150: 20
A151: 15015 | B151: 13021 | C151: 759.375 | D151: 1015015 | E151: 1115015 | F151: 黄尘灭魂刺 | G151: 沙尘汇聚成{0}枚土刺，每枚土刺对敌人造成{1}%攻击力的伤害，并有{2}%概率施加1层细尘。 | H151: 16 | I151: icon_s1501 | J151: S1501 | K151: 1501 | L151: 1501_timeline_TD | M151: 1 | N151: 1 | O151: 1 | P151: 6 | Q151: 100 | R151: 6;47;100 | S151: 2 | T151: 101 | U151: 20 | V151: 1215015 | W151: 1 | Y151: 6 | Z151: =ROUND(异常状态效果值!G14*(1-(AL151+AM151)-AN151*0.1)/AJ151,0) -> 47 | AA151: 100 | AF151: =CONCATENATE("土刺数量+",W151) -> 土刺数量+1 | AG151: 黄尘灭魂刺·陆 | AI151: 300 | AJ151: 6 | AK151: 47 | AL151: =AJ151*异常状态效果值!B5/100 -> 0.06 | AQ151: 20
N152: 1 | Q152: 100
A153: =K153*10+P153-1 -> 15020 | B153: =B146+1 -> 13022 | C153: 100 | D153: =A153+1000000 -> 1015020 | E153: =A153+1100000 -> 1115020 | F153: 地裂屠龙斩 | G153: 一柄虚空形成的大刀，横空挥砍形成{0}个剑气，每道剑气对敌人造成{1}%攻击力的伤害，并有{2}%概率叠加1层破甲 | H153: 16 | I153: icon_s1502 | J153: =CONCATENATE("S",K153) -> S1502 | K153: 1502 | L153: 1502_timeline_TD | M153: 1 | N153: 1 | O153: 1 | P153: 1 | Q153: 100 | R153: =_xlfn.TEXTJOIN(";",1,Y153:AE153) -> 3;49;30 | S153: 2 | T153: =_xlfn.TEXTJOIN(";",1,IF(AQ153="","",101),IF(AR153="","",102),IF(AS153="","",103),IF(AT153="","",106),IF(AU153="","",107),IF(AV153="","",108),IF(AW153="","",109),IF(AX153="","",110)) ->  | U153: =_xlfn.TEXTJOIN(";",1,AQ153:AX153) ->  | V153: -1 | Y153: 3 | Z153: =ROUND(异常状态效果值!G9*(1-(AL153+AM153)-AN153*0.1)/AJ153,0) -> 49 | AA153: 30 | AG153: 地裂屠龙斩·壹 | AI153: =IF(A153="","",AJ153*AK153/(1-AL153-AM153)) -> 151.5463918 | AJ153: =Y153 -> 3 | AK153: =Z153 -> 49 | AL153: =AJ153*异常状态效果值!B5/100 -> 0.03
A154: =K154*10+P154-1 -> 15021 | B154: =B147+1 -> 13022 | C154: 150 | D154: 1015021 | E154: =A154+1100000 -> 1115021 | F154: 地裂屠龙斩 | G154: 一柄虚空形成的大刀，横空挥砍形成{0}个剑气，每道剑气对敌人造成{1}%攻击力的伤害，并有{2}%概率叠加1层破甲 | H154: 16 | I154: icon_s1502 | J154: =CONCATENATE("S",K154) -> S1502 | K154: 1502 | L154: 1502_timeline_TD | M154: 1 | N154: 1 | O154: 1 | P154: 2 | Q154: 100 | R154: =_xlfn.TEXTJOIN(";",1,Y154:AE154) -> 4;41;30 | S154: 2 | T154: =_xlfn.TEXTJOIN(";",1,IF(AQ154="","",101),IF(AR154="","",102),IF(AS154="","",103),IF(AT154="","",106),IF(AU154="","",107),IF(AV154="","",108),IF(AW154="","",109),IF(AX154="","",110)) ->  | U154: =_xlfn.TEXTJOIN(";",1,AQ154:AX154) ->  | V154: =A154+1200000 -> 1215021 | W154: 1 | Y154: 4 | Z154: =ROUND(异常状态效果值!G10*(1-(AL154+AM154)-AN154*0.1)/AJ154,0) -> 41 | AA154: 30 | AF154: =CONCATENATE("刀气数量+",W154) -> 刀气数量+1 | AG154: 地裂屠龙斩·贰 | AI154: 170.8333333 | AJ154: 4 | AK154: 41 | AL154: =AJ154*异常状态效果值!B5/100 -> 0.04
A155: 15022 | B155: 13022 | C155: 225 | D155: 1015022 | E155: 1115022 | F155: 地裂屠龙斩 | G155: 一柄虚空形成的大刀，横空挥砍形成{0}个剑气，每道剑气对敌人造成{1}%攻击力的伤害，并有{2}%概率叠加1层破甲 | H155: 16 | I155: icon_s1502 | J155: S1502 | K155: 1502 | L155: 1502_timeline_TD | M155: 1 | N155: 1 | O155: 1 | P155: 3 | Q155: 100 | R155: 4;48;30 | S155: 2 | T155: 102 | U155: 10 | V155: =A155+1200000 -> 1215022 | W155: 10 | Y155: 4 | Z155: =ROUND(异常状态效果值!G11*(1-(AL155+AM155)-AN155*0.1)/AJ155,0) -> 48 | AA155: 30 | AF155: =CONCATENATE("人物",CHOOSE(T155-100,"生命","攻击","防御"),"永久+",W155,"%") -> 人物攻击永久+10% | AG155: 地裂屠龙斩·叁 | AI155: 200 | AJ155: 4 | AK155: 48 | AL155: =AJ155*异常状态效果值!B5/100 -> 0.04 | AR155: 10
A156: 15023 | B156: 13022 | C156: 337.5 | D156: 1015023 | E156: 1115023 | F156: 地裂屠龙斩 | G156: 一柄虚空形成的大刀，横空挥砍形成{0}个剑气，每道剑气对敌人造成{1}%攻击力的伤害，并有{2}%概率叠加1层破甲 | H156: 16 | I156: icon_s1502 | J156: S1502 | K156: 1502 | L156: 1502_timeline_TD | M156: 1 | N156: 1 | O156: 1 | P156: 4 | Q156: 100 | R156: 5;44;30 | S156: 2 | T156: 102 | U156: 10 | V156: 1215023 | W156: 1 | Y156: 5 | Z156: =ROUND(异常状态效果值!G12*(1-(AL156+AM156)-AN156*0.1)/AJ156,0) -> 44 | AA156: 30 | AF156: =CONCATENATE("刀气数量+",W156) -> 刀气数量+1 | AG156: 地裂屠龙斩·肆 | AI156: 231.5789474 | AJ156: 5 | AK156: 44 | AL156: =AJ156*异常状态效果值!B5/100 -> 0.05 | AR156: 10
A157: 15024 | B157: 13022 | C157: 506.25 | D157: 1015024 | E157: 1115024 | F157: 地裂屠龙斩 | G157: 一柄虚空形成的大刀，横空挥砍形成{0}个剑气，每道剑气对敌人造成{1}%攻击力的伤害，并有{2}%概率叠加1层破甲 | H157: 16 | I157: icon_s1502 | J157: S1502 | K157: 1502 | L157: 1502_timeline_TD | M157: 1 | N157: 1 | O157: 1 | P157: 5 | Q157: 100 | R157: 5;49;30 | S157: 2 | T157: 102 | U157: 20 | V157: 1215024 | W157: 10 | Y157: 5 | Z157: =ROUND(异常状态效果值!G13*(1-(AL157+AM157)-AN157*0.1)/AJ157,0) -> 49 | AA157: 30 | AF157: =CONCATENATE("人物",CHOOSE(T157-100,"生命","攻击","防御"),"永久+",W157,"%") -> 人物攻击永久+10% | AG157: 地裂屠龙斩·伍 | AI157: 257.8947368 | AJ157: 5 | AK157: 49 | AL157: =AJ157*异常状态效果值!B5/100 -> 0.05 | AR157: 20
A158: 15025 | B158: 13022 | C158: 759.375 | D158: 1015025 | E158: 1115025 | F158: 地裂屠龙斩 | G158: 一柄虚空形成的大刀，横空挥砍形成{0}个剑气，每道剑气对敌人造成{1}%攻击力的伤害，并有{2}%概率叠加1层破甲 | H158: 16 | I158: icon_s1502 | J158: S1502 | K158: 1502 | L158: 1502_timeline_TD | M158: 1 | N158: 1 | O158: 1 | P158: 6 | Q158: 100 | R158: 6;47;30 | S158: 2 | T158: 102 | U158: 20 | V158: 1215025 | W158: 1 | Y158: 6 | Z158: =ROUND(异常状态效果值!G14*(1-(AL158+AM158)-AN158*0.1)/AJ158,0) -> 47 | AA158: 30 | AF158: =CONCATENATE("刀气数量+",W158) -> 刀气数量+1 | AG158: 地裂屠龙斩·陆 | AI158: 300 | AJ158: 6 | AK158: 47 | AL158: =AJ158*异常状态效果值!B5/100 -> 0.06 | AR158: 20
N159: 1 | Q159: 100
B160: =B153+1 -> 13023 | C160: 100 | D160: =A160+1000000 -> 1000000 | E160: =A160+1100000 -> 1100000 | G160: 占位 | H160: 16 | J160: =CONCATENATE("S",K160) -> S1503 | K160: 1503 | L160: bingzhui_timeline_TD | M160: 1 | N160: 1 | O160: 1 | P160: 1 | Q160: 100 | R160: =_xlfn.TEXTJOIN(";",1,Y160:AE160) -> 3;120;30 | S160: 2 | T160: =_xlfn.TEXTJOIN(";",1,IF(AQ160="","",101),IF(AR160="","",102),IF(AS160="","",103),IF(AT160="","",106),IF(AU160="","",107),IF(AV160="","",108),IF(AW160="","",109),IF(AX160="","",110)) ->  | U160: =_xlfn.TEXTJOIN(";",1,AQ160:AX160) ->  | V160: -1 | Y160: 3 | Z160: 120 | AA160: 30 | AG160: =IF(F160="","",CONCATENATE(F160,"·",CHOOSE(P160,"壹","贰","叁","肆","伍","陆"))) ->  | AJ160: =Y160 -> 3 | AK160: =Z160 -> 120
B161: =B154+1 -> 13023 | C161: 150 | D161: 1000000 | E161: =A161+1100000 -> 1100000 | G161: 占位 | H161: 16 | J161: =CONCATENATE("S",K161) -> S1503 | K161: 1503 | L161: bingzhui_timeline_TD | M161: 1 | N161: 1 | O161: 1 | P161: 2 | Q161: 100 | R161: =_xlfn.TEXTJOIN(";",1,Y161:AE161) -> 4;120;30 | S161: 2 | T161: =_xlfn.TEXTJOIN(";",1,IF(AQ161="","",101),IF(AR161="","",102),IF(AS161="","",103),IF(AT161="","",106),IF(AU161="","",107),IF(AV161="","",108),IF(AW161="","",109),IF(AX161="","",110)) ->  | U161: =_xlfn.TEXTJOIN(";",1,AQ161:AX161) ->  | V161: =A161+1200000 -> 1200000 | W161: 1 | Y161: 4 | Z161: 120 | AA161: 30 | AF161: =CONCATENATE("刀气数量+",W161) -> 刀气数量+1 | AJ161: 4 | AK161: 120
B162: 13023 | C162: 225 | D162: 1000000 | E162: 1100000 | G162: 占位 | H162: 16 | J162: S1503 | K162: 1503 | L162: bingzhui_timeline_TD | M162: 1 | N162: 1 | O162: 1 | P162: 3 | Q162: 100 | R162: 4;120;30 | S162: 2 | T162: 103 | U162: 10 | V162: =A162+1200000 -> 1200000 | W162: 10 | Y162: 4 | Z162: 120 | AA162: 30 | AF162: =CONCATENATE("人物",CHOOSE(T162-100,"生命","攻击","防御"),"永久+",W162,"%") -> 人物防御永久+10% | AJ162: 4 | AK162: 120 | AS162: 10
B163: 13023 | C163: 337.5 | D163: 1000000 | E163: 1100000 | G163: 占位 | H163: 16 | J163: S1503 | K163: 1503 | L163: bingzhui_timeline_TD | M163: 1 | N163: 1 | O163: 1 | P163: 4 | Q163: 100 | R163: 5;120;30 | S163: 2 | T163: 103 | U163: 10 | V163: 1200000 | W163: 1 | Y163: 5 | Z163: 120 | AA163: 30 | AF163: =CONCATENATE("刀气数量+",W163) -> 刀气数量+1 | AJ163: 5 | AK163: 120 | AS163: 10
B164: 13023 | C164: 506.25 | D164: 1000000 | E164: 1100000 | G164: 占位 | H164: 16 | J164: S1503 | K164: 1503 | L164: bingzhui_timeline_TD | M164: 1 | N164: 1 | O164: 1 | P164: 5 | Q164: 100 | R164: 5;120;30 | S164: 2 | T164: 103 | U164: 20 | V164: 1200000 | W164: 10 | Y164: 5 | Z164: 120 | AA164: 30 | AF164: =CONCATENATE("人物",CHOOSE(T164-100,"生命","攻击","防御"),"永久+",W164,"%") -> 人物防御永久+10% | AJ164: 5 | AK164: 120 | AS164: 20
B165: 13023 | C165: 759.375 | D165: 1000000 | E165: 1100000 | G165: 占位 | H165: 16 | J165: S1503 | K165: 1503 | L165: bingzhui_timeline_TD | M165: 1 | N165: 1 | O165: 1 | P165: 6 | Q165: 100 | R165: 6;120;30 | S165: 2 | T165: 103 | U165: 20 | V165: 1200000 | W165: 1 | Y165: 6 | Z165: 120 | AA165: 30 | AF165: =CONCATENATE("刀气数量+",W165) -> 刀气数量+1 | AJ165: 6 | AK165: 120 | AS165: 20
N166: 1 | Q166: 100
A167: =K167*10+P167-1 -> 15040 | B167: =B160+1 -> 13024 | C167: =异常状态效果值!H23 -> 80 | D167: =A167+1000000 -> 1015040 | E167: =A167+1100000 -> 1115040 | F167: 落石 | G167: 从天而降{0}枚落石，每颗对敌人造成{1}%攻击力的伤害。 | H167: 16 | I167: icon_s1504 | J167: =CONCATENATE("S",K167) -> S1504 | K167: 1504 | L167: 1504_timeline_TD | M167: 1 | N167: 1 | O167: 1 | P167: 1 | Q167: 100 | R167: =_xlfn.TEXTJOIN(";",1,Y167:AE167) -> 3;50 | S167: 2 | T167: =_xlfn.TEXTJOIN(";",1,IF(AQ167="","",101),IF(AR167="","",102),IF(AS167="","",103),IF(AT167="","",106),IF(AU167="","",107),IF(AV167="","",108),IF(AW167="","",109),IF(AX167="","",110)) ->  | U167: =_xlfn.TEXTJOIN(";",1,AQ167:AX167) ->  | V167: -1 | Y167: 3 | Z167: =ROUND(异常状态效果值!H9*(1-(AL167+AM167)-AN167*0.1)/AJ167,0) -> 50 | AG167: 落石·壹 | AI167: 150 | AJ167: =Y167 -> 3 | AK167: =Z167 -> 50
A168: =K168*10+P168-1 -> 15041 | B168: =B161+1 -> 13024 | C168: =异常状态效果值!H24 -> 120 | D168: 1015041 | E168: =A168+1100000 -> 1115041 | F168: 落石 | G168: 从天而降{0}枚落石，每颗对敌人造成{1}%攻击力的伤害。 | H168: 16 | I168: icon_s1504 | J168: =CONCATENATE("S",K168) -> S1504 | K168: 1504 | L168: 1504_timeline_TD | M168: 1 | N168: 1 | O168: 1 | P168: 2 | Q168: 100 | R168: =_xlfn.TEXTJOIN(";",1,Y168:AE168) -> 3;57 | S168: 2 | T168: =_xlfn.TEXTJOIN(";",1,IF(AQ168="","",101),IF(AR168="","",102),IF(AS168="","",103),IF(AT168="","",106),IF(AU168="","",107),IF(AV168="","",108),IF(AW168="","",109),IF(AX168="","",110)) -> 102 | U168: =_xlfn.TEXTJOIN(";",1,AQ168:AX168) -> 5 | V168: =A168+1200000 -> 1215041 | W168: 5 | Y168: 3 | Z168: =ROUND(异常状态效果值!H10*(1-(AL168+AM168)-AN168*0.1)/AJ168,0) -> 57 | AF168: =CONCATENATE("人物",CHOOSE(T168-100,"生命","攻击","防御"),"永久+",W168,"%") -> 人物攻击永久+5% | AG168: 落石·贰 | AI168: 171 | AJ168: 3 | AK168: 57 | AR168: 5
A169: 15042 | B169: 13024 | C169: =异常状态效果值!H25 -> 180 | D169: 1015042 | E169: 1115042 | F169: 落石 | G169: 从天而降{0}枚落石，每颗对敌人造成{1}%攻击力的伤害。 | H169: 16 | I169: icon_s1504 | J169: S1504 | K169: 1504 | L169: 1504_timeline_TD | M169: 1 | N169: 1 | O169: 1 | P169: 3 | Q169: 100 | R169: 4;45 | S169: 2 | T169: 102 | U169: 5 | V169: =A169+1200000 -> 1215042 | W169: 1 | Y169: 4 | Z169: =ROUND(异常状态效果值!H11*(1-(AL169+AM169)-AN169*0.1)/AJ169,0) -> 45 | AF169: =CONCATENATE("落石数量+",W169) -> 落石数量+1 | AG169: 落石·叁 | AI169: 180 | AJ169: 4 | AK169: 45 | AR169: 5
A170: 15043 | B170: 13024 | C170: =异常状态效果值!H26 -> 270 | D170: 1015043 | E170: 1115043 | F170: 落石 | G170: 从天而降{0}枚落石，每颗对敌人造成{1}%攻击力的伤害。 | H170: 16 | I170: icon_s1504 | J170: S1504 | K170: 1504 | L170: 1504_timeline_TD | M170: 1 | N170: 1 | O170: 1 | P170: 4 | Q170: 100 | R170: 4;48 | S170: 2 | T170: 102 | U170: 10 | V170: 1215043 | W170: 5 | Y170: 4 | Z170: =ROUND(异常状态效果值!H12*(1-(AL170+AM170)-AN170*0.1)/AJ170,0) -> 48 | AF170: =CONCATENATE("人物",CHOOSE(T170-100,"生命","攻击","防御"),"永久+",W170,"%") -> 人物攻击永久+5% | AG170: 落石·肆 | AI170: 192 | AJ170: 4 | AK170: 48 | AR170: 10
A171: 15044 | B171: 13024 | C171: =异常状态效果值!H27 -> 405 | D171: 1015044 | E171: 1115044 | F171: 落石 | G171: 从天而降{0}枚落石，每颗对敌人造成{1}%攻击力的伤害。 | H171: 16 | I171: icon_s1504 | J171: S1504 | K171: 1504 | L171: 1504_timeline_TD | M171: 1 | N171: 1 | O171: 1 | P171: 5 | Q171: 100 | R171: 5;40 | S171: 2 | T171: 102 | U171: 10 | V171: 1215044 | W171: 1 | Y171: 5 | Z171: =ROUND(异常状态效果值!H13*(1-(AL171+AM171)-AN171*0.1)/AJ171,0) -> 40 | AF171: =CONCATENATE("落石数量+",W171) -> 落石数量+1 | AG171: 落石·伍 | AI171: 200 | AJ171: 5 | AK171: 40 | AR171: 10
A172: 15045 | B172: 13024 | C172: =异常状态效果值!H28 -> 607.5 | D172: 1015045 | E172: 1115045 | F172: 落石 | G172: 从天而降{0}枚落石，每颗对敌人造成{1}%攻击力的伤害。 | H172: 16 | I172: icon_s1504 | J172: S1504 | K172: 1504 | L172: 1504_timeline_TD | M172: 1 | N172: 1 | O172: 1 | P172: 6 | Q172: 100 | R172: 5;44 | S172: 2 | T172: 102 | U172: 15 | V172: 1215045 | W172: 5 | Y172: 5 | Z172: =ROUND(异常状态效果值!H14*(1-(AL172+AM172)-AN172*0.1)/AJ172,0) -> 44 | AF172: =CONCATENATE("人物",CHOOSE(T172-100,"生命","攻击","防御"),"永久+",W172,"%") -> 人物攻击永久+5% | AG172: 落石·陆 | AI172: 220 | AJ172: 5 | AK172: 44 | AR172: 15
N173: 1 | Q173: 100
A174: =K174*10+P174-1 -> 15050 | B174: =B167+1 -> 13025 | C174: =异常状态效果值!H23 -> 80 | D174: =A174+1000000 -> 1015050 | E174: =A174+1100000 -> 1115050 | F174: 小石头 | G174: 发射{0}枚小石头，每颗对敌人造成{1}%攻击力的伤害。 | H174: 16 | I174: icon_s1505 | J174: =CONCATENATE("S",K174) -> S1505 | K174: 1505 | L174: 1505_timeline_TD | M174: 1 | N174: 1 | O174: 1 | P174: 1 | Q174: 100 | R174: =_xlfn.TEXTJOIN(";",1,Y174:AE174) -> 3;50 | S174: 2 | T174: =_xlfn.TEXTJOIN(";",1,IF(AQ174="","",101),IF(AR174="","",102),IF(AS174="","",103),IF(AT174="","",106),IF(AU174="","",107),IF(AV174="","",108),IF(AW174="","",109),IF(AX174="","",110)) ->  | U174: =_xlfn.TEXTJOIN(";",1,AQ174:AX174) ->  | V174: -1 | Y174: 3 | Z174: =ROUND(异常状态效果值!H9*(1-(AL174+AM174)-AN174*0.1)/AJ174,0) -> 50 | AG174: 小石头·壹 | AI174: =IF(A174="","",AJ174*AK174/(1-AL174-AM174)) -> 150 | AJ174: =Y174 -> 3 | AK174: =Z174 -> 50
A175: =K175*10+P175-1 -> 15051 | B175: =B168+1 -> 13025 | C175: =异常状态效果值!H24 -> 120 | D175: 1015051 | E175: =A175+1100000 -> 1115051 | F175: 小石头 | G175: 发射{0}枚小石头，每颗对敌人造成{1}%攻击力的伤害。 | H175: 16 | I175: icon_s1505 | J175: =CONCATENATE("S",K175) -> S1505 | K175: 1505 | L175: 1505_timeline_TD | M175: 1 | N175: 1 | O175: 1 | P175: 2 | Q175: 100 | R175: =_xlfn.TEXTJOIN(";",1,Y175:AE175) -> 3;57 | S175: 2 | T175: =_xlfn.TEXTJOIN(";",1,IF(AQ175="","",101),IF(AR175="","",102),IF(AS175="","",103),IF(AT175="","",106),IF(AU175="","",107),IF(AV175="","",108),IF(AW175="","",109),IF(AX175="","",110)) -> 101 | U175: =_xlfn.TEXTJOIN(";",1,AQ175:AX175) -> 5 | V175: =A175+1200000 -> 1215051 | W175: 5 | Y175: 3 | Z175: =ROUND(异常状态效果值!H10*(1-(AL175+AM175)-AN175*0.1)/AJ175,0) -> 57 | AF175: =CONCATENATE("人物",CHOOSE(T175-100,"生命","攻击","防御"),"永久+",W175,"%") -> 人物生命永久+5% | AG175: 小石头·贰 | AI175: 171 | AJ175: 3 | AK175: 57 | AQ175: 5
A176: 15052 | B176: 13025 | C176: =异常状态效果值!H25 -> 180 | D176: 1015052 | E176: 1115052 | F176: 小石头 | G176: 发射{0}枚小石头，每颗对敌人造成{1}%攻击力的伤害。 | H176: 16 | I176: icon_s1505 | J176: S1505 | K176: 1505 | L176: 1505_timeline_TD | M176: 1 | N176: 1 | O176: 1 | P176: 3 | Q176: 100 | R176: 4;45 | S176: 2 | T176: 101 | U176: 5 | V176: =A176+1200000 -> 1215052 | W176: 1 | Y176: 4 | Z176: =ROUND(异常状态效果值!H11*(1-(AL176+AM176)-AN176*0.1)/AJ176,0) -> 45 | AF176: =CONCATENATE("小石头数量+",W176) -> 小石头数量+1 | AG176: 小石头·叁 | AI176: 180 | AJ176: 4 | AK176: 45 | AQ176: 5
A177: 15053 | B177: 13025 | C177: =异常状态效果值!H26 -> 270 | D177: 1015053 | E177: 1115053 | F177: 小石头 | G177: 发射{0}枚小石头，每颗对敌人造成{1}%攻击力的伤害。 | H177: 16 | I177: icon_s1505 | J177: S1505 | K177: 1505 | L177: 1505_timeline_TD | M177: 1 | N177: 1 | O177: 1 | P177: 4 | Q177: 100 | R177: 4;48 | S177: 2 | T177: 101 | U177: 10 | V177: 1215053 | W177: 5 | Y177: 4 | Z177: =ROUND(异常状态效果值!H12*(1-(AL177+AM177)-AN177*0.1)/AJ177,0) -> 48 | AF177: =CONCATENATE("人物",CHOOSE(T177-100,"生命","攻击","防御"),"永久+",W177,"%") -> 人物生命永久+5% | AG177: 小石头·肆 | AI177: 192 | AJ177: 4 | AK177: 48 | AQ177: 10
A178: 15054 | B178: 13025 | C178: =异常状态效果值!H27 -> 405 | D178: 1015054 | E178: 1115054 | F178: 小石头 | G178: 发射{0}枚小石头，每颗对敌人造成{1}%攻击力的伤害。 | H178: 16 | I178: icon_s1505 | J178: S1505 | K178: 1505 | L178: 1505_timeline_TD | M178: 1 | N178: 1 | O178: 1 | P178: 5 | Q178: 100 | R178: 5;40 | S178: 2 | T178: 101 | U178: 10 | V178: 1215054 | W178: 1 | Y178: 5 | Z178: =ROUND(异常状态效果值!H13*(1-(AL178+AM178)-AN178*0.1)/AJ178,0) -> 40 | AF178: =CONCATENATE("小石头数量+",W178) -> 小石头数量+1 | AG178: 小石头·伍 | AI178: 200 | AJ178: 5 | AK178: 40 | AQ178: 10
A179: 15055 | B179: 13025 | C179: =异常状态效果值!H28 -> 607.5 | D179: 1015055 | E179: 1115055 | F179: 小石头 | G179: 发射{0}枚小石头，每颗对敌人造成{1}%攻击力的伤害。 | H179: 16 | I179: icon_s1505 | J179: S1505 | K179: 1505 | L179: 1505_timeline_TD | M179: 1 | N179: 1 | O179: 1 | P179: 6 | Q179: 100 | R179: 5;44 | S179: 2 | T179: 101 | U179: 15 | V179: 1215055 | W179: 5 | Y179: 5 | Z179: =ROUND(异常状态效果值!H14*(1-(AL179+AM179)-AN179*0.1)/AJ179,0) -> 44 | AF179: =CONCATENATE("人物",CHOOSE(T179-100,"生命","攻击","防御"),"永久+",W179,"%") -> 人物生命永久+5% | AG179: 小石头·陆 | AI179: 220 | AJ179: 5 | AK179: 44 | AQ179: 15
N180: 1 | Q180: 100
B181: 英雄-被动功法区域 | N181: 1 | Q181: 100
A182: =K182*10+P182-1 -> 20010 | B182: 13501 | C182: 100 | D182: =A182+1000000 -> 1020010 | E182: =A182+1100000 -> 1120010 | F182: 天衍星辰诀 | G182: 引星辰之力入体，增强体魄， 使后方槽位的功法无视功法法宝带来的防护罩以及自身护盾 | H182: 0 | I182: icon_s2001 | J182: =CONCATENATE("S",K182) -> S2001 | K182: 2001 | M182: 1 | N182: 0 | O182: 2 | P182: 1 | Q182: 100 | R182: =_xlfn.TEXTJOIN(";",1,Y182:AE182) ->  | S182: 0 | T182: =_xlfn.TEXTJOIN(";",1,IF(AQ182="","",101),IF(AR182="","",102),IF(AS182="","",103),IF(AT182="","",106),IF(AU182="","",107),IF(AV182="","",108),IF(AW182="","",109),IF(AX182="","",110)) ->  | U182: =_xlfn.TEXTJOIN(";",1,AQ182:AX182) ->  | V182: -1 | X182: 0;-1 | AG182: 天衍星辰诀·壹 | AI182: 0
A183: =K183*10+P183-1 -> 20011 | B183: 13501 | C183: 150 | D183: =A183+1000000 -> 1020011 | E183: =A183+1100000 -> 1120011 | F183: 天衍星辰诀 | G183: 引星辰之力入体，增强体魄， 使后方槽位的功法无视功法法宝带来的防护罩以及自身护盾 | H183: 0 | I183: icon_s2001 | J183: =CONCATENATE("S",K183) -> S2001 | K183: 2001 | M183: 1 | N183: 0 | O183: 2 | P183: 2 | Q183: 100 | R183: =_xlfn.TEXTJOIN(";",1,Y183:AE183) ->  | S183: 0 | T183: =_xlfn.TEXTJOIN(";",1,IF(AQ183="","",101),IF(AR183="","",102),IF(AS183="","",103),IF(AT183="","",106),IF(AU183="","",107),IF(AV183="","",108),IF(AW183="","",109),IF(AX183="","",110)) -> 103 | U183: =_xlfn.TEXTJOIN(";",1,AQ183:AX183) -> 3 | V183: =A183+1200000 -> 1220011 | W183: 3 | X183: 0;-1 | AF183: =CONCATENATE("人物",CHOOSE(T183-100,"生命","攻击","防御"),"永久+",W183,"%") -> 人物防御永久+3% | AG183: 天衍星辰诀·贰 | AI183: 0 | AS183: 3
A184: 20012 | B184: 13501 | C184: 225 | D184: 1020012 | E184: 1120012 | F184: 天衍星辰诀 | G184: 引星辰之力入体，增强体魄， 使后方槽位的功法无视功法法宝带来的防护罩以及自身护盾 | H184: 0 | I184: icon_s2001 | J184: S2001 | K184: 2001 | M184: 1 | N184: 0 | O184: 2 | P184: 3 | Q184: 100 | S184: 0 | T184: 103 | U184: 6 | V184: =A184+1200000 -> 1220012 | W184: 3 | X184: 0;-1 | AF184: 人物防御永久+3% | AG184: 天衍星辰诀·叁 | AI184: 0 | AS184: 6
A185: 20013 | B185: 13501 | C185: 337.5 | D185: 1020013 | E185: 1120013 | F185: 天衍星辰诀 | G185: 引星辰之力入体，增强体魄， 使后方槽位的功法无视功法法宝带来的防护罩以及自身护盾 | H185: 0 | I185: icon_s2001 | J185: S2001 | K185: 2001 | M185: 1 | N185: 0 | O185: 2 | P185: 4 | Q185: 100 | S185: 0 | T185: 103 | U185: 9 | V185: 1220013 | W185: 3 | X185: 0;-1 | AF185: 人物防御永久+3% | AG185: 天衍星辰诀·肆 | AI185: 0 | AS185: 9
A186: 20014 | B186: 13501 | C186: 506.25 | D186: 1020014 | E186: 1120014 | F186: 天衍星辰诀 | G186: 引星辰之力入体，增强体魄， 使后方槽位的功法无视功法法宝带来的防护罩以及自身护盾 | H186: 0 | I186: icon_s2001 | J186: S2001 | K186: 2001 | M186: 1 | N186: 0 | O186: 2 | P186: 5 | Q186: 100 | S186: 0 | T186: 103 | U186: 12 | V186: 1220014 | W186: 3 | X186: 0;-1 | AF186: 人物防御永久+3% | AG186: 天衍星辰诀·伍 | AI186: 0 | AS186: 12
A187: 20015 | B187: 13501 | C187: 759.375 | D187: 1020015 | E187: 1120015 | F187: 天衍星辰诀 | G187: 引星辰之力入体，增强体魄， 使后方槽位的功法无视功法法宝带来的防护罩以及自身护盾 | H187: 0 | I187: icon_s2001 | J187: S2001 | K187: 2001 | M187: 1 | N187: 0 | O187: 2 | P187: 6 | Q187: 100 | S187: 0 | T187: 103 | U187: 12 | V187: 1220015 | X187: 0;-1 | AF187: 穿过护盾时额外对护盾造成等额伤害 | AG187: 天衍星辰诀·陆 | AI187: 0 | AS187: 12
N188: 0
A189: =K189*10+P189-1 -> 20020 | B189: 13502 | C189: 100 | D189: =A189+1000000 -> 1020020 | E189: =A189+1100000 -> 1120020 | F189: 法宝秘籍 | G189: 后方槽位功法命中目标后，为法宝提供{0}%的充能 | H189: 0 | I189: icon_s2002 | J189: =CONCATENATE("S",K189) -> S2002 | K189: =K182+1 -> 2002 | M189: 1 | N189: 0 | O189: 2 | P189: 1 | Q189: 30 | R189: =_xlfn.TEXTJOIN(";",1,Y189:AE189) -> 1 | S189: 1 | T189: =_xlfn.TEXTJOIN(";",1,IF(AQ189="","",101),IF(AR189="","",102),IF(AS189="","",103),IF(AT189="","",106),IF(AU189="","",107),IF(AV189="","",108),IF(AW189="","",109),IF(AX189="","",110)) ->  | U189: =_xlfn.TEXTJOIN(";",1,AQ189:AX189) ->  | V189: -1 | X189: 0;-1 | Y189: 1 | AG189: 法宝秘籍·壹 | AI189: 0
A190: =K190*10+P190-1 -> 20021 | B190: 13502 | C190: 150 | D190: 1020021 | E190: =A190+1100000 -> 1120021 | F190: 法宝秘籍 | G190: 后方槽位功法命中目标后，为法宝提供{0}%的充能 | H190: 0 | I190: icon_s2002 | J190: =CONCATENATE("S",K190) -> S2002 | K190: =K183+1 -> 2002 | M190: 1 | N190: 0 | O190: 2 | P190: 2 | Q190: 30 | R190: =_xlfn.TEXTJOIN(";",1,Y190:AE190) -> 1 | S190: 1 | T190: =_xlfn.TEXTJOIN(";",1,IF(AQ190="","",101),IF(AR190="","",102),IF(AS190="","",103),IF(AT190="","",106),IF(AU190="","",107),IF(AV190="","",108),IF(AW190="","",109),IF(AX190="","",110)) -> 102 | U190: =_xlfn.TEXTJOIN(";",1,AQ190:AX190) -> 3 | V190: =A190+1200000 -> 1220021 | W190: 3 | X190: 0;-1 | Y190: 1 | AF190: =CONCATENATE("人物",CHOOSE(T190-100,"生命","攻击","防御"),"永久+",W190,"%") -> 人物攻击永久+3% | AG190: 法宝秘籍·贰 | AI190: 0 | AR190: 3
A191: 20022 | B191: 13502 | C191: 225 | D191: 1020022 | E191: 1120022 | F191: 法宝秘籍 | G191: 后方槽位功法命中目标后，为法宝提供{0}%的充能 | H191: 0 | I191: icon_s2002 | J191: S2002 | K191: 2002 | M191: 1 | N191: 0 | O191: 2 | P191: 3 | Q191: 30 | R191: 1 | S191: 1 | T191: 102 | U191: 6 | V191: =A191+1200000 -> 1220022 | W191: 3 | X191: 0;-1 | Y191: 1 | AF191: 人物攻击永久+3% | AG191: 法宝秘籍·叁 | AI191: 0 | AR191: 6
A192: 20023 | B192: 13502 | C192: 337.5 | D192: 1020023 | E192: 1120023 | F192: 法宝秘籍 | G192: 后方槽位功法命中目标后，为法宝提供{0}%的充能 | H192: 0 | I192: icon_s2002 | J192: S2002 | K192: 2002 | M192: 1 | N192: 0 | O192: 2 | P192: 4 | Q192: 30 | R192: 1 | S192: 1 | T192: 102 | U192: 9 | V192: 1220023 | W192: 3 | X192: 0;-1 | Y192: 1 | AF192: 人物攻击永久+3% | AG192: 法宝秘籍·肆 | AI192: 0 | AR192: 9
A193: 20024 | B193: 13502 | C193: 506.25 | D193: 1020024 | E193: 1120024 | F193: 法宝秘籍 | G193: 后方槽位功法命中目标后，为法宝提供{0}%的充能 | H193: 0 | I193: icon_s2002 | J193: S2002 | K193: 2002 | M193: 1 | N193: 0 | O193: 2 | P193: 5 | Q193: 30 | R193: 1 | S193: 1 | T193: 102 | U193: 12 | V193: 1220024 | W193: 3 | X193: 0;-1 | Y193: 1 | AF193: 人物攻击永久+3% | AG193: 法宝秘籍·伍 | AI193: 0 | AR193: 12
A194: 20025 | B194: 13502 | C194: 759.375 | D194: 1020025 | E194: 1120025 | F194: 法宝秘籍 | G194: 后方槽位功法命中目标后，为法宝提供{0}%的充能。 法宝可以瞬间施放，且规避法宝对拼。 | H194: 0 | I194: icon_s2002 | J194: S2002 | K194: 2002 | M194: 1 | N194: 0 | O194: 2 | P194: 6 | Q194: 30 | R194: 3 | S194: 1 | T194: 102 | U194: 12 | V194: 1220025 | X194: 0;-1 | Y194: 3 | AF194: 充能增效，法宝瞬发且不对拼 | AG194: 法宝秘籍·陆 | AI194: 0 | AR194: 12
N195: 0
A196: =K196*10+P196-1 -> 20030 | B196: 13503 | C196: 100 | D196: =A196+1000000 -> 1020030 | E196: =A196+1100000 -> 1120030 | F196: 崩脉决 | G196: 前方功法造成伤害时有{0}%概率施加一层对应属性的伤势 | H196: 0 | I196: icon_s2003 | J196: =CONCATENATE("S",K196) -> S2003 | K196: =K189+1 -> 2003 | M196: 1 | N196: 0 | O196: 2 | P196: 1 | Q196: 20 | R196: =_xlfn.TEXTJOIN(";",1,Y196:AE196) -> 10 | S196: 1 | T196: =_xlfn.TEXTJOIN(";",1,IF(AQ196="","",101),IF(AR196="","",102),IF(AS196="","",103),IF(AT196="","",106),IF(AU196="","",107),IF(AV196="","",108),IF(AW196="","",109),IF(AX196="","",110)) ->  | U196: =_xlfn.TEXTJOIN(";",1,AQ196:AX196) ->  | V196: -1 | X196: 0;1 | Y196: 10 | AG196: 崩脉决·壹 | AI196: 0
A197: =K197*10+P197-1 -> 20031 | B197: 13503 | C197: 150 | D197: 1020031 | E197: =A197+1100000 -> 1120031 | F197: 崩脉决 | G197: 前方功法造成伤害时有{0}%概率施加一层对应属性的伤势 | H197: 0 | I197: icon_s2003 | J197: =CONCATENATE("S",K197) -> S2003 | K197: =K190+1 -> 2003 | M197: 1 | N197: 0 | O197: 2 | P197: 2 | Q197: 20 | R197: =_xlfn.TEXTJOIN(";",1,Y197:AE197) -> 12 | S197: 1 | T197: =_xlfn.TEXTJOIN(";",1,IF(AQ197="","",101),IF(AR197="","",102),IF(AS197="","",103),IF(AT197="","",106),IF(AU197="","",107),IF(AV197="","",108),IF(AW197="","",109),IF(AX197="","",110)) -> 103 | U197: =_xlfn.TEXTJOIN(";",1,AQ197:AX197) -> 3 | V197: =A197+1200000 -> 1220031 | W197: 3 | X197: 0;1 | Y197: 12 | AF197: =CONCATENATE("人物",CHOOSE(T197-100,"生命","攻击","防御"),"永久+",W197,"%") -> 人物防御永久+3% | AG197: 崩脉决·贰 | AI197: 0 | AS197: 3
A198: 20032 | B198: 13503 | C198: 225 | D198: 1020032 | E198: 1120032 | F198: 崩脉决 | G198: 前方功法造成伤害时有{0}%概率施加一层对应属性的伤势 | H198: 0 | I198: icon_s2003 | J198: S2003 | K198: 2003 | M198: 1 | N198: 0 | O198: 2 | P198: 3 | Q198: 20 | R198: 14 | S198: 1 | T198: 103 | U198: 6 | V198: =A198+1200000 -> 1220032 | W198: 3 | X198: 0;1 | Y198: 14 | AF198: 人物防御永久+3% | AG198: 崩脉决·叁 | AI198: 0 | AS198: 6
A199: 20033 | B199: 13503 | C199: 337.5 | D199: 1020033 | E199: 1120033 | F199: 崩脉决 | G199: 前方功法造成伤害时有{0}%概率施加一层对应属性的伤势 | H199: 0 | I199: =IF(A199="","",CONCATENATE("icon_s",K199)) -> icon_s2003 | J199: S2003 | K199: 2003 | M199: 1 | N199: 0 | O199: 2 | P199: 4 | Q199: 20 | R199: 16 | S199: 1 | T199: 103 | U199: 9 | V199: 1220033 | W199: 3 | X199: 0;1 | Y199: 16 | AF199: 人物防御永久+3% | AG199: 崩脉决·肆 | AI199: =IF(A199="","",AJ199*AK199/(1-AL199-AM199)) -> 0 | AS199: 9
A200: 20034 | B200: 13503 | C200: 506.25 | D200: 1020034 | E200: 1120034 | F200: 崩脉决 | G200: 前方功法造成伤害时有{0}%概率施加一层对应属性的伤势 | H200: 0 | I200: icon_s2003 | J200: S2003 | K200: 2003 | M200: 1 | N200: 0 | O200: 2 | P200: 5 | Q200: 20 | R200: 18 | S200: 1 | T200: 103 | U200: 12 | V200: 1220034 | W200: 3 | X200: 0;1 | Y200: 18 | AF200: 人物防御永久+3% | AG200: 崩脉决·伍 | AI200: 0 | AS200: 12
... 430 more rows

Sheet SkillPowerupConfig
A1: ID | B1: MainPower | C1: SkillPower1 | D1: LevelupItem | E1: LevelupItemNum | J1: PlayerLevelLimit
A2: int | B2: float | C2: float | D2: int[] | E2: int[] | J2: int
A4: 等级 | B4: 功法对拼标准强度 | C4: 标准强度百分比 | D4: 功法升级所需道具 | E4: 攻击升级所需道具数量 | F4: 道具1 | G4: 数量1 | H4: 道具2 | I4: 数量2 | J4: 升级所需境界 | K4: 1.037 | L4: 100 | M4: 3000
A5: 1 | B5: 100 | C5: 100 | D5: =_xlfn.TEXTJOIN(";",1,F5,H5) -> 1001;1005 | E5: =_xlfn.TEXTJOIN(";",1,G5,I5) -> 505;100 | F5: 1001 | G5: =ROUND(20*VLOOKUP(J5,[2]ResourceLevelConfig!$A:$G,3,FALSE)/40,0) -> 505 | H5: 1005 | I5: =ROUND(VLOOKUP(J5-1,[2]ResourceLevelConfig!$A:$G,7,FALSE)*2,0) -> 100 | J5: 2 | K5: =SUM(I$5:I5) -> 100
A6: 2 | B6: =ROUND(B5*K$4,0) -> 104 | C6: 105 | D6: =_xlfn.TEXTJOIN(";",1,F6,H6) -> 1001;1005 | E6: 510;101 | F6: 1001 | G6: =ROUND(20*VLOOKUP(J6,[2]ResourceLevelConfig!$A:$G,3,FALSE)/40,0) -> 510 | H6: 1005 | I6: =ROUND(VLOOKUP(J6-1,[2]ResourceLevelConfig!$A:$G,7,FALSE)*2,0) -> 101 | J6: 3 | K6: =SUM(I$5:I6) -> 201
A7: 3 | B7: =ROUND(B6*K$4,0) -> 108 | C7: 110 | D7: 1001;1005 | E7: 516;102 | F7: 1001 | G7: =ROUND(20*VLOOKUP(J7,[2]ResourceLevelConfig!$A:$G,3,FALSE)/40,0) -> 516 | H7: 1005 | I7: =ROUND(VLOOKUP(J7-1,[2]ResourceLevelConfig!$A:$G,7,FALSE)*2,0) -> 102 | J7: 4 | K7: =SUM(I$5:I7) -> 303
A8: 4 | B8: 112 | C8: 115 | D8: 1001;1005 | E8: 521;103 | F8: 1001 | G8: =ROUND(20*VLOOKUP(J8,[2]ResourceLevelConfig!$A:$G,3,FALSE)/40,0) -> 521 | H8: 1005 | I8: =ROUND(VLOOKUP(J8-1,[2]ResourceLevelConfig!$A:$G,7,FALSE)*2,0) -> 103 | J8: 5 | K8: =SUM(I$5:I8) -> 406 | R8: =10522*3 -> 31566
A9: 5 | B9: 116 | C9: 120 | D9: 1001;1005 | E9: 526;104 | F9: 1001 | G9: =ROUND(20*VLOOKUP(J9,[2]ResourceLevelConfig!$A:$G,3,FALSE)/40,0) -> 526 | H9: 1005 | I9: =ROUND(VLOOKUP(J9-1,[2]ResourceLevelConfig!$A:$G,7,FALSE)*2,0) -> 104 | J9: 6 | K9: =SUM(I$5:I9) -> 510
A10: 6 | B10: 120 | C10: 125 | D10: 1001;1005 | E10: 531;105 | F10: 1001 | G10: =ROUND(20*VLOOKUP(J10,[2]ResourceLevelConfig!$A:$G,3,FALSE)/40,0) -> 531 | H10: 1005 | I10: =ROUND(VLOOKUP(J10-1,[2]ResourceLevelConfig!$A:$G,7,FALSE)*2,0) -> 105 | J10: 7 | K10: =SUM(I$5:I10) -> 615
A11: 7 | B11: 124 | C11: 130 | D11: 1001;1005 | E11: 537;106 | F11: 1001 | G11: =ROUND(20*VLOOKUP(J11,[2]ResourceLevelConfig!$A:$G,3,FALSE)/40,0) -> 537 | H11: 1005 | I11: =ROUND(VLOOKUP(J11-1,[2]ResourceLevelConfig!$A:$G,7,FALSE)*2,0) -> 106 | J11: 8 | K11: =SUM(I$5:I11) -> 721
A12: 8 | B12: 129 | C12: 135 | D12: 1001;1005 | E12: 542;107 | F12: 1001 | G12: =ROUND(20*VLOOKUP(J12,[2]ResourceLevelConfig!$A:$G,3,FALSE)/40,0) -> 542 | H12: 1005 | I12: =ROUND(VLOOKUP(J12-1,[2]ResourceLevelConfig!$A:$G,7,FALSE)*2,0) -> 107 | J12: 9 | K12: =SUM(I$5:I12) -> 828
A13: 9 | B13: 134 | C13: 140 | D13: 1001;1005 | E13: 547;108 | F13: 1001 | G13: =ROUND(20*VLOOKUP(J13,[2]ResourceLevelConfig!$A:$G,3,FALSE)/40,0) -> 547 | H13: 1005 | I13: =ROUND(VLOOKUP(J13-1,[2]ResourceLevelConfig!$A:$G,7,FALSE)*2,0) -> 108 | J13: 10 | K13: =SUM(I$5:I13) -> 936
A14: 10 | B14: 139 | C14: 145 | D14: 1001;1005 | E14: 553;109 | F14: 1001 | G14: =ROUND(20*VLOOKUP(J14,[2]ResourceLevelConfig!$A:$G,3,FALSE)/40,0) -> 553 | H14: 1005 | I14: =ROUND(VLOOKUP(J14-1,[2]ResourceLevelConfig!$A:$G,7,FALSE)*2,0) -> 109 | J14: 11 | K14: =SUM(I$5:I14) -> 1045
A15: 11 | B15: 144 | C15: 150 | D15: 1001;1005 | E15: 559;110 | F15: 1001 | G15: =ROUND(20*VLOOKUP(J15,[2]ResourceLevelConfig!$A:$G,3,FALSE)/40,0) -> 559 | H15: 1005 | I15: =ROUND(VLOOKUP(J15-1,[2]ResourceLevelConfig!$A:$G,7,FALSE)*2,0) -> 110 | J15: 12 | K15: =SUM(I$5:I15) -> 1155
A16: 12 | B16: 149 | C16: 155 | D16: 1001;1005 | E16: 564;111 | F16: 1001 | G16: =ROUND(20*VLOOKUP(J16,[2]ResourceLevelConfig!$A:$G,3,FALSE)/40,0) -> 564 | H16: 1005 | I16: =ROUND(VLOOKUP(J16-1,[2]ResourceLevelConfig!$A:$G,7,FALSE)*2,0) -> 111 | J16: 13 | K16: =SUM(I$5:I16) -> 1266
A17: 13 | B17: 155 | C17: 160 | D17: 1001;1005 | E17: 570;112 | F17: 1001 | G17: =ROUND(20*VLOOKUP(J17,[2]ResourceLevelConfig!$A:$G,3,FALSE)/40,0) -> 570 | H17: 1005 | I17: =ROUND(VLOOKUP(J17-1,[2]ResourceLevelConfig!$A:$G,7,FALSE)*2,0) -> 112 | J17: 14 | K17: =SUM(I$5:I17) -> 1378
A18: 14 | B18: 161 | C18: 165 | D18: 1001;1005 | E18: 576;113 | F18: 1001 | G18: =ROUND(20*VLOOKUP(J18,[2]ResourceLevelConfig!$A:$G,3,FALSE)/40,0) -> 576 | H18: 1005 | I18: =ROUND(VLOOKUP(J18-1,[2]ResourceLevelConfig!$A:$G,7,FALSE)*2,0) -> 113 | J18: 15 | K18: =SUM(I$5:I18) -> 1491
A19: 15 | B19: 167 | C19: 170 | D19: 1001;1005 | E19: 581;114 | F19: 1001 | G19: =ROUND(20*VLOOKUP(J19,[2]ResourceLevelConfig!$A:$G,3,FALSE)/40,0) -> 581 | H19: 1005 | I19: =ROUND(VLOOKUP(J19-1,[2]ResourceLevelConfig!$A:$G,7,FALSE)*2,0) -> 114 | J19: 16 | K19: =SUM(I$5:I19) -> 1605
A20: 16 | B20: 173 | C20: 175 | D20: 1001;1005 | E20: 587;115 | F20: 1001 | G20: =ROUND(20*VLOOKUP(J20,[2]ResourceLevelConfig!$A:$G,3,FALSE)/40,0) -> 587 | H20: 1005 | I20: =ROUND(VLOOKUP(J20-1,[2]ResourceLevelConfig!$A:$G,7,FALSE)*2,0) -> 115 | J20: 17 | K20: =SUM(I$5:I20) -> 1720
A21: 17 | B21: 179 | C21: 180 | D21: 1001;1005 | E21: 593;116 | F21: 1001 | G21: =ROUND(20*VLOOKUP(J21,[2]ResourceLevelConfig!$A:$G,3,FALSE)/40,0) -> 593 | H21: 1005 | I21: =ROUND(VLOOKUP(J21-1,[2]ResourceLevelConfig!$A:$G,7,FALSE)*2,0) -> 116 | J21: 18 | K21: =SUM(I$5:I21) -> 1836
A22: 18 | B22: 186 | C22: 185 | D22: 1001;1005 | E22: 599;117 | F22: 1001 | G22: =ROUND(20*VLOOKUP(J22,[2]ResourceLevelConfig!$A:$G,3,FALSE)/40,0) -> 599 | H22: 1005 | I22: =ROUND(VLOOKUP(J22-1,[2]ResourceLevelConfig!$A:$G,7,FALSE)*2,0) -> 117 | J22: 19 | K22: =SUM(I$5:I22) -> 1953
A23: 19 | B23: 193 | C23: 190 | D23: 1001;1005 | E23: 605;118 | F23: 1001 | G23: =ROUND(20*VLOOKUP(J23,[2]ResourceLevelConfig!$A:$G,3,FALSE)/40,0) -> 605 | H23: 1005 | I23: =ROUND(VLOOKUP(J23-1,[2]ResourceLevelConfig!$A:$G,7,FALSE)*2,0) -> 118 | J23: 20 | K23: =SUM(I$5:I23) -> 2071
A24: 20 | B24: 200 | C24: 195 | D24: 1001;1005 | E24: 611;119 | F24: 1001 | G24: =ROUND(20*VLOOKUP(J24,[2]ResourceLevelConfig!$A:$G,3,FALSE)/40,0) -> 611 | H24: 1005 | I24: =ROUND(VLOOKUP(J24-1,[2]ResourceLevelConfig!$A:$G,7,FALSE)*2,0) -> 119 | J24: 21 | K24: =SUM(I$5:I24) -> 2190
A25: 21 | B25: 207 | C25: 200 | D25: 1001;1005 | E25: 617;120 | F25: 1001 | G25: =ROUND(20*VLOOKUP(J25,[2]ResourceLevelConfig!$A:$G,3,FALSE)/40,0) -> 617 | H25: 1005 | I25: =ROUND(VLOOKUP(J25-1,[2]ResourceLevelConfig!$A:$G,7,FALSE)*2,0) -> 120 | J25: 22 | K25: =SUM(I$5:I25) -> 2310
A26: 22 | B26: 215 | C26: 205 | D26: 1001;1005 | E26: 624;121 | F26: 1001 | G26: =ROUND(20*VLOOKUP(J26,[2]ResourceLevelConfig!$A:$G,3,FALSE)/40,0) -> 624 | H26: 1005 | I26: =ROUND(VLOOKUP(J26-1,[2]ResourceLevelConfig!$A:$G,7,FALSE)*2,0) -> 121 | J26: 23 | K26: =SUM(I$5:I26) -> 2431
A27: 23 | B27: 223 | C27: 210 | D27: 1001;1005 | E27: 630;122 | F27: 1001 | G27: =ROUND(20*VLOOKUP(J27,[2]ResourceLevelConfig!$A:$G,3,FALSE)/40,0) -> 630 | H27: 1005 | I27: =ROUND(VLOOKUP(J27-1,[2]ResourceLevelConfig!$A:$G,7,FALSE)*2,0) -> 122 | J27: 24 | K27: =SUM(I$5:I27) -> 2553
A28: 24 | B28: 231 | C28: 215 | D28: 1001;1005 | E28: 636;123 | F28: 1001 | G28: =ROUND(20*VLOOKUP(J28,[2]ResourceLevelConfig!$A:$G,3,FALSE)/40,0) -> 636 | H28: 1005 | I28: =ROUND(VLOOKUP(J28-1,[2]ResourceLevelConfig!$A:$G,7,FALSE)*2,0) -> 123 | J28: 25 | K28: =SUM(I$5:I28) -> 2676
A29: 25 | B29: 240 | C29: 220 | D29: 1001;1005 | E29: 643;124 | F29: 1001 | G29: =ROUND(20*VLOOKUP(J29,[2]ResourceLevelConfig!$A:$G,3,FALSE)/40,0) -> 643 | H29: 1005 | I29: =ROUND(VLOOKUP(J29-1,[2]ResourceLevelConfig!$A:$G,7,FALSE)*2,0) -> 124 | J29: 26 | K29: =SUM(I$5:I29) -> 2800
A30: 26 | B30: 249 | C30: 225 | D30: 1001;1005 | E30: 649;125 | F30: 1001 | G30: =ROUND(20*VLOOKUP(J30,[2]ResourceLevelConfig!$A:$G,3,FALSE)/40,0) -> 649 | H30: 1005 | I30: =ROUND(VLOOKUP(J30-1,[2]ResourceLevelConfig!$A:$G,7,FALSE)*2,0) -> 125 | J30: 27 | K30: =SUM(I$5:I30) -> 2925
A31: 27 | B31: 258 | C31: 230 | D31: 1001;1005 | E31: 656;126 | F31: 1001 | G31: =ROUND(20*VLOOKUP(J31,[2]ResourceLevelConfig!$A:$G,3,FALSE)/40,0) -> 656 | H31: 1005 | I31: =ROUND(VLOOKUP(J31-1,[2]ResourceLevelConfig!$A:$G,7,FALSE)*2,0) -> 126 | J31: 28 | K31: =SUM(I$5:I31) -> 3051
A32: 28 | B32: 268 | C32: 235 | D32: 1001;1005 | E32: 662;127 | F32: 1001 | G32: =ROUND(20*VLOOKUP(J32,[2]ResourceLevelConfig!$A:$G,3,FALSE)/40,0) -> 662 | H32: 1005 | I32: =ROUND(VLOOKUP(J32-1,[2]ResourceLevelConfig!$A:$G,7,FALSE)*2,0) -> 127 | J32: 29 | K32: =SUM(I$5:I32) -> 3178
A33: 29 | B33: 278 | C33: 240 | D33: 1001;1005 | E33: 669;128 | F33: 1001 | G33: =ROUND(20*VLOOKUP(J33,[2]ResourceLevelConfig!$A:$G,3,FALSE)/40,0) -> 669 | H33: 1005 | I33: =ROUND(VLOOKUP(J33-1,[2]ResourceLevelConfig!$A:$G,7,FALSE)*2,0) -> 128 | J33: 30 | K33: =SUM(I$5:I33) -> 3306
A34: 30 | B34: 288 | C34: 245 | D34: 1001;1005 | E34: 676;129 | F34: 1001 | G34: =ROUND(20*VLOOKUP(J34,[2]ResourceLevelConfig!$A:$G,3,FALSE)/40,0) -> 676 | H34: 1005 | I34: =ROUND(VLOOKUP(J34-1,[2]ResourceLevelConfig!$A:$G,7,FALSE)*2,0) -> 129 | J34: 31 | K34: =SUM(I$5:I34) -> 3435
A35: 31 | B35: 299 | C35: 250 | D35: 1001;1005 | E35: 682;130 | F35: 1001 | G35: =ROUND(20*VLOOKUP(J35,[2]ResourceLevelConfig!$A:$G,3,FALSE)/40,0) -> 682 | H35: 1005 | I35: =ROUND(VLOOKUP(J35-1,[2]ResourceLevelConfig!$A:$G,7,FALSE)*2,0) -> 130 | J35: 32 | K35: =SUM(I$5:I35) -> 3565
A36: 32 | B36: 310 | C36: 255 | D36: 1001;1005 | E36: 689;131 | F36: 1001 | G36: =ROUND(20*VLOOKUP(J36,[2]ResourceLevelConfig!$A:$G,3,FALSE)/40,0) -> 689 | H36: 1005 | I36: =ROUND(VLOOKUP(J36-1,[2]ResourceLevelConfig!$A:$G,7,FALSE)*2,0) -> 131 | J36: 33 | K36: =SUM(I$5:I36) -> 3696
A37: 33 | B37: 321 | C37: 260 | D37: 1001;1005 | E37: 696;132 | F37: 1001 | G37: =ROUND(20*VLOOKUP(J37,[2]ResourceLevelConfig!$A:$G,3,FALSE)/40,0) -> 696 | H37: 1005 | I37: =ROUND(VLOOKUP(J37-1,[2]ResourceLevelConfig!$A:$G,7,FALSE)*2,0) -> 132 | J37: 34 | K37: =SUM(I$5:I37) -> 3828
A38: 34 | B38: 333 | C38: 265 | D38: 1001;1005 | E38: 703;133 | F38: 1001 | G38: =ROUND(20*VLOOKUP(J38,[2]ResourceLevelConfig!$A:$G,3,FALSE)/40,0) -> 703 | H38: 1005 | I38: =ROUND(VLOOKUP(J38-1,[2]ResourceLevelConfig!$A:$G,7,FALSE)*2,0) -> 133 | J38: 35 | K38: =SUM(I$5:I38) -> 3961
A39: 35 | B39: 345 | C39: 270 | D39: 1001;1005 | E39: 710;134 | F39: 1001 | G39: =ROUND(20*VLOOKUP(J39,[2]ResourceLevelConfig!$A:$G,3,FALSE)/40,0) -> 710 | H39: 1005 | I39: =ROUND(VLOOKUP(J39-1,[2]ResourceLevelConfig!$A:$G,7,FALSE)*2,0) -> 134 | J39: 36 | K39: =SUM(I$5:I39) -> 4095
A40: 36 | B40: 358 | C40: 275 | D40: 1001;1005 | E40: 717;135 | F40: 1001 | G40: =ROUND(20*VLOOKUP(J40,[2]ResourceLevelConfig!$A:$G,3,FALSE)/40,0) -> 717 | H40: 1005 | I40: =ROUND(VLOOKUP(J40-1,[2]ResourceLevelConfig!$A:$G,7,FALSE)*2,0) -> 135 | J40: 37 | K40: =SUM(I$5:I40) -> 4230
A41: 37 | B41: 371 | C41: 280 | D41: 1001;1005 | E41: 725;136 | F41: 1001 | G41: =ROUND(20*VLOOKUP(J41,[2]ResourceLevelConfig!$A:$G,3,FALSE)/40,0) -> 725 | H41: 1005 | I41: =ROUND(VLOOKUP(J41-1,[2]ResourceLevelConfig!$A:$G,7,FALSE)*2,0) -> 136 | J41: 38 | K41: =SUM(I$5:I41) -> 4366
A42: 38 | B42: 385 | C42: 285 | D42: 1001;1005 | E42: 732;137 | F42: 1001 | G42: =ROUND(20*VLOOKUP(J42,[2]ResourceLevelConfig!$A:$G,3,FALSE)/40,0) -> 732 | H42: 1005 | I42: =ROUND(VLOOKUP(J42-1,[2]ResourceLevelConfig!$A:$G,7,FALSE)*2,0) -> 137 | J42: 39 | K42: =SUM(I$5:I42) -> 4503
A43: 39 | B43: 399 | C43: 290 | D43: 1001;1005 | E43: 739;138 | F43: 1001 | G43: =ROUND(20*VLOOKUP(J43,[2]ResourceLevelConfig!$A:$G,3,FALSE)/40,0) -> 739 | H43: 1005 | I43: =ROUND(VLOOKUP(J43-1,[2]ResourceLevelConfig!$A:$G,7,FALSE)*2,0) -> 138 | J43: 40 | K43: =SUM(I$5:I43) -> 4641
A44: 40 | B44: 414 | C44: 295 | D44: 1001;1005 | E44: 747;139 | F44: 1001 | G44: =ROUND(20*VLOOKUP(J44,[2]ResourceLevelConfig!$A:$G,3,FALSE)/40,0) -> 747 | H44: 1005 | I44: =ROUND(VLOOKUP(J44-1,[2]ResourceLevelConfig!$A:$G,7,FALSE)*2,0) -> 139 | J44: 41 | K44: =SUM(I$5:I44) -> 4780
A45: 41 | B45: 429 | C45: 300 | D45: 1001;1005 | E45: 754;140 | F45: 1001 | G45: =ROUND(20*VLOOKUP(J45,[2]ResourceLevelConfig!$A:$G,3,FALSE)/40,0) -> 754 | H45: 1005 | I45: =ROUND(VLOOKUP(J45-1,[2]ResourceLevelConfig!$A:$G,7,FALSE)*2,0) -> 140 | J45: 42 | K45: =SUM(I$5:I45) -> 4920
A46: 42 | B46: 445 | C46: 305 | D46: 1001;1005 | E46: 762;141 | F46: 1001 | G46: =ROUND(20*VLOOKUP(J46,[2]ResourceLevelConfig!$A:$G,3,FALSE)/40,0) -> 762 | H46: 1005 | I46: =ROUND(VLOOKUP(J46-1,[2]ResourceLevelConfig!$A:$G,7,FALSE)*2,0) -> 141 | J46: 43 | K46: =SUM(I$5:I46) -> 5061
A47: 43 | B47: 461 | C47: 310 | D47: 1001;1005 | E47: 770;142 | F47: 1001 | G47: =ROUND(20*VLOOKUP(J47,[2]ResourceLevelConfig!$A:$G,3,FALSE)/40,0) -> 770 | H47: 1005 | I47: =ROUND(VLOOKUP(J47-1,[2]ResourceLevelConfig!$A:$G,7,FALSE)*2,0) -> 142 | J47: 44 | K47: =SUM(I$5:I47) -> 5203
A48: 44 | B48: 478 | C48: 315 | D48: 1001;1005 | E48: 777;143 | F48: 1001 | G48: =ROUND(20*VLOOKUP(J48,[2]ResourceLevelConfig!$A:$G,3,FALSE)/40,0) -> 777 | H48: 1005 | I48: =ROUND(VLOOKUP(J48-1,[2]ResourceLevelConfig!$A:$G,7,FALSE)*2,0) -> 143 | J48: 45 | K48: =SUM(I$5:I48) -> 5346
A49: 45 | B49: 496 | C49: 320 | D49: 1001;1005 | E49: 785;144 | F49: 1001 | G49: =ROUND(20*VLOOKUP(J49,[2]ResourceLevelConfig!$A:$G,3,FALSE)/40,0) -> 785 | H49: 1005 | I49: =ROUND(VLOOKUP(J49-1,[2]ResourceLevelConfig!$A:$G,7,FALSE)*2,0) -> 144 | J49: 46 | K49: =SUM(I$5:I49) -> 5490
A50: 46 | B50: 514 | C50: 325 | D50: 1001;1005 | E50: 793;145 | F50: 1001 | G50: =ROUND(20*VLOOKUP(J50,[2]ResourceLevelConfig!$A:$G,3,FALSE)/40,0) -> 793 | H50: 1005 | I50: =ROUND(VLOOKUP(J50-1,[2]ResourceLevelConfig!$A:$G,7,FALSE)*2,0) -> 145 | J50: 47 | K50: =SUM(I$5:I50) -> 5635
A51: 47 | B51: 533 | C51: 330 | D51: 1001;1005 | E51: 801;146 | F51: 1001 | G51: =ROUND(20*VLOOKUP(J51,[2]ResourceLevelConfig!$A:$G,3,FALSE)/40,0) -> 801 | H51: 1005 | I51: =ROUND(VLOOKUP(J51-1,[2]ResourceLevelConfig!$A:$G,7,FALSE)*2,0) -> 146 | J51: 48 | K51: =SUM(I$5:I51) -> 5781
A52: 48 | B52: 553 | C52: 335 | D52: 1001;1005 | E52: 809;147 | F52: 1001 | G52: =ROUND(20*VLOOKUP(J52,[2]ResourceLevelConfig!$A:$G,3,FALSE)/40,0) -> 809 | H52: 1005 | I52: =ROUND(VLOOKUP(J52-1,[2]ResourceLevelConfig!$A:$G,7,FALSE)*2,0) -> 147 | J52: 49 | K52: =SUM(I$5:I52) -> 5928
A53: 49 | B53: 573 | C53: 340 | D53: 1001;1005 | E53: 817;148 | F53: 1001 | G53: =ROUND(20*VLOOKUP(J53,[2]ResourceLevelConfig!$A:$G,3,FALSE)/40,0) -> 817 | H53: 1005 | I53: =ROUND(VLOOKUP(J53-1,[2]ResourceLevelConfig!$A:$G,7,FALSE)*2,0) -> 148 | J53: 50 | K53: =SUM(I$5:I53) -> 6076
A54: 50 | B54: 594 | C54: 345 | D54: 1001;1005 | E54: 825;149 | F54: 1001 | G54: =ROUND(20*VLOOKUP(J54,[2]ResourceLevelConfig!$A:$G,3,FALSE)/40,0) -> 825 | H54: 1005 | I54: =ROUND(VLOOKUP(J54-1,[2]ResourceLevelConfig!$A:$G,7,FALSE)*2,0) -> 149 | J54: 51 | K54: =SUM(I$5:I54) -> 6225
A55: 51 | B55: 616 | C55: 350 | D55: 1001;1005 | E55: 834;150 | F55: 1001 | G55: =ROUND(20*VLOOKUP(J55,[2]ResourceLevelConfig!$A:$G,3,FALSE)/40,0) -> 834 | H55: 1005 | I55: =ROUND(VLOOKUP(J55-1,[2]ResourceLevelConfig!$A:$G,7,FALSE)*2,0) -> 150 | J55: 52 | K55: =SUM(I$5:I55) -> 6375
A56: 52 | B56: 639 | C56: 355 | D56: 1001;1005 | E56: 842;151 | F56: 1001 | G56: =ROUND(20*VLOOKUP(J56,[2]ResourceLevelConfig!$A:$G,3,FALSE)/40,0) -> 842 | H56: 1005 | I56: =ROUND(VLOOKUP(J56-1,[2]ResourceLevelConfig!$A:$G,7,FALSE)*2,0) -> 151 | J56: 53 | K56: =SUM(I$5:I56) -> 6526
A57: 53 | B57: 663 | C57: 360 | D57: 1001;1005 | E57: 851;152 | F57: 1001 | G57: =ROUND(20*VLOOKUP(J57,[2]ResourceLevelConfig!$A:$G,3,FALSE)/40,0) -> 851 | H57: 1005 | I57: =ROUND(VLOOKUP(J57-1,[2]ResourceLevelConfig!$A:$G,7,FALSE)*2,0) -> 152 | J57: 54 | K57: =SUM(I$5:I57) -> 6678
A58: 54 | B58: 688 | C58: 365 | D58: 1001;1005 | E58: 859;153 | F58: 1001 | G58: =ROUND(20*VLOOKUP(J58,[2]ResourceLevelConfig!$A:$G,3,FALSE)/40,0) -> 859 | H58: 1005 | I58: =ROUND(VLOOKUP(J58-1,[2]ResourceLevelConfig!$A:$G,7,FALSE)*2,0) -> 153 | J58: 55 | K58: =SUM(I$5:I58) -> 6831
A59: 55 | B59: 713 | C59: 370 | D59: 1001;1005 | E59: 868;154 | F59: 1001 | G59: =ROUND(20*VLOOKUP(J59,[2]ResourceLevelConfig!$A:$G,3,FALSE)/40,0) -> 868 | H59: 1005 | I59: =ROUND(VLOOKUP(J59-1,[2]ResourceLevelConfig!$A:$G,7,FALSE)*2,0) -> 154 | J59: 56 | K59: =SUM(I$5:I59) -> 6985
A60: 56 | B60: 739 | C60: 375 | D60: 1001;1005 | E60: 877;155 | F60: 1001 | G60: =ROUND(20*VLOOKUP(J60,[2]ResourceLevelConfig!$A:$G,3,FALSE)/40,0) -> 877 | H60: 1005 | I60: =ROUND(VLOOKUP(J60-1,[2]ResourceLevelConfig!$A:$G,7,FALSE)*2,0) -> 155 | J60: 57 | K60: =SUM(I$5:I60) -> 7140
A61: 57 | B61: 766 | C61: 380 | D61: 1001;1005 | E61: 885;156 | F61: 1001 | G61: =ROUND(20*VLOOKUP(J61,[2]ResourceLevelConfig!$A:$G,3,FALSE)/40,0) -> 885 | H61: 1005 | I61: =ROUND(VLOOKUP(J61-1,[2]ResourceLevelConfig!$A:$G,7,FALSE)*2,0) -> 156 | J61: 58 | K61: =SUM(I$5:I61) -> 7296
A62: 58 | B62: 794 | C62: 385 | D62: 1001;1005 | E62: 894;157 | F62: 1001 | G62: =ROUND(20*VLOOKUP(J62,[2]ResourceLevelConfig!$A:$G,3,FALSE)/40,0) -> 894 | H62: 1005 | I62: =ROUND(VLOOKUP(J62-1,[2]ResourceLevelConfig!$A:$G,7,FALSE)*2,0) -> 157 | J62: 59 | K62: =SUM(I$5:I62) -> 7453
A63: 59 | B63: 823 | C63: 390 | D63: 1001;1005 | E63: 903;158 | F63: 1001 | G63: =ROUND(20*VLOOKUP(J63,[2]ResourceLevelConfig!$A:$G,3,FALSE)/40,0) -> 903 | H63: 1005 | I63: =ROUND(VLOOKUP(J63-1,[2]ResourceLevelConfig!$A:$G,7,FALSE)*2,0) -> 158 | J63: 60 | K63: =SUM(I$5:I63) -> 7611
A64: 60 | B64: 853 | C64: 395 | D64: 1001;1005 | E64: 912;159 | F64: 1001 | G64: =ROUND(20*VLOOKUP(J64,[2]ResourceLevelConfig!$A:$G,3,FALSE)/40,0) -> 912 | H64: 1005 | I64: =ROUND(VLOOKUP(J64-1,[2]ResourceLevelConfig!$A:$G,7,FALSE)*2,0) -> 159 | J64: 61 | K64: =SUM(I$5:I64) -> 7770
A65: 61 | B65: 885 | C65: 400 | D65: 1001;1005 | E65: 922;160 | F65: 1001 | G65: =ROUND(20*VLOOKUP(J65,[2]ResourceLevelConfig!$A:$G,3,FALSE)/40,0) -> 922 | H65: 1005 | I65: =ROUND(VLOOKUP(J65-1,[2]ResourceLevelConfig!$A:$G,7,FALSE)*2,0) -> 160 | J65: 62 | K65: =SUM(I$5:I65) -> 7930
A66: 62 | B66: 918 | C66: 405 | D66: =_xlfn.TEXTJOIN(";",1,F66,H66) -> 1001;1005 | E66: =_xlfn.TEXTJOIN(";",1,G66,I66) -> 931;161 | F66: 1001 | G66: =ROUND(20*VLOOKUP(J66,[2]ResourceLevelConfig!$A:$G,3,FALSE)/40,0) -> 931 | H66: 1005 | I66: =ROUND(VLOOKUP(J66-1,[2]ResourceLevelConfig!$A:$G,7,FALSE)*2,0) -> 161 | J66: 63 | K66: =SUM(I$5:I66) -> 8091
A67: 63 | B67: 952 | C67: 410 | D67: 1001;1005 | E67: 940;162 | F67: 1001 | G67: =ROUND(20*VLOOKUP(J67,[2]ResourceLevelConfig!$A:$G,3,FALSE)/40,0) -> 940 | H67: 1005 | I67: =ROUND(VLOOKUP(J67-1,[2]ResourceLevelConfig!$A:$G,7,FALSE)*2,0) -> 162 | J67: 64 | K67: =SUM(I$5:I67) -> 8253
A68: 64 | B68: 987 | C68: 415 | D68: 1001;1005 | E68: 950;163 | F68: 1001 | G68: =ROUND(20*VLOOKUP(J68,[2]ResourceLevelConfig!$A:$G,3,FALSE)/40,0) -> 950 | H68: 1005 | I68: =ROUND(VLOOKUP(J68-1,[2]ResourceLevelConfig!$A:$G,7,FALSE)*2,0) -> 163 | J68: 65 | K68: =SUM(I$5:I68) -> 8416
A69: 65 | B69: 1024 | C69: 420 | D69: 1001;1005 | E69: 959;164 | F69: 1001 | G69: =ROUND(20*VLOOKUP(J69,[2]ResourceLevelConfig!$A:$G,3,FALSE)/40,0) -> 959 | H69: 1005 | I69: =ROUND(VLOOKUP(J69-1,[2]ResourceLevelConfig!$A:$G,7,FALSE)*2,0) -> 164 | J69: 66 | K69: =SUM(I$5:I69) -> 8580
A70: 66 | B70: 1062 | C70: 425 | D70: 1001;1005 | E70: 969;165 | F70: 1001 | G70: =ROUND(20*VLOOKUP(J70,[2]ResourceLevelConfig!$A:$G,3,FALSE)/40,0) -> 969 | H70: 1005 | I70: =ROUND(VLOOKUP(J70-1,[2]ResourceLevelConfig!$A:$G,7,FALSE)*2,0) -> 165 | J70: 67 | K70: =SUM(I$5:I70) -> 8745
A71: 67 | B71: =ROUND(B70*K$4,0) -> 1101 | C71: 430 | D71: 1001;1005 | E71: 979;166 | F71: 1001 | G71: =ROUND(20*VLOOKUP(J71,[2]ResourceLevelConfig!$A:$G,3,FALSE)/40,0) -> 979 | H71: 1005 | I71: =ROUND(VLOOKUP(J71-1,[2]ResourceLevelConfig!$A:$G,7,FALSE)*2,0) -> 166 | J71: 68 | K71: =SUM(I$5:I71) -> 8911
A72: 68 | B72: 1142 | C72: 435 | D72: 1001;1005 | E72: 988;167 | F72: 1001 | G72: =ROUND(20*VLOOKUP(J72,[2]ResourceLevelConfig!$A:$G,3,FALSE)/40,0) -> 988 | H72: 1005 | I72: =ROUND(VLOOKUP(J72-1,[2]ResourceLevelConfig!$A:$G,7,FALSE)*2,0) -> 167 | J72: 69 | K72: =SUM(I$5:I72) -> 9078
A73: 69 | B73: 1184 | C73: 440 | D73: 1001;1005 | E73: 998;168 | F73: 1001 | G73: =ROUND(20*VLOOKUP(J73,[2]ResourceLevelConfig!$A:$G,3,FALSE)/40,0) -> 998 | H73: 1005 | I73: =ROUND(VLOOKUP(J73-1,[2]ResourceLevelConfig!$A:$G,7,FALSE)*2,0) -> 168 | J73: 70 | K73: =SUM(I$5:I73) -> 9246
A74: 70 | B74: 1228 | C74: 445 | D74: 1001;1005 | E74: 1008;169 | F74: 1001 | G74: =ROUND(20*VLOOKUP(J74,[2]ResourceLevelConfig!$A:$G,3,FALSE)/40,0) -> 1008 | H74: 1005 | I74: =ROUND(VLOOKUP(J74-1,[2]ResourceLevelConfig!$A:$G,7,FALSE)*2,0) -> 169 | J74: 71 | K74: =SUM(I$5:I74) -> 9415
A75: 71 | B75: 1273 | C75: 450 | D75: 1001;1005 | E75: 1019;170 | F75: 1001 | G75: =ROUND(20*VLOOKUP(J75,[2]ResourceLevelConfig!$A:$G,3,FALSE)/40,0) -> 1019 | H75: 1005 | I75: =ROUND(VLOOKUP(J75-1,[2]ResourceLevelConfig!$A:$G,7,FALSE)*2,0) -> 170 | J75: 72 | K75: =SUM(I$5:I75) -> 9585
A76: 72 | B76: 1320 | C76: 455 | D76: 1001;1005 | E76: 1029;171 | F76: 1001 | G76: =ROUND(20*VLOOKUP(J76,[2]ResourceLevelConfig!$A:$G,3,FALSE)/40,0) -> 1029 | H76: 1005 | I76: =ROUND(VLOOKUP(J76-1,[2]ResourceLevelConfig!$A:$G,7,FALSE)*2,0) -> 171 | J76: 73 | K76: =SUM(I$5:I76) -> 9756
A77: 73 | B77: 1369 | C77: 460 | D77: 1001;1005 | E77: 1039;172 | F77: 1001 | G77: =ROUND(20*VLOOKUP(J77,[2]ResourceLevelConfig!$A:$G,3,FALSE)/40,0) -> 1039 | H77: 1005 | I77: =ROUND(VLOOKUP(J77-1,[2]ResourceLevelConfig!$A:$G,7,FALSE)*2,0) -> 172 | J77: 74 | K77: =SUM(I$5:I77) -> 9928
A78: 74 | B78: 1420 | C78: 465 | D78: 1001;1005 | E78: 1050;173 | F78: 1001 | G78: =ROUND(20*VLOOKUP(J78,[2]ResourceLevelConfig!$A:$G,3,FALSE)/40,0) -> 1050 | H78: 1005 | I78: =ROUND(VLOOKUP(J78-1,[2]ResourceLevelConfig!$A:$G,7,FALSE)*2,0) -> 173 | J78: 75 | K78: =SUM(I$5:I78) -> 10101
A79: 75 | B79: 1473 | C79: 470 | D79: 1001;1005 | E79: 1060;174 | F79: 1001 | G79: =ROUND(20*VLOOKUP(J79,[2]ResourceLevelConfig!$A:$G,3,FALSE)/40,0) -> 1060 | H79: 1005 | I79: =ROUND(VLOOKUP(J79-1,[2]ResourceLevelConfig!$A:$G,7,FALSE)*2,0) -> 174 | J79: 76 | K79: =SUM(I$5:I79) -> 10275
A80: 76 | B80: 1528 | C80: 475 | D80: 1001;1005 | E80: 1071;175 | F80: 1001 | G80: =ROUND(20*VLOOKUP(J80,[2]ResourceLevelConfig!$A:$G,3,FALSE)/40,0) -> 1071 | H80: 1005 | I80: =ROUND(VLOOKUP(J80-1,[2]ResourceLevelConfig!$A:$G,7,FALSE)*2,0) -> 175 | J80: 77 | K80: =SUM(I$5:I80) -> 10450
A81: 77 | B81: 1585 | C81: 480 | D81: 1001;1005 | E81: 1082;176 | F81: 1001 | G81: =ROUND(20*VLOOKUP(J81,[2]ResourceLevelConfig!$A:$G,3,FALSE)/40,0) -> 1082 | H81: 1005 | I81: =ROUND(VLOOKUP(J81-1,[2]ResourceLevelConfig!$A:$G,7,FALSE)*2,0) -> 176 | J81: 78 | K81: =SUM(I$5:I81) -> 10626
A82: 78 | B82: 1644 | C82: 485 | D82: 1001;1005 | E82: 1093;177 | F82: 1001 | G82: =ROUND(20*VLOOKUP(J82,[2]ResourceLevelConfig!$A:$G,3,FALSE)/40,0) -> 1093 | H82: 1005 | I82: =ROUND(VLOOKUP(J82-1,[2]ResourceLevelConfig!$A:$G,7,FALSE)*2,0) -> 177 | J82: 79 | K82: =SUM(I$5:I82) -> 10803
A83: 79 | B83: 1705 | C83: 490 | D83: 1001;1005 | E83: 1104;178 | F83: 1001 | G83: =ROUND(20*VLOOKUP(J83,[2]ResourceLevelConfig!$A:$G,3,FALSE)/40,0) -> 1104 | H83: 1005 | I83: =ROUND(VLOOKUP(J83-1,[2]ResourceLevelConfig!$A:$G,7,FALSE)*2,0) -> 178 | J83: 80 | K83: =SUM(I$5:I83) -> 10981
A84: 80 | B84: 1768 | C84: 495 | D84: 1001;1005 | E84: 1115;179 | F84: 1001 | G84: =ROUND(20*VLOOKUP(J84,[2]ResourceLevelConfig!$A:$G,3,FALSE)/40,0) -> 1115 | H84: 1005 | I84: =ROUND(VLOOKUP(J84-1,[2]ResourceLevelConfig!$A:$G,7,FALSE)*2,0) -> 179 | J84: 81 | K84: =SUM(I$5:I84) -> 11160
A85: 81 | B85: 1833 | C85: 500 | D85: 1001;1005 | E85: 1126;180 | F85: 1001 | G85: =ROUND(20*VLOOKUP(J85,[2]ResourceLevelConfig!$A:$G,3,FALSE)/40,0) -> 1126 | H85: 1005 | I85: =ROUND(VLOOKUP(J85-1,[2]ResourceLevelConfig!$A:$G,7,FALSE)*2,0) -> 180 | J85: 82 | K85: =SUM(I$5:I85) -> 11340
A86: 82 | B86: 1901 | C86: 505 | D86: 1001;1005 | E86: 1137;181 | F86: 1001 | G86: =ROUND(20*VLOOKUP(J86,[2]ResourceLevelConfig!$A:$G,3,FALSE)/40,0) -> 1137 | H86: 1005 | I86: =ROUND(VLOOKUP(J86-1,[2]ResourceLevelConfig!$A:$G,7,FALSE)*2,0) -> 181 | J86: 83 | K86: =SUM(I$5:I86) -> 11521
A87: 83 | B87: 1971 | C87: 510 | D87: 1001;1005 | E87: 1149;182 | F87: 1001 | G87: =ROUND(20*VLOOKUP(J87,[2]ResourceLevelConfig!$A:$G,3,FALSE)/40,0) -> 1149 | H87: 1005 | I87: =ROUND(VLOOKUP(J87-1,[2]ResourceLevelConfig!$A:$G,7,FALSE)*2,0) -> 182 | J87: 84 | K87: =SUM(I$5:I87) -> 11703
A88: 84 | B88: 2044 | C88: 515 | D88: 1001;1005 | E88: 1160;183 | F88: 1001 | G88: =ROUND(20*VLOOKUP(J88,[2]ResourceLevelConfig!$A:$G,3,FALSE)/40,0) -> 1160 | H88: 1005 | I88: =ROUND(VLOOKUP(J88-1,[2]ResourceLevelConfig!$A:$G,7,FALSE)*2,0) -> 183 | J88: 85 | K88: =SUM(I$5:I88) -> 11886
A89: 85 | B89: 2120 | C89: 520 | D89: 1001;1005 | E89: 1172;184 | F89: 1001 | G89: =ROUND(20*VLOOKUP(J89,[2]ResourceLevelConfig!$A:$G,3,FALSE)/40,0) -> 1172 | H89: 1005 | I89: =ROUND(VLOOKUP(J89-1,[2]ResourceLevelConfig!$A:$G,7,FALSE)*2,0) -> 184 | J89: 86 | K89: =SUM(I$5:I89) -> 12070
A90: 86 | B90: 2198 | C90: 525 | D90: 1001;1005 | E90: 1184;185 | F90: 1001 | G90: =ROUND(20*VLOOKUP(J90,[2]ResourceLevelConfig!$A:$G,3,FALSE)/40,0) -> 1184 | H90: 1005 | I90: =ROUND(VLOOKUP(J90-1,[2]ResourceLevelConfig!$A:$G,7,FALSE)*2,0) -> 185 | J90: 87 | K90: =SUM(I$5:I90) -> 12255
A91: 87 | B91: 2279 | C91: 530 | D91: 1001;1005 | E91: 1196;186 | F91: 1001 | G91: =ROUND(20*VLOOKUP(J91,[2]ResourceLevelConfig!$A:$G,3,FALSE)/40,0) -> 1196 | H91: 1005 | I91: =ROUND(VLOOKUP(J91-1,[2]ResourceLevelConfig!$A:$G,7,FALSE)*2,0) -> 186 | J91: 88 | K91: =SUM(I$5:I91) -> 12441
A92: 88 | B92: 2363 | C92: 535 | D92: 1001;1005 | E92: 1208;187 | F92: 1001 | G92: =ROUND(20*VLOOKUP(J92,[2]ResourceLevelConfig!$A:$G,3,FALSE)/40,0) -> 1208 | H92: 1005 | I92: =ROUND(VLOOKUP(J92-1,[2]ResourceLevelConfig!$A:$G,7,FALSE)*2,0) -> 187 | J92: 89 | K92: =SUM(I$5:I92) -> 12628
A93: 89 | B93: 2450 | C93: 540 | D93: 1001;1005 | E93: 1220;188 | F93: 1001 | G93: =ROUND(20*VLOOKUP(J93,[2]ResourceLevelConfig!$A:$G,3,FALSE)/40,0) -> 1220 | H93: 1005 | I93: =ROUND(VLOOKUP(J93-1,[2]ResourceLevelConfig!$A:$G,7,FALSE)*2,0) -> 188 | J93: 90 | K93: =SUM(I$5:I93) -> 12816
A94: 90 | B94: 2541 | C94: 545 | D94: 1001;1005 | E94: 1232;189 | F94: 1001 | G94: =ROUND(20*VLOOKUP(J94,[2]ResourceLevelConfig!$A:$G,3,FALSE)/40,0) -> 1232 | H94: 1005 | I94: =ROUND(VLOOKUP(J94-1,[2]ResourceLevelConfig!$A:$G,7,FALSE)*2,0) -> 189 | J94: 91 | K94: =SUM(I$5:I94) -> 13005
A95: 91 | B95: 2635 | C95: 550 | D95: 1001;1005 | E95: 1245;190 | F95: 1001 | G95: =ROUND(20*VLOOKUP(J95,[2]ResourceLevelConfig!$A:$G,3,FALSE)/40,0) -> 1245 | H95: 1005 | I95: =ROUND(VLOOKUP(J95-1,[2]ResourceLevelConfig!$A:$G,7,FALSE)*2,0) -> 190 | J95: 92 | K95: =SUM(I$5:I95) -> 13195
A96: 92 | B96: 2732 | C96: 555 | D96: 1001;1005 | E96: 1257;191 | F96: 1001 | G96: =ROUND(20*VLOOKUP(J96,[2]ResourceLevelConfig!$A:$G,3,FALSE)/40,0) -> 1257 | H96: 1005 | I96: =ROUND(VLOOKUP(J96-1,[2]ResourceLevelConfig!$A:$G,7,FALSE)*2,0) -> 191 | J96: 93 | K96: =SUM(I$5:I96) -> 13386
A97: 93 | B97: 2833 | C97: 560 | D97: 1001;1005 | E97: 1270;192 | F97: 1001 | G97: =ROUND(20*VLOOKUP(J97,[2]ResourceLevelConfig!$A:$G,3,FALSE)/40,0) -> 1270 | H97: 1005 | I97: =ROUND(VLOOKUP(J97-1,[2]ResourceLevelConfig!$A:$G,7,FALSE)*2,0) -> 192 | J97: 94 | K97: =SUM(I$5:I97) -> 13578
A98: 94 | B98: 2938 | C98: 565 | D98: 1001;1005 | E98: 1283;193 | F98: 1001 | G98: =ROUND(20*VLOOKUP(J98,[2]ResourceLevelConfig!$A:$G,3,FALSE)/40,0) -> 1283 | H98: 1005 | I98: =ROUND(VLOOKUP(J98-1,[2]ResourceLevelConfig!$A:$G,7,FALSE)*2,0) -> 193 | J98: 95 | K98: =SUM(I$5:I98) -> 13771
A99: 95 | B99: 3047 | C99: 570 | D99: 1001;1005 | E99: 1295;194 | F99: 1001 | G99: =ROUND(20*VLOOKUP(J99,[2]ResourceLevelConfig!$A:$G,3,FALSE)/40,0) -> 1295 | H99: 1005 | I99: =ROUND(VLOOKUP(J99-1,[2]ResourceLevelConfig!$A:$G,7,FALSE)*2,0) -> 194 | J99: 96 | K99: =SUM(I$5:I99) -> 13965
A100: 96 | B100: 3160 | C100: 575 | D100: 1001;1005 | E100: 1309;195 | F100: 1001 | G100: =ROUND(20*VLOOKUP(J100,[2]ResourceLevelConfig!$A:$G,3,FALSE)/40,0) -> 1309 | H100: 1005 | I100: =ROUND(VLOOKUP(J100-1,[2]ResourceLevelConfig!$A:$G,7,FALSE)*2,0) -> 195 | J100: 97 | K100: =SUM(I$5:I100) -> 14160
A101: 97 | B101: 3277 | C101: 580 | D101: 1001;1005 | E101: 1322;196 | F101: 1001 | G101: =ROUND(20*VLOOKUP(J101,[2]ResourceLevelConfig!$A:$G,3,FALSE)/40,0) -> 1322 | H101: 1005 | I101: =ROUND(VLOOKUP(J101-1,[2]ResourceLevelConfig!$A:$G,7,FALSE)*2,0) -> 196 | J101: 98 | K101: =SUM(I$5:I101) -> 14356
A102: 98 | B102: 3398 | C102: 585 | D102: 1001;1005 | E102: 1335;197 | F102: 1001 | G102: =ROUND(20*VLOOKUP(J102,[2]ResourceLevelConfig!$A:$G,3,FALSE)/40,0) -> 1335 | H102: 1005 | I102: =ROUND(VLOOKUP(J102-1,[2]ResourceLevelConfig!$A:$G,7,FALSE)*2,0) -> 197 | J102: 99 | K102: =SUM(I$5:I102) -> 14553
A103: 99 | B103: 3524 | C103: 590 | D103: 1001;1005 | E103: 1348;198 | F103: 1001 | G103: =ROUND(20*VLOOKUP(J103,[2]ResourceLevelConfig!$A:$G,3,FALSE)/40,0) -> 1348 | H103: 1005 | I103: =ROUND(VLOOKUP(J103-1,[2]ResourceLevelConfig!$A:$G,7,FALSE)*2,0) -> 198 | J103: 100 | K103: =SUM(I$5:I103) -> 14751
A104: 100 | B104: 3654 | C104: 595 | D104: 1001;1005 | E104: 1362;199 | F104: 1001 | G104: =ROUND(20*VLOOKUP(J104,[2]ResourceLevelConfig!$A:$G,3,FALSE)/40,0) -> 1362 | H104: 1005 | I104: =ROUND(VLOOKUP(J104-1,[2]ResourceLevelConfig!$A:$G,7,FALSE)*2,0) -> 199 | J104: 101 | K104: =SUM(I$5:I104) -> 14950
A105: 101 | B105: 3789 | C105: 600 | D105: 1001;1005 | E105: 1376;200 | F105: 1001 | G105: =ROUND(20*VLOOKUP(J105,[2]ResourceLevelConfig!$A:$G,3,FALSE)/40,0) -> 1376 | H105: 1005 | I105: =ROUND(VLOOKUP(J105-1,[2]ResourceLevelConfig!$A:$G,7,FALSE)*2,0) -> 200 | J105: 102 | K105: =SUM(I$5:I105) -> 15150
A106: 102 | B106: 3929 | C106: 605 | D106: 1001;1005 | E106: 1390;201 | F106: 1001 | G106: =ROUND(20*VLOOKUP(J106,[2]ResourceLevelConfig!$A:$G,3,FALSE)/40,0) -> 1390 | H106: 1005 | I106: =ROUND(VLOOKUP(J106-1,[2]ResourceLevelConfig!$A:$G,7,FALSE)*2,0) -> 201 | J106: 103 | K106: =SUM(I$5:I106) -> 15351
A107: 103 | B107: 4074 | C107: 610 | D107: 1001;1005 | E107: 1404;202 | F107: 1001 | G107: =ROUND(20*VLOOKUP(J107,[2]ResourceLevelConfig!$A:$G,3,FALSE)/40,0) -> 1404 | H107: 1005 | I107: =ROUND(VLOOKUP(J107-1,[2]ResourceLevelConfig!$A:$G,7,FALSE)*2,0) -> 202 | J107: 104 | K107: =SUM(I$5:I107) -> 15553
A108: 104 | B108: 4225 | C108: 615 | D108: 1001;1005 | E108: 1418;203 | F108: 1001 | G108: =ROUND(20*VLOOKUP(J108,[2]ResourceLevelConfig!$A:$G,3,FALSE)/40,0) -> 1418 | H108: 1005 | I108: =ROUND(VLOOKUP(J108-1,[2]ResourceLevelConfig!$A:$G,7,FALSE)*2,0) -> 203 | J108: 105 | K108: =SUM(I$5:I108) -> 15756
A109: 105 | B109: 4381 | C109: 620 | D109: 1001;1005 | E109: 1432;204 | F109: 1001 | G109: =ROUND(20*VLOOKUP(J109,[2]ResourceLevelConfig!$A:$G,3,FALSE)/40,0) -> 1432 | H109: 1005 | I109: =ROUND(VLOOKUP(J109-1,[2]ResourceLevelConfig!$A:$G,7,FALSE)*2,0) -> 204 | J109: 106 | K109: =SUM(I$5:I109) -> 15960
A110: 106 | B110: 4543 | C110: 625 | D110: 1001;1005 | E110: 1446;205 | F110: 1001 | G110: =ROUND(20*VLOOKUP(J110,[2]ResourceLevelConfig!$A:$G,3,FALSE)/40,0) -> 1446 | H110: 1005 | I110: =ROUND(VLOOKUP(J110-1,[2]ResourceLevelConfig!$A:$G,7,FALSE)*2,0) -> 205 | J110: 107 | K110: =SUM(I$5:I110) -> 16165
A111: 107 | B111: 4711 | C111: 630 | D111: 1001;1005 | E111: 1461;206 | F111: 1001 | G111: =ROUND(20*VLOOKUP(J111,[2]ResourceLevelConfig!$A:$G,3,FALSE)/40,0) -> 1461 | H111: 1005 | I111: =ROUND(VLOOKUP(J111-1,[2]ResourceLevelConfig!$A:$G,7,FALSE)*2,0) -> 206 | J111: 108 | K111: =SUM(I$5:I111) -> 16371
A112: 108 | B112: 4885 | C112: 635 | D112: 1001;1005 | E112: 1476;207 | F112: 1001 | G112: =ROUND(20*VLOOKUP(J112,[2]ResourceLevelConfig!$A:$G,3,FALSE)/40,0) -> 1476 | H112: 1005 | I112: =ROUND(VLOOKUP(J112-1,[2]ResourceLevelConfig!$A:$G,7,FALSE)*2,0) -> 207 | J112: 109 | K112: =SUM(I$5:I112) -> 16578
A113: 109 | B113: 5066 | C113: 640 | D113: 1001;1005 | E113: 1490;208 | F113: 1001 | G113: =ROUND(20*VLOOKUP(J113,[2]ResourceLevelConfig!$A:$G,3,FALSE)/40,0) -> 1490 | H113: 1005 | I113: =ROUND(VLOOKUP(J113-1,[2]ResourceLevelConfig!$A:$G,7,FALSE)*2,0) -> 208 | J113: 110 | K113: =SUM(I$5:I113) -> 16786
A114: 110 | B114: 5253 | C114: 645 | D114: 1001;1005 | E114: 1506;209 | F114: 1001 | G114: =ROUND(20*VLOOKUP(J114,[2]ResourceLevelConfig!$A:$G,3,FALSE)/40,0) -> 1506 | H114: 1005 | I114: =ROUND(VLOOKUP(J114-1,[2]ResourceLevelConfig!$A:$G,7,FALSE)*2,0) -> 209 | J114: 111 | K114: =SUM(I$5:I114) -> 16995
A115: 111 | B115: 5447 | C115: 650 | D115: 1001;1005 | E115: 1521;210 | F115: 1001 | G115: =ROUND(20*VLOOKUP(J115,[2]ResourceLevelConfig!$A:$G,3,FALSE)/40,0) -> 1521 | H115: 1005 | I115: =ROUND(VLOOKUP(J115-1,[2]ResourceLevelConfig!$A:$G,7,FALSE)*2,0) -> 210 | J115: 112 | K115: =SUM(I$5:I115) -> 17205
A116: 112 | B116: 5649 | C116: 655 | D116: 1001;1005 | E116: 1536;211 | F116: 1001 | G116: =ROUND(20*VLOOKUP(J116,[2]ResourceLevelConfig!$A:$G,3,FALSE)/40,0) -> 1536 | H116: 1005 | I116: =ROUND(VLOOKUP(J116-1,[2]ResourceLevelConfig!$A:$G,7,FALSE)*2,0) -> 211 | J116: 113 | K116: =SUM(I$5:I116) -> 17416
A117: 113 | B117: 5858 | C117: 660 | D117: 1001;1005 | E117: 1551;212 | F117: 1001 | G117: =ROUND(20*VLOOKUP(J117,[2]ResourceLevelConfig!$A:$G,3,FALSE)/40,0) -> 1551 | H117: 1005 | I117: =ROUND(VLOOKUP(J117-1,[2]ResourceLevelConfig!$A:$G,7,FALSE)*2,0) -> 212 | J117: 114 | K117: =SUM(I$5:I117) -> 17628
A118: 114 | B118: 6075 | C118: 665 | D118: 1001;1005 | E118: 1567;213 | F118: 1001 | G118: =ROUND(20*VLOOKUP(J118,[2]ResourceLevelConfig!$A:$G,3,FALSE)/40,0) -> 1567 | H118: 1005 | I118: =ROUND(VLOOKUP(J118-1,[2]ResourceLevelConfig!$A:$G,7,FALSE)*2,0) -> 213 | J118: 115 | K118: =SUM(I$5:I118) -> 17841
A119: 115 | B119: 6300 | C119: 670 | D119: 1001;1005 | E119: 1583;214 | F119: 1001 | G119: =ROUND(20*VLOOKUP(J119,[2]ResourceLevelConfig!$A:$G,3,FALSE)/40,0) -> 1583 | H119: 1005 | I119: =ROUND(VLOOKUP(J119-1,[2]ResourceLevelConfig!$A:$G,7,FALSE)*2,0) -> 214 | J119: 116 | K119: =SUM(I$5:I119) -> 18055
A120: 116 | B120: 6533 | C120: 675 | D120: 1001;1005 | E120: 1599;215 | F120: 1001 | G120: =ROUND(20*VLOOKUP(J120,[2]ResourceLevelConfig!$A:$G,3,FALSE)/40,0) -> 1599 | H120: 1005 | I120: =ROUND(VLOOKUP(J120-1,[2]ResourceLevelConfig!$A:$G,7,FALSE)*2,0) -> 215 | J120: 117 | K120: =SUM(I$5:I120) -> 18270
A121: 117 | B121: 6775 | C121: 680 | D121: 1001;1005 | E121: 1615;216 | F121: 1001 | G121: =ROUND(20*VLOOKUP(J121,[2]ResourceLevelConfig!$A:$G,3,FALSE)/40,0) -> 1615 | H121: 1005 | I121: =ROUND(VLOOKUP(J121-1,[2]ResourceLevelConfig!$A:$G,7,FALSE)*2,0) -> 216 | J121: 118 | K121: =SUM(I$5:I121) -> 18486
A122: 118 | B122: 7026 | C122: 685 | D122: 1001;1005 | E122: 1631;217 | F122: 1001 | G122: =ROUND(20*VLOOKUP(J122,[2]ResourceLevelConfig!$A:$G,3,FALSE)/40,0) -> 1631 | H122: 1005 | I122: =ROUND(VLOOKUP(J122-1,[2]ResourceLevelConfig!$A:$G,7,FALSE)*2,0) -> 217 | J122: 119 | K122: =SUM(I$5:I122) -> 18703
A123: 119 | B123: 7286 | C123: 690 | D123: 1001;1005 | E123: 1648;218 | F123: 1001 | G123: =ROUND(20*VLOOKUP(J123,[2]ResourceLevelConfig!$A:$G,3,FALSE)/40,0) -> 1648 | H123: 1005 | I123: =ROUND(VLOOKUP(J123-1,[2]ResourceLevelConfig!$A:$G,7,FALSE)*2,0) -> 218 | J123: 120 | K123: =SUM(I$5:I123) -> 18921
A124: 120 | B124: 7556 | C124: 695 | D124: 1001;1005 | E124: 1664;219 | F124: 1001 | G124: =ROUND(20*VLOOKUP(J124,[2]ResourceLevelConfig!$A:$G,3,FALSE)/40,0) -> 1664 | H124: 1005 | I124: =ROUND(VLOOKUP(J124-1,[2]ResourceLevelConfig!$A:$G,7,FALSE)*2,0) -> 219 | J124: 121 | K124: =SUM(I$5:I124) -> 19140
A125: 121 | B125: 7836 | C125: 700 | D125: 1001;1005 | E125: 1681;220 | F125: 1001 | G125: =ROUND(20*VLOOKUP(J125,[2]ResourceLevelConfig!$A:$G,3,FALSE)/40,0) -> 1681 | H125: 1005 | I125: =ROUND(VLOOKUP(J125-1,[2]ResourceLevelConfig!$A:$G,7,FALSE)*2,0) -> 220 | J125: 122 | K125: =SUM(I$5:I125) -> 19360
A126: 122 | B126: 8126 | C126: 705 | D126: 1001;1005 | E126: 1698;221 | F126: 1001 | G126: =ROUND(20*VLOOKUP(J126,[2]ResourceLevelConfig!$A:$G,3,FALSE)/40,0) -> 1698 | H126: 1005 | I126: =ROUND(VLOOKUP(J126-1,[2]ResourceLevelConfig!$A:$G,7,FALSE)*2,0) -> 221 | J126: 123 | K126: =SUM(I$5:I126) -> 19581
A127: 123 | B127: 8427 | C127: 710 | D127: 1001;1005 | E127: 1715;222 | F127: 1001 | G127: =ROUND(20*VLOOKUP(J127,[2]ResourceLevelConfig!$A:$G,3,FALSE)/40,0) -> 1715 | H127: 1005 | I127: =ROUND(VLOOKUP(J127-1,[2]ResourceLevelConfig!$A:$G,7,FALSE)*2,0) -> 222 | J127: 124 | K127: =SUM(I$5:I127) -> 19803
A128: 124 | B128: 8739 | C128: 715 | D128: 1001;1005 | E128: 1732;223 | F128: 1001 | G128: =ROUND(20*VLOOKUP(J128,[2]ResourceLevelConfig!$A:$G,3,FALSE)/40,0) -> 1732 | H128: 1005 | I128: =ROUND(VLOOKUP(J128-1,[2]ResourceLevelConfig!$A:$G,7,FALSE)*2,0) -> 223 | J128: 125 | K128: =SUM(I$5:I128) -> 20026
A129: 125 | B129: 9062 | C129: 720 | D129: 1001;1005 | E129: 1750;224 | F129: 1001 | G129: =ROUND(20*VLOOKUP(J129,[2]ResourceLevelConfig!$A:$G,3,FALSE)/40,0) -> 1750 | H129: 1005 | I129: =ROUND(VLOOKUP(J129-1,[2]ResourceLevelConfig!$A:$G,7,FALSE)*2,0) -> 224 | J129: 126 | K129: =SUM(I$5:I129) -> 20250
A130: 126 | B130: 9397 | C130: 725 | D130: =_xlfn.TEXTJOIN(";",1,F130,H130) -> 1001;1005 | E130: =_xlfn.TEXTJOIN(";",1,G130,I130) -> 1767;225 | F130: 1001 | G130: =ROUND(20*VLOOKUP(J130,[2]ResourceLevelConfig!$A:$G,3,FALSE)/40,0) -> 1767 | H130: 1005 | I130: =ROUND(VLOOKUP(J130-1,[2]ResourceLevelConfig!$A:$G,7,FALSE)*2,0) -> 225 | J130: 127 | K130: =SUM(I$5:I130) -> 20475
A131: 127 | B131: 9745 | C131: 730 | D131: 1001;1005 | E131: 1785;226 | F131: 1001 | G131: =ROUND(20*VLOOKUP(J131,[2]ResourceLevelConfig!$A:$G,3,FALSE)/40,0) -> 1785 | H131: 1005 | I131: =ROUND(VLOOKUP(J131-1,[2]ResourceLevelConfig!$A:$G,7,FALSE)*2,0) -> 226 | J131: 128 | K131: =SUM(I$5:I131) -> 20701
A132: 128 | B132: 10106 | C132: 735 | D132: 1001;1005 | E132: 1803;227 | F132: 1001 | G132: =ROUND(20*VLOOKUP(J132,[2]ResourceLevelConfig!$A:$G,3,FALSE)/40,0) -> 1803 | H132: 1005 | I132: =ROUND(VLOOKUP(J132-1,[2]ResourceLevelConfig!$A:$G,7,FALSE)*2,0) -> 227 | J132: 129 | K132: =SUM(I$5:I132) -> 20928
A133: 129 | B133: 10480 | C133: 740 | D133: 1001;1005 | E133: 1821;228 | F133: 1001 | G133: =ROUND(20*VLOOKUP(J133,[2]ResourceLevelConfig!$A:$G,3,FALSE)/40,0) -> 1821 | H133: 1005 | I133: =ROUND(VLOOKUP(J133-1,[2]ResourceLevelConfig!$A:$G,7,FALSE)*2,0) -> 228 | J133: 130 | K133: =SUM(I$5:I133) -> 21156
A134: 130 | B134: 10868 | C134: 745 | D134: 1001;1005 | E134: 1839;229 | F134: 1001 | G134: =ROUND(20*VLOOKUP(J134,[2]ResourceLevelConfig!$A:$G,3,FALSE)/40,0) -> 1839 | H134: 1005 | I134: =ROUND(VLOOKUP(J134-1,[2]ResourceLevelConfig!$A:$G,7,FALSE)*2,0) -> 229 | J134: 131 | K134: =SUM(I$5:I134) -> 21385
A135: 131 | B135: =ROUND(B134*K$4,0) -> 11270 | C135: 750 | D135: 1001;1005 | E135: 1858;230 | F135: 1001 | G135: =ROUND(20*VLOOKUP(J135,[2]ResourceLevelConfig!$A:$G,3,FALSE)/40,0) -> 1858 | H135: 1005 | I135: =ROUND(VLOOKUP(J135-1,[2]ResourceLevelConfig!$A:$G,7,FALSE)*2,0) -> 230 | J135: 132 | K135: =SUM(I$5:I135) -> 21615
A136: 132 | B136: 11687 | C136: 755 | D136: 1001;1005 | E136: 1877;231 | F136: 1001 | G136: =ROUND(20*VLOOKUP(J136,[2]ResourceLevelConfig!$A:$G,3,FALSE)/40,0) -> 1877 | H136: 1005 | I136: =ROUND(VLOOKUP(J136-1,[2]ResourceLevelConfig!$A:$G,7,FALSE)*2,0) -> 231 | J136: 133 | K136: =SUM(I$5:I136) -> 21846
A137: 133 | B137: 12119 | C137: 760 | D137: 1001;1005 | E137: 1896;232 | F137: 1001 | G137: =ROUND(20*VLOOKUP(J137,[2]ResourceLevelConfig!$A:$G,3,FALSE)/40,0) -> 1896 | H137: 1005 | I137: =ROUND(VLOOKUP(J137-1,[2]ResourceLevelConfig!$A:$G,7,FALSE)*2,0) -> 232 | J137: 134 | K137: =SUM(I$5:I137) -> 22078
A138: 134 | B138: 12567 | C138: 765 | D138: 1001;1005 | E138: 1915;233 | F138: 1001 | G138: =ROUND(20*VLOOKUP(J138,[2]ResourceLevelConfig!$A:$G,3,FALSE)/40,0) -> 1915 | H138: 1005 | I138: =ROUND(VLOOKUP(J138-1,[2]ResourceLevelConfig!$A:$G,7,FALSE)*2,0) -> 233 | J138: 135 | K138: =SUM(I$5:I138) -> 22311
A139: 135 | B139: 13032 | C139: 770 | D139: 1001;1005 | E139: 1934;234 | F139: 1001 | G139: =ROUND(20*VLOOKUP(J139,[2]ResourceLevelConfig!$A:$G,3,FALSE)/40,0) -> 1934 | H139: 1005 | I139: =ROUND(VLOOKUP(J139-1,[2]ResourceLevelConfig!$A:$G,7,FALSE)*2,0) -> 234 | J139: 136 | K139: =SUM(I$5:I139) -> 22545
A140: 136 | B140: 13514 | C140: 775 | D140: 1001;1005 | E140: 1953;235 | F140: 1001 | G140: =ROUND(20*VLOOKUP(J140,[2]ResourceLevelConfig!$A:$G,3,FALSE)/40,0) -> 1953 | H140: 1005 | I140: =ROUND(VLOOKUP(J140-1,[2]ResourceLevelConfig!$A:$G,7,FALSE)*2,0) -> 235 | J140: 137 | K140: =SUM(I$5:I140) -> 22780
A141: 137 | B141: 14014 | C141: 780 | D141: 1001;1005 | E141: 1973;236 | F141: 1001 | G141: =ROUND(20*VLOOKUP(J141,[2]ResourceLevelConfig!$A:$G,3,FALSE)/40,0) -> 1973 | H141: 1005 | I141: =ROUND(VLOOKUP(J141-1,[2]ResourceLevelConfig!$A:$G,7,FALSE)*2,0) -> 236 | J141: 138 | K141: =SUM(I$5:I141) -> 23016
A142: 138 | B142: 14533 | C142: 785 | D142: 1001;1005 | E142: 1993;237 | F142: 1001 | G142: =ROUND(20*VLOOKUP(J142,[2]ResourceLevelConfig!$A:$G,3,FALSE)/40,0) -> 1993 | H142: 1005 | I142: =ROUND(VLOOKUP(J142-1,[2]ResourceLevelConfig!$A:$G,7,FALSE)*2,0) -> 237 | J142: 139 | K142: =SUM(I$5:I142) -> 23253
A143: 139 | B143: 15071 | C143: 790 | D143: 1001;1005 | E143: 2013;238 | F143: 1001 | G143: =ROUND(20*VLOOKUP(J143,[2]ResourceLevelConfig!$A:$G,3,FALSE)/40,0) -> 2013 | H143: 1005 | I143: =ROUND(VLOOKUP(J143-1,[2]ResourceLevelConfig!$A:$G,7,FALSE)*2,0) -> 238 | J143: 140 | K143: =SUM(I$5:I143) -> 23491
A144: 140 | B144: 15629 | C144: 795 | D144: 1001;1005 | E144: 2033;239 | F144: 1001 | G144: =ROUND(20*VLOOKUP(J144,[2]ResourceLevelConfig!$A:$G,3,FALSE)/40,0) -> 2033 | H144: 1005 | I144: =ROUND(VLOOKUP(J144-1,[2]ResourceLevelConfig!$A:$G,7,FALSE)*2,0) -> 239 | J144: 141 | K144: =SUM(I$5:I144) -> 23730
A145: 141 | B145: 16207 | C145: 800 | D145: 1001;1005 | E145: 2054;240 | F145: 1001 | G145: =ROUND(20*VLOOKUP(J145,[2]ResourceLevelConfig!$A:$G,3,FALSE)/40,0) -> 2054 | H145: 1005 | I145: =ROUND(VLOOKUP(J145-1,[2]ResourceLevelConfig!$A:$G,7,FALSE)*2,0) -> 240 | J145: 142 | K145: =SUM(I$5:I145) -> 23970
A146: 142 | B146: 16807 | C146: 805 | D146: 1001;1005 | E146: 2074;241 | F146: 1001 | G146: =ROUND(20*VLOOKUP(J146,[2]ResourceLevelConfig!$A:$G,3,FALSE)/40,0) -> 2074 | H146: 1005 | I146: =ROUND(VLOOKUP(J146-1,[2]ResourceLevelConfig!$A:$G,7,FALSE)*2,0) -> 241 | J146: 143 | K146: =SUM(I$5:I146) -> 24211
A147: 143 | B147: 17429 | C147: 810 | D147: 1001;1005 | E147: 2095;242 | F147: 1001 | G147: =ROUND(20*VLOOKUP(J147,[2]ResourceLevelConfig!$A:$G,3,FALSE)/40,0) -> 2095 | H147: 1005 | I147: =ROUND(VLOOKUP(J147-1,[2]ResourceLevelConfig!$A:$G,7,FALSE)*2,0) -> 242 | J147: 144 | K147: =SUM(I$5:I147) -> 24453
A148: 144 | B148: 18074 | C148: 815 | D148: 1001;1005 | E148: 2116;243 | F148: 1001 | G148: =ROUND(20*VLOOKUP(J148,[2]ResourceLevelConfig!$A:$G,3,FALSE)/40,0) -> 2116 | H148: 1005 | I148: =ROUND(VLOOKUP(J148-1,[2]ResourceLevelConfig!$A:$G,7,FALSE)*2,0) -> 243 | J148: 145 | K148: =SUM(I$5:I148) -> 24696
A149: 145 | B149: 18743 | C149: 820 | D149: 1001;1005 | E149: 2138;244 | F149: 1001 | G149: =ROUND(20*VLOOKUP(J149,[2]ResourceLevelConfig!$A:$G,3,FALSE)/40,0) -> 2138 | H149: 1005 | I149: =ROUND(VLOOKUP(J149-1,[2]ResourceLevelConfig!$A:$G,7,FALSE)*2,0) -> 244 | J149: 146 | K149: =SUM(I$5:I149) -> 24940
A150: 146 | B150: 19436 | C150: 825 | D150: 1001;1005 | E150: 2159;245 | F150: 1001 | G150: =ROUND(20*VLOOKUP(J150,[2]ResourceLevelConfig!$A:$G,3,FALSE)/40,0) -> 2159 | H150: 1005 | I150: =ROUND(VLOOKUP(J150-1,[2]ResourceLevelConfig!$A:$G,7,FALSE)*2,0) -> 245 | J150: 147 | K150: =SUM(I$5:I150) -> 25185
A151: 147 | B151: 20155 | C151: 830 | D151: 1001;1005 | E151: 2181;246 | F151: 1001 | G151: =ROUND(20*VLOOKUP(J151,[2]ResourceLevelConfig!$A:$G,3,FALSE)/40,0) -> 2181 | H151: 1005 | I151: =ROUND(VLOOKUP(J151-1,[2]ResourceLevelConfig!$A:$G,7,FALSE)*2,0) -> 246 | J151: 148 | K151: =SUM(I$5:I151) -> 25431
A152: 148 | B152: 20901 | C152: 835 | D152: 1001;1005 | E152: 2203;247 | F152: 1001 | G152: =ROUND(20*VLOOKUP(J152,[2]ResourceLevelConfig!$A:$G,3,FALSE)/40,0) -> 2203 | H152: 1005 | I152: =ROUND(VLOOKUP(J152-1,[2]ResourceLevelConfig!$A:$G,7,FALSE)*2,0) -> 247 | J152: 149 | K152: =SUM(I$5:I152) -> 25678
A153: 149 | B153: 21674 | C153: 840 | D153: 1001;1005 | E153: 2225;248 | F153: 1001 | G153: =ROUND(20*VLOOKUP(J153,[2]ResourceLevelConfig!$A:$G,3,FALSE)/40,0) -> 2225 | H153: 1005 | I153: =ROUND(VLOOKUP(J153-1,[2]ResourceLevelConfig!$A:$G,7,FALSE)*2,0) -> 248 | J153: 150 | K153: =SUM(I$5:I153) -> 25926
A154: 150 | B154: 22476 | C154: 845 | D154: 1001;1005 | E154: 2248;249 | F154: 1001 | G154: =ROUND(20*VLOOKUP(J154,[2]ResourceLevelConfig!$A:$G,3,FALSE)/40,0) -> 2248 | H154: 1005 | I154: =ROUND(VLOOKUP(J154-1,[2]ResourceLevelConfig!$A:$G,7,FALSE)*2,0) -> 249 | J154: 151 | K154: =SUM(I$5:I154) -> 26175
A155: 151 | B155: 23308 | C155: 850 | D155: 1001;1005 | E155: 2270;250 | F155: 1001 | G155: =ROUND(20*VLOOKUP(J155,[2]ResourceLevelConfig!$A:$G,3,FALSE)/40,0) -> 2270 | H155: 1005 | I155: =ROUND(VLOOKUP(J155-1,[2]ResourceLevelConfig!$A:$G,7,FALSE)*2,0) -> 250 | J155: 152 | K155: =SUM(I$5:I155) -> 26425
A156: 152 | B156: 24170 | C156: 855 | D156: 1001;1005 | E156: 2293;251 | F156: 1001 | G156: =ROUND(20*VLOOKUP(J156,[2]ResourceLevelConfig!$A:$G,3,FALSE)/40,0) -> 2293 | H156: 1005 | I156: =ROUND(VLOOKUP(J156-1,[2]ResourceLevelConfig!$A:$G,7,FALSE)*2,0) -> 251 | J156: 153 | K156: =SUM(I$5:I156) -> 26676
A157: 153 | B157: 25064 | C157: 860 | D157: 1001;1005 | E157: 2316;252 | F157: 1001 | G157: =ROUND(20*VLOOKUP(J157,[2]ResourceLevelConfig!$A:$G,3,FALSE)/40,0) -> 2316 | H157: 1005 | I157: =ROUND(VLOOKUP(J157-1,[2]ResourceLevelConfig!$A:$G,7,FALSE)*2,0) -> 252 | J157: 154 | K157: =SUM(I$5:I157) -> 26928
A158: 154 | B158: 25991 | C158: 865 | D158: 1001;1005 | E158: 2339;253 | F158: 1001 | G158: =ROUND(20*VLOOKUP(J158,[2]ResourceLevelConfig!$A:$G,3,FALSE)/40,0) -> 2339 | H158: 1005 | I158: =ROUND(VLOOKUP(J158-1,[2]ResourceLevelConfig!$A:$G,7,FALSE)*2,0) -> 253 | J158: 155 | K158: =SUM(I$5:I158) -> 27181
A159: 155 | B159: 26953 | C159: 870 | D159: 1001;1005 | E159: 2363;254 | F159: 1001 | G159: =ROUND(20*VLOOKUP(J159,[2]ResourceLevelConfig!$A:$G,3,FALSE)/40,0) -> 2363 | H159: 1005 | I159: =ROUND(VLOOKUP(J159-1,[2]ResourceLevelConfig!$A:$G,7,FALSE)*2,0) -> 254 | J159: 156 | K159: =SUM(I$5:I159) -> 27435
A160: 156 | B160: 27950 | C160: 875 | D160: 1001;1005 | E160: 2387;255 | F160: 1001 | G160: =ROUND(20*VLOOKUP(J160,[2]ResourceLevelConfig!$A:$G,3,FALSE)/40,0) -> 2387 | H160: 1005 | I160: =ROUND(VLOOKUP(J160-1,[2]ResourceLevelConfig!$A:$G,7,FALSE)*2,0) -> 255 | J160: 157 | K160: =SUM(I$5:I160) -> 27690
A161: 157 | B161: 28984 | C161: 880 | D161: 1001;1005 | E161: 2411;256 | F161: 1001 | G161: =ROUND(20*VLOOKUP(J161,[2]ResourceLevelConfig!$A:$G,3,FALSE)/40,0) -> 2411 | H161: 1005 | I161: =ROUND(VLOOKUP(J161-1,[2]ResourceLevelConfig!$A:$G,7,FALSE)*2,0) -> 256 | J161: 158 | K161: =SUM(I$5:I161) -> 27946
A162: 158 | B162: 30056 | C162: 885 | D162: 1001;1005 | E162: 2435;257 | F162: 1001 | G162: =ROUND(20*VLOOKUP(J162,[2]ResourceLevelConfig!$A:$G,3,FALSE)/40,0) -> 2435 | H162: 1005 | I162: =ROUND(VLOOKUP(J162-1,[2]ResourceLevelConfig!$A:$G,7,FALSE)*2,0) -> 257 | J162: 159 | K162: =SUM(I$5:I162) -> 28203
A163: 159 | B163: 31168 | C163: 890 | D163: 1001;1005 | E163: 2460;258 | F163: 1001 | G163: =ROUND(20*VLOOKUP(J163,[2]ResourceLevelConfig!$A:$G,3,FALSE)/40,0) -> 2460 | H163: 1005 | I163: =ROUND(VLOOKUP(J163-1,[2]ResourceLevelConfig!$A:$G,7,FALSE)*2,0) -> 258 | J163: 160 | K163: =SUM(I$5:I163) -> 28461
A164: 160 | B164: 32321 | C164: 895 | D164: 1001;1005 | E164: 2484;259 | F164: 1001 | G164: =ROUND(20*VLOOKUP(J164,[2]ResourceLevelConfig!$A:$G,3,FALSE)/40,0) -> 2484 | H164: 1005 | I164: =ROUND(VLOOKUP(J164-1,[2]ResourceLevelConfig!$A:$G,7,FALSE)*2,0) -> 259 | J164: 161 | K164: =SUM(I$5:I164) -> 28720
A165: 161 | B165: 33517 | C165: 900 | D165: 1001;1005 | E165: 2509;260 | F165: 1001 | G165: =ROUND(20*VLOOKUP(J165,[2]ResourceLevelConfig!$A:$G,3,FALSE)/40,0) -> 2509 | H165: 1005 | I165: =ROUND(VLOOKUP(J165-1,[2]ResourceLevelConfig!$A:$G,7,FALSE)*2,0) -> 260 | J165: 162 | K165: =SUM(I$5:I165) -> 28980
A166: 162 | B166: 34757 | C166: 905 | D166: 1001;1005 | E166: 2535;261 | F166: 1001 | G166: =ROUND(20*VLOOKUP(J166,[2]ResourceLevelConfig!$A:$G,3,FALSE)/40,0) -> 2535 | H166: 1005 | I166: =ROUND(VLOOKUP(J166-1,[2]ResourceLevelConfig!$A:$G,7,FALSE)*2,0) -> 261 | J166: 163 | K166: =SUM(I$5:I166) -> 29241
A167: 163 | B167: 36043 | C167: 910 | D167: 1001;1005 | E167: 2560;262 | F167: 1001 | G167: =ROUND(20*VLOOKUP(J167,[2]ResourceLevelConfig!$A:$G,3,FALSE)/40,0) -> 2560 | H167: 1005 | I167: =ROUND(VLOOKUP(J167-1,[2]ResourceLevelConfig!$A:$G,7,FALSE)*2,0) -> 262 | J167: 164 | K167: =SUM(I$5:I167) -> 29503
A168: 164 | B168: 37377 | C168: 915 | D168: 1001;1005 | E168: 2586;263 | F168: 1001 | G168: =ROUND(20*VLOOKUP(J168,[2]ResourceLevelConfig!$A:$G,3,FALSE)/40,0) -> 2586 | H168: 1005 | I168: =ROUND(VLOOKUP(J168-1,[2]ResourceLevelConfig!$A:$G,7,FALSE)*2,0) -> 263 | J168: 165 | K168: =SUM(I$5:I168) -> 29766
A169: 165 | B169: 38760 | C169: 920 | D169: 1001;1005 | E169: 2612;264 | F169: 1001 | G169: =ROUND(20*VLOOKUP(J169,[2]ResourceLevelConfig!$A:$G,3,FALSE)/40,0) -> 2612 | H169: 1005 | I169: =ROUND(VLOOKUP(J169-1,[2]ResourceLevelConfig!$A:$G,7,FALSE)*2,0) -> 264 | J169: 166 | K169: =SUM(I$5:I169) -> 30030
A170: 166 | B170: 40194 | C170: 925 | D170: 1001;1005 | E170: 2638;265 | F170: 1001 | G170: =ROUND(20*VLOOKUP(J170,[2]ResourceLevelConfig!$A:$G,3,FALSE)/40,0) -> 2638 | H170: 1005 | I170: =ROUND(VLOOKUP(J170-1,[2]ResourceLevelConfig!$A:$G,7,FALSE)*2,0) -> 265 | J170: 167 | K170: =SUM(I$5:I170) -> 30295
A171: 167 | B171: 41681 | C171: 930 | D171: 1001;1005 | E171: 2665;266 | F171: 1001 | G171: =ROUND(20*VLOOKUP(J171,[2]ResourceLevelConfig!$A:$G,3,FALSE)/40,0) -> 2665 | H171: 1005 | I171: =ROUND(VLOOKUP(J171-1,[2]ResourceLevelConfig!$A:$G,7,FALSE)*2,0) -> 266 | J171: 168 | K171: =SUM(I$5:I171) -> 30561
A172: 168 | B172: 43223 | C172: 935 | D172: 1001;1005 | E172: 2692;267 | F172: 1001 | G172: =ROUND(20*VLOOKUP(J172,[2]ResourceLevelConfig!$A:$G,3,FALSE)/40,0) -> 2692 | H172: 1005 | I172: =ROUND(VLOOKUP(J172-1,[2]ResourceLevelConfig!$A:$G,7,FALSE)*2,0) -> 267 | J172: 169 | K172: =SUM(I$5:I172) -> 30828
A173: 169 | B173: 44822 | C173: 940 | D173: 1001;1005 | E173: 2719;268 | F173: 1001 | G173: =ROUND(20*VLOOKUP(J173,[2]ResourceLevelConfig!$A:$G,3,FALSE)/40,0) -> 2719 | H173: 1005 | I173: =ROUND(VLOOKUP(J173-1,[2]ResourceLevelConfig!$A:$G,7,FALSE)*2,0) -> 268 | J173: 170 | K173: =SUM(I$5:I173) -> 31096
A174: 170 | B174: 46480 | C174: 945 | D174: 1001;1005 | E174: 2746;269 | F174: 1001 | G174: =ROUND(20*VLOOKUP(J174,[2]ResourceLevelConfig!$A:$G,3,FALSE)/40,0) -> 2746 | H174: 1005 | I174: =ROUND(VLOOKUP(J174-1,[2]ResourceLevelConfig!$A:$G,7,FALSE)*2,0) -> 269 | J174: 171 | K174: =SUM(I$5:I174) -> 31365
A175: 171 | B175: 48200 | C175: 950 | D175: 1001;1005 | E175: 2774;270 | F175: 1001 | G175: =ROUND(20*VLOOKUP(J175,[2]ResourceLevelConfig!$A:$G,3,FALSE)/40,0) -> 2774 | H175: 1005 | I175: =ROUND(VLOOKUP(J175-1,[2]ResourceLevelConfig!$A:$G,7,FALSE)*2,0) -> 270 | J175: 172 | K175: =SUM(I$5:I175) -> 31635
A176: 172 | B176: 49983 | C176: 955 | D176: 1001;1005 | E176: 2802;271 | F176: 1001 | G176: =ROUND(20*VLOOKUP(J176,[2]ResourceLevelConfig!$A:$G,3,FALSE)/40,0) -> 2802 | H176: 1005 | I176: =ROUND(VLOOKUP(J176-1,[2]ResourceLevelConfig!$A:$G,7,FALSE)*2,0) -> 271 | J176: 173 | K176: =SUM(I$5:I176) -> 31906
A177: 173 | B177: 51832 | C177: 960 | D177: 1001;1005 | E177: 2830;272 | F177: 1001 | G177: =ROUND(20*VLOOKUP(J177,[2]ResourceLevelConfig!$A:$G,3,FALSE)/40,0) -> 2830 | H177: 1005 | I177: =ROUND(VLOOKUP(J177-1,[2]ResourceLevelConfig!$A:$G,7,FALSE)*2,0) -> 272 | J177: 174 | K177: =SUM(I$5:I177) -> 32178
A178: 174 | B178: 53750 | C178: 965 | D178: 1001;1005 | E178: 2858;273 | F178: 1001 | G178: =ROUND(20*VLOOKUP(J178,[2]ResourceLevelConfig!$A:$G,3,FALSE)/40,0) -> 2858 | H178: 1005 | I178: =ROUND(VLOOKUP(J178-1,[2]ResourceLevelConfig!$A:$G,7,FALSE)*2,0) -> 273 | J178: 175 | K178: =SUM(I$5:I178) -> 32451
A179: 175 | B179: 55739 | C179: 970 | D179: 1001;1005 | E179: 2887;274 | F179: 1001 | G179: =ROUND(20*VLOOKUP(J179,[2]ResourceLevelConfig!$A:$G,3,FALSE)/40,0) -> 2887 | H179: 1005 | I179: =ROUND(VLOOKUP(J179-1,[2]ResourceLevelConfig!$A:$G,7,FALSE)*2,0) -> 274 | J179: 176 | K179: =SUM(I$5:I179) -> 32725
A180: 176 | B180: 57801 | C180: 975 | D180: 1001;1005 | E180: 2916;275 | F180: 1001 | G180: =ROUND(20*VLOOKUP(J180,[2]ResourceLevelConfig!$A:$G,3,FALSE)/40,0) -> 2916 | H180: 1005 | I180: =ROUND(VLOOKUP(J180-1,[2]ResourceLevelConfig!$A:$G,7,FALSE)*2,0) -> 275 | J180: 177 | K180: =SUM(I$5:I180) -> 33000
A181: 177 | B181: 59940 | C181: 980 | D181: 1001;1005 | E181: 2946;276 | F181: 1001 | G181: =ROUND(20*VLOOKUP(J181,[2]ResourceLevelConfig!$A:$G,3,FALSE)/40,0) -> 2946 | H181: 1005 | I181: =ROUND(VLOOKUP(J181-1,[2]ResourceLevelConfig!$A:$G,7,FALSE)*2,0) -> 276 | J181: 178 | K181: =SUM(I$5:I181) -> 33276
A182: 178 | B182: 62158 | C182: 985 | D182: 1001;1005 | E182: 2975;277 | F182: 1001 | G182: =ROUND(20*VLOOKUP(J182,[2]ResourceLevelConfig!$A:$G,3,FALSE)/40,0) -> 2975 | H182: 1005 | I182: =ROUND(VLOOKUP(J182-1,[2]ResourceLevelConfig!$A:$G,7,FALSE)*2,0) -> 277 | J182: 179 | K182: =SUM(I$5:I182) -> 33553
A183: 179 | B183: 64458 | C183: 990 | D183: 1001;1005 | E183: 3005;278 | F183: 1001 | G183: =ROUND(20*VLOOKUP(J183,[2]ResourceLevelConfig!$A:$G,3,FALSE)/40,0) -> 3005 | H183: 1005 | I183: =ROUND(VLOOKUP(J183-1,[2]ResourceLevelConfig!$A:$G,7,FALSE)*2,0) -> 278 | J183: 180 | K183: =SUM(I$5:I183) -> 33831
A184: 180 | B184: 66843 | C184: 995 | D184: 1001;1005 | E184: 3036;279 | F184: 1001 | G184: =ROUND(20*VLOOKUP(J184,[2]ResourceLevelConfig!$A:$G,3,FALSE)/40,0) -> 3036 | H184: 1005 | I184: =ROUND(VLOOKUP(J184-1,[2]ResourceLevelConfig!$A:$G,7,FALSE)*2,0) -> 279 | J184: 181 | K184: =SUM(I$5:I184) -> 34110
A185: 181 | B185: 69316 | C185: 1000 | D185: 1001;1005 | E185: 3066;280 | F185: 1001 | G185: =ROUND(20*VLOOKUP(J185,[2]ResourceLevelConfig!$A:$G,3,FALSE)/40,0) -> 3066 | H185: 1005 | I185: =ROUND(VLOOKUP(J185-1,[2]ResourceLevelConfig!$A:$G,7,FALSE)*2,0) -> 280 | J185: 182 | K185: =SUM(I$5:I185) -> 34390
A186: 182 | B186: 71881 | C186: 1005 | D186: 1001;1005 | E186: 3097;281 | F186: 1001 | G186: =ROUND(20*VLOOKUP(J186,[2]ResourceLevelConfig!$A:$G,3,FALSE)/40,0) -> 3097 | H186: 1005 | I186: =ROUND(VLOOKUP(J186-1,[2]ResourceLevelConfig!$A:$G,7,FALSE)*2,0) -> 281 | J186: 183 | K186: =SUM(I$5:I186) -> 34671
A187: 183 | B187: 74541 | C187: 1010 | D187: 1001;1005 | E187: 3128;282 | F187: 1001 | G187: =ROUND(20*VLOOKUP(J187,[2]ResourceLevelConfig!$A:$G,3,FALSE)/40,0) -> 3128 | H187: 1005 | I187: =ROUND(VLOOKUP(J187-1,[2]ResourceLevelConfig!$A:$G,7,FALSE)*2,0) -> 282 | J187: 184 | K187: =SUM(I$5:I187) -> 34953
A188: 184 | B188: 77299 | C188: 1015 | D188: 1001;1005 | E188: 3160;283 | F188: 1001 | G188: =ROUND(20*VLOOKUP(J188,[2]ResourceLevelConfig!$A:$G,3,FALSE)/40,0) -> 3160 | H188: 1005 | I188: =ROUND(VLOOKUP(J188-1,[2]ResourceLevelConfig!$A:$G,7,FALSE)*2,0) -> 283 | J188: 185 | K188: =SUM(I$5:I188) -> 35236
A189: 185 | B189: 80159 | C189: 1020 | D189: 1001;1005 | E189: 3191;284 | F189: 1001 | G189: =ROUND(20*VLOOKUP(J189,[2]ResourceLevelConfig!$A:$G,3,FALSE)/40,0) -> 3191 | H189: 1005 | I189: =ROUND(VLOOKUP(J189-1,[2]ResourceLevelConfig!$A:$G,7,FALSE)*2,0) -> 284 | J189: 186 | K189: =SUM(I$5:I189) -> 35520
A190: 186 | B190: 83125 | C190: 1025 | D190: 1001;1005 | E190: 3224;285 | F190: 1001 | G190: =ROUND(20*VLOOKUP(J190,[2]ResourceLevelConfig!$A:$G,3,FALSE)/40,0) -> 3224 | H190: 1005 | I190: =ROUND(VLOOKUP(J190-1,[2]ResourceLevelConfig!$A:$G,7,FALSE)*2,0) -> 285 | J190: 187 | K190: =SUM(I$5:I190) -> 35805
A191: 187 | B191: 86201 | C191: 1030 | D191: 1001;1005 | E191: 3256;286 | F191: 1001 | G191: =ROUND(20*VLOOKUP(J191,[2]ResourceLevelConfig!$A:$G,3,FALSE)/40,0) -> 3256 | H191: 1005 | I191: =ROUND(VLOOKUP(J191-1,[2]ResourceLevelConfig!$A:$G,7,FALSE)*2,0) -> 286 | J191: 188 | K191: =SUM(I$5:I191) -> 36091
A192: 188 | B192: 89390 | C192: 1035 | D192: 1001;1005 | E192: 3289;287 | F192: 1001 | G192: =ROUND(20*VLOOKUP(J192,[2]ResourceLevelConfig!$A:$G,3,FALSE)/40,0) -> 3289 | H192: 1005 | I192: =ROUND(VLOOKUP(J192-1,[2]ResourceLevelConfig!$A:$G,7,FALSE)*2,0) -> 287 | J192: 189 | K192: =SUM(I$5:I192) -> 36378
A193: 189 | B193: 92697 | C193: 1040 | D193: 1001;1005 | E193: 3322;288 | F193: 1001 | G193: =ROUND(20*VLOOKUP(J193,[2]ResourceLevelConfig!$A:$G,3,FALSE)/40,0) -> 3322 | H193: 1005 | I193: =ROUND(VLOOKUP(J193-1,[2]ResourceLevelConfig!$A:$G,7,FALSE)*2,0) -> 288 | J193: 190 | K193: =SUM(I$5:I193) -> 36666
A194: 190 | B194: 96127 | C194: 1045 | D194: =_xlfn.TEXTJOIN(";",1,F194,H194) -> 1001;1005 | E194: =_xlfn.TEXTJOIN(";",1,G194,I194) -> 3355;289 | F194: 1001 | G194: =ROUND(20*VLOOKUP(J194,[2]ResourceLevelConfig!$A:$G,3,FALSE)/40,0) -> 3355 | H194: 1005 | I194: =ROUND(VLOOKUP(J194-1,[2]ResourceLevelConfig!$A:$G,7,FALSE)*2,0) -> 289 | J194: 191 | K194: =SUM(I$5:I194) -> 36955
A195: 191 | B195: 99684 | C195: 1050 | D195: 1001;1005 | E195: 3389;290 | F195: 1001 | G195: =ROUND(20*VLOOKUP(J195,[2]ResourceLevelConfig!$A:$G,3,FALSE)/40,0) -> 3389 | H195: 1005 | I195: =ROUND(VLOOKUP(J195-1,[2]ResourceLevelConfig!$A:$G,7,FALSE)*2,0) -> 290 | J195: 192 | K195: =SUM(I$5:I195) -> 37245
A196: 192 | B196: 103372 | C196: 1055 | D196: 1001;1005 | E196: 3423;291 | F196: 1001 | G196: =ROUND(20*VLOOKUP(J196,[2]ResourceLevelConfig!$A:$G,3,FALSE)/40,0) -> 3423 | H196: 1005 | I196: =ROUND(VLOOKUP(J196-1,[2]ResourceLevelConfig!$A:$G,7,FALSE)*2,0) -> 291 | J196: 193 | K196: =SUM(I$5:I196) -> 37536
A197: 193 | B197: 107197 | C197: 1060 | D197: 1001;1005 | E197: 3458;292 | F197: 1001 | G197: =ROUND(20*VLOOKUP(J197,[2]ResourceLevelConfig!$A:$G,3,FALSE)/40,0) -> 3458 | H197: 1005 | I197: =ROUND(VLOOKUP(J197-1,[2]ResourceLevelConfig!$A:$G,7,FALSE)*2,0) -> 292 | J197: 194 | K197: =SUM(I$5:I197) -> 37828
A198: 194 | B198: 111163 | C198: 1065 | D198: 1001;1005 | E198: 3493;293 | F198: 1001 | G198: =ROUND(20*VLOOKUP(J198,[2]ResourceLevelConfig!$A:$G,3,FALSE)/40,0) -> 3493 | H198: 1005 | I198: =ROUND(VLOOKUP(J198-1,[2]ResourceLevelConfig!$A:$G,7,FALSE)*2,0) -> 293 | J198: 195 | K198: =SUM(I$5:I198) -> 38121
A199: 195 | B199: =ROUND(B198*K$4,0) -> 115276 | C199: 1070 | D199: 1001;1005 | E199: 3528;294 | F199: 1001 | G199: =ROUND(20*VLOOKUP(J199,[2]ResourceLevelConfig!$A:$G,3,FALSE)/40,0) -> 3528 | H199: 1005 | I199: =ROUND(VLOOKUP(J199-1,[2]ResourceLevelConfig!$A:$G,7,FALSE)*2,0) -> 294 | J199: 196 | K199: =SUM(I$5:I199) -> 38415
A200: 196 | B200: 119541 | C200: 1075 | D200: 1001;1005 | E200: 3563;295 | F200: 1001 | G200: =ROUND(20*VLOOKUP(J200,[2]ResourceLevelConfig!$A:$G,3,FALSE)/40,0) -> 3563 | H200: 1005 | I200: =ROUND(VLOOKUP(J200-1,[2]ResourceLevelConfig!$A:$G,7,FALSE)*2,0) -> 295 | J200: 197 | K200: =SUM(I$5:I200) -> 38710
A201: 197 | B201: 123964 | C201: 1080 | D201: 1001;1005 | E201: 3599;296 | F201: 1001 | G201: =ROUND(20*VLOOKUP(J201,[2]ResourceLevelConfig!$A:$G,3,FALSE)/40,0) -> 3599 | H201: 1005 | I201: =ROUND(VLOOKUP(J201-1,[2]ResourceLevelConfig!$A:$G,7,FALSE)*2,0) -> 296 | J201: 198 | K201: =SUM(I$5:I201) -> 39006
... 103 more rows

Sheet SkillConstant
A1: ID | C1: SkillPromoteNeedPieceNum
A2: int | C2: int[]
C4: 功法升到对应星级所需碎片数量 | D4: 2星 | E4: 3星 | F4: 4星 | G4: 5星 | H4: 6星
A5: 3 | B5: 蓝色 | C5: =_xlfn.TEXTJOIN(";",1,D5:H5) -> 9;18;30;45;60 | D5: =[3]抽卡!S10 -> 9 | E5: =[3]抽卡!T10 -> 18 | F5: =[3]抽卡!U10 -> 30 | G5: =[3]抽卡!V10 -> 45 | H5: =[3]抽卡!W10 -> 60
A6: 4 | B6: 紫色 | C6: =_xlfn.TEXTJOIN(";",1,D6:H6) -> 20;20;30;40;50 | D6: =[3]抽卡!S11 -> 20 | E6: =[3]抽卡!T11 -> 20 | F6: =[3]抽卡!U11 -> 30 | G6: =[3]抽卡!V11 -> 40 | H6: =[3]抽卡!W11 -> 50
A7: 5 | B7: 橙色 | C7: 30;30;30;30;30 | D7: =[3]抽卡!S12 -> 30 | E7: =[3]抽卡!T12 -> 30 | F7: =[3]抽卡!U12 -> 30 | G7: =[3]抽卡!V12 -> 30 | H7: =[3]抽卡!W12 -> 30

Sheet 技能设计
C1: 生命 | D1: 攻击 | E1: 防御 | G1: 金 | H1: 水 | I1: 木 | J1: 火 | K1: 土
B2: 星级 | C2: 101 | D2: 102 | E2: 103 | G2: 106 | H2: 107 | I2: 108 | J2: 109 | K2: 110
A3: 0星 | B3: 1 | C3: =SUMIFS(SkillConfig!AQ5:AQ10095,SkillConfig!$A5:$A10095,"<>"&"",SkillConfig!$P5:$P10095,$B3) -> 0 | D3: =SUMIFS(SkillConfig!AR5:AR10095,SkillConfig!$A5:$A10095,"<>"&"",SkillConfig!$P5:$P10095,$B3) -> 0 | E3: =SUMIFS(SkillConfig!AS5:AS10095,SkillConfig!$A5:$A10095,"<>"&"",SkillConfig!$P5:$P10095,$B3) -> 0 | G3: =SUMIFS(SkillConfig!AT5:AT10095,SkillConfig!$A5:$A10095,"<>"&"",SkillConfig!$P5:$P10095,$B3) -> 0 | H3: =SUMIFS(SkillConfig!AU5:AU10095,SkillConfig!$A5:$A10095,"<>"&"",SkillConfig!$P5:$P10095,$B3) -> 0 | I3: =SUMIFS(SkillConfig!AV5:AV10095,SkillConfig!$A5:$A10095,"<>"&"",SkillConfig!$P5:$P10095,$B3) -> 0 | J3: =SUMIFS(SkillConfig!AW5:AW10095,SkillConfig!$A5:$A10095,"<>"&"",SkillConfig!$P5:$P10095,$B3) -> 0 | K3: =SUMIFS(SkillConfig!AX5:AX10095,SkillConfig!$A5:$A10095,"<>"&"",SkillConfig!$P5:$P10095,$B3) -> 0
A4: 1星 | B4: 2 | C4: =SUMIFS(SkillConfig!AQ6:AQ10096,SkillConfig!$A6:$A10096,"<>"&"",SkillConfig!$P6:$P10096,$B4) -> 30 | D4: =SUMIFS(SkillConfig!AR6:AR10096,SkillConfig!$A6:$A10096,"<>"&"",SkillConfig!$P6:$P10096,$B4) -> 44 | E4: =SUMIFS(SkillConfig!AS6:AS10096,SkillConfig!$A6:$A10096,"<>"&"",SkillConfig!$P6:$P10096,$B4) -> 33 | G4: =SUMIFS(SkillConfig!AT6:AT10096,SkillConfig!$A6:$A10096,"<>"&"",SkillConfig!$P6:$P10096,$B4) -> 5 | H4: =SUMIFS(SkillConfig!AU6:AU10096,SkillConfig!$A6:$A10096,"<>"&"",SkillConfig!$P6:$P10096,$B4) -> 0 | I4: =SUMIFS(SkillConfig!AV6:AV10096,SkillConfig!$A6:$A10096,"<>"&"",SkillConfig!$P6:$P10096,$B4) -> 5 | J4: =SUMIFS(SkillConfig!AW6:AW10096,SkillConfig!$A6:$A10096,"<>"&"",SkillConfig!$P6:$P10096,$B4) -> 5 | K4: =SUMIFS(SkillConfig!AX6:AX10096,SkillConfig!$A6:$A10096,"<>"&"",SkillConfig!$P6:$P10096,$B4) -> 0
A5: 2星 | B5: 3 | C5: =SUMIFS(SkillConfig!AQ7:AQ10097,SkillConfig!$A7:$A10097,"<>"&"",SkillConfig!$P7:$P10097,$B5) -> 95 | D5: =SUMIFS(SkillConfig!AR7:AR10097,SkillConfig!$A7:$A10097,"<>"&"",SkillConfig!$P7:$P10097,$B5) -> 103 | E5: =SUMIFS(SkillConfig!AS7:AS10097,SkillConfig!$A7:$A10097,"<>"&"",SkillConfig!$P7:$P10097,$B5) -> 96 | G5: =SUMIFS(SkillConfig!AT7:AT10097,SkillConfig!$A7:$A10097,"<>"&"",SkillConfig!$P7:$P10097,$B5) -> 5 | H5: =SUMIFS(SkillConfig!AU7:AU10097,SkillConfig!$A7:$A10097,"<>"&"",SkillConfig!$P7:$P10097,$B5) -> 5 | I5: =SUMIFS(SkillConfig!AV7:AV10097,SkillConfig!$A7:$A10097,"<>"&"",SkillConfig!$P7:$P10097,$B5) -> 10 | J5: =SUMIFS(SkillConfig!AW7:AW10097,SkillConfig!$A7:$A10097,"<>"&"",SkillConfig!$P7:$P10097,$B5) -> 10 | K5: =SUMIFS(SkillConfig!AX7:AX10097,SkillConfig!$A7:$A10097,"<>"&"",SkillConfig!$P7:$P10097,$B5) -> 5
A6: 3星 | B6: 4 | C6: =SUMIFS(SkillConfig!AQ8:AQ10098,SkillConfig!$A8:$A10098,"<>"&"",SkillConfig!$P8:$P10098,$B6) -> 130 | D6: =SUMIFS(SkillConfig!AR8:AR10098,SkillConfig!$A8:$A10098,"<>"&"",SkillConfig!$P8:$P10098,$B6) -> 157 | E6: =SUMIFS(SkillConfig!AS8:AS10098,SkillConfig!$A8:$A10098,"<>"&"",SkillConfig!$P8:$P10098,$B6) -> 129 | G6: =SUMIFS(SkillConfig!AT8:AT10098,SkillConfig!$A8:$A10098,"<>"&"",SkillConfig!$P8:$P10098,$B6) -> 10 | H6: =SUMIFS(SkillConfig!AU8:AU10098,SkillConfig!$A8:$A10098,"<>"&"",SkillConfig!$P8:$P10098,$B6) -> 5 | I6: =SUMIFS(SkillConfig!AV8:AV10098,SkillConfig!$A8:$A10098,"<>"&"",SkillConfig!$P8:$P10098,$B6) -> 10 | J6: =SUMIFS(SkillConfig!AW8:AW10098,SkillConfig!$A8:$A10098,"<>"&"",SkillConfig!$P8:$P10098,$B6) -> 10 | K6: =SUMIFS(SkillConfig!AX8:AX10098,SkillConfig!$A8:$A10098,"<>"&"",SkillConfig!$P8:$P10098,$B6) -> 5
A7: 4星 | B7: 5 | C7: =SUMIFS(SkillConfig!AQ9:AQ10099,SkillConfig!$A9:$A10099,"<>"&"",SkillConfig!$P9:$P10099,$B7) -> 195 | D7: =SUMIFS(SkillConfig!AR9:AR10099,SkillConfig!$A9:$A10099,"<>"&"",SkillConfig!$P9:$P10099,$B7) -> 216 | E7: =SUMIFS(SkillConfig!AS9:AS10099,SkillConfig!$A9:$A10099,"<>"&"",SkillConfig!$P9:$P10099,$B7) -> 187 | G7: =SUMIFS(SkillConfig!AT9:AT10099,SkillConfig!$A9:$A10099,"<>"&"",SkillConfig!$P9:$P10099,$B7) -> 10 | H7: =SUMIFS(SkillConfig!AU9:AU10099,SkillConfig!$A9:$A10099,"<>"&"",SkillConfig!$P9:$P10099,$B7) -> 10 | I7: =SUMIFS(SkillConfig!AV9:AV10099,SkillConfig!$A9:$A10099,"<>"&"",SkillConfig!$P9:$P10099,$B7) -> 20 | J7: =SUMIFS(SkillConfig!AW9:AW10099,SkillConfig!$A9:$A10099,"<>"&"",SkillConfig!$P9:$P10099,$B7) -> 20 | K7: =SUMIFS(SkillConfig!AX9:AX10099,SkillConfig!$A9:$A10099,"<>"&"",SkillConfig!$P9:$P10099,$B7) -> 10
A8: 5星 | B8: 6 | C8: =SUMIFS(SkillConfig!AQ10:AQ10100,SkillConfig!$A10:$A10100,"<>"&"",SkillConfig!$P10:$P10100,$B8) -> 210 | D8: =SUMIFS(SkillConfig!AR10:AR10100,SkillConfig!$A10:$A10100,"<>"&"",SkillConfig!$P10:$P10100,$B8) -> 236 | E8: =SUMIFS(SkillConfig!AS10:AS10100,SkillConfig!$A10:$A10100,"<>"&"",SkillConfig!$P10:$P10100,$B8) -> 202 | G8: =SUMIFS(SkillConfig!AT10:AT10100,SkillConfig!$A10:$A10100,"<>"&"",SkillConfig!$P10:$P10100,$B8) -> 10 | H8: =SUMIFS(SkillConfig!AU10:AU10100,SkillConfig!$A10:$A10100,"<>"&"",SkillConfig!$P10:$P10100,$B8) -> 10 | I8: =SUMIFS(SkillConfig!AV10:AV10100,SkillConfig!$A10:$A10100,"<>"&"",SkillConfig!$P10:$P10100,$B8) -> 20 | J8: =SUMIFS(SkillConfig!AW10:AW10100,SkillConfig!$A10:$A10100,"<>"&"",SkillConfig!$P10:$P10100,$B8) -> 20 | K8: =SUMIFS(SkillConfig!AX10:AX10100,SkillConfig!$A10:$A10100,"<>"&"",SkillConfig!$P10:$P10100,$B8) -> 10
Z18: 金 | AA18: 高速，低伤害
M19: 20 | V19: 血祭神通 | W19: 为所有流血状态附加上血祭， 流血带来的伤害会充能血祭，充能满后 对敌人照成大量伤害 | AA19: 流血
V20: 金煞决 | W20: 前方功法对敌人照成伤害时额外附加一层流血 | AA20: 放血
V24: 毒瘴领域 | W24: 前方功法在击中目标时，额外施加 一层毒，对流血中的目标额外施加一层 | Z24: 木 | AA24: 高范围，高异常伤害
V25: 毒爆 | W25: 后方功法击中目标后让目标身上 的毒气爆炸开来，对目标照成额外的20%伤害，如果范围内其敌人也有毒，则对其他敌人照成等额的伤害 | AA25: 毒
V27: 异常转移 | W27: 对目标照成的以上状态有20%概率转移到 周围的敌人身上
V29: 阴水 | W29: 后方水系功法会让目标沾染上水，如果目标身上有寒气则会让会 变为冰冻值，冰冻值满后会冰冻住敌人，敌人受到灼烧的概率下降50% | Z29: 水 | AA29: 高控
AA30: 寒气
AA31: 控制
V34: 灵油 | W34: 后方功法附加上灵气汇聚的油， 火属性功法提升30%伤害，额外获得3层灼烧 | Z34: 火 | AA34: 高爆发，高伤害
AA35: 燃烧
V39: 厚土护体 | W39: 每使用一个土系功法获得3点土系值 ，土系值达到100时获得20%防御，持续10秒，每对敌人施加一次细尘额外获得1点 | Z39: 土 | AA39: 高防
V40: 金沙 | W40: 后方功法命中目标额外施加1层土沙，命中目标后将敌人的土沙升级为金沙，效果提升20% | AA40: 加防
AA41: 减防

Sheet 异常状态效果值
A1: 流血buff效果值 | B1: 2
A2: 寒气buff转换为伤害值 | B2: 2
A3: 毒的转换值 | B3: 2
A4: 燃烧转换值 | B4: 2
A5: 细尘转换值 | B5: 1
A6: 感电转换值 | B6: 1 | G6: 功法伤害占比系数 | H6: 1
A7: 鼠疫转换值 | B7: 3
F8: SSR功法 | G8: SR功法伤害强度 | H8: R普通 | I8: 法宝伤害强度
F9: 170 | G9: 150 | H9: 150 | I9: 500
F10: 200 | G10: 170 | H10: 170 | I10: 700
F11: 230 | G11: 200 | H11: 180 | I11: 900
F12: 260 | G12: 230 | H12: 190 | I12: 1100
F13: 300 | G13: 260 | H13: 200 | I13: 1300
F14: 360 | G14: 300 | H14: 220 | I14: 1500 | L14: 天衍星辰诀 | M14: 引星辰之力入体，增强玩家体魄让后方槽位的功法无视防御性护盾（功法法宝带来的防护罩、自身护盾），
L17: 法宝秘籍 | M17: 后方槽位第一个技能在击中目前时为法宝提供1%充能
L19: 崩脉决 | M19: 前方功法照成伤害时有{0}%概率施加一层对应属性的伤势
Y20: 85 | AK20: =AI20*异常状态效果值!B1/100 -> 0
G21: s碰撞强度 | H21: 普通的碰撞强度 | L21: 两仪决 | M21: 前后方法宝如果相生则功法效果增强，（具体效果值取决于技能） | Y21: 85 | AA21: 25 | AK21: =AI21*异常状态效果值!B1/100 -> 0 | AM21: =AA21/100 -> 0.25
AK22: =AI22*异常状态效果值!B1/100 -> 0
G23: 100 | H23: =G23*0.8 -> 80 | L23: 火焰决 | M23: 每层经过火经脉时使火系功法伤害提升1%，最多叠加20层 | AK23: =AI23*异常状态效果值!B1/100 -> 0
G24: 150 | H24: 120 | AK24: =AI24*异常状态效果值!B1/100 -> 0
G25: 225 | H25: 180 | L25: 乾坤巨灵诀 | M25: 后方槽位第一个技能体型巨大化体型提升{0}%，且在对碰中强度增加{1}% | AK25: =AI25*异常状态效果值!B1/100 -> 0
G26: 337.5 | H26: 270
G27: 506.25 | H27: 405 | L27: 天风迅灵法 | M27: 前后槽位技能在催动时获得转盘加速{0}%,持续{1}秒
G28: 759.375 | H28: 607.5
L29: 太虚剑意 | M29: 后方槽位的功法在释放时额外释放一道剑气，对敌人照成100%伤害，并无视护盾类效果
L31: 青莲净体诀 | M31: 前方槽位功法在命中目标时会获得青莲之气，青莲气体达到{0}层时清除自己{1}个随机debuff,并恢复{2}%最大生命
L33: 碧霄回春术 | M33: 功法在经过木系区域时会触发生机，为角色治疗{0}生命值
L34: 血祭神通 | M34: 所有流血状态照成的伤害会转换成充能值，2圈后对全体敌人造成{0}%充能值的伤害
L36: 金煞决 | M36: 前方功法对敌人照成伤害时额施加一层流血
L38: 毒瘴领域 | M38: 前方功法击中目标时额外施加一层毒，对流血中的敌人再额外施加一层
L40: 毒爆 | M40: 后方功法击中目标后，如果目标升上有{0}层毒时对目标额外照成{1}%伤害的伤害，并对周围的敌人照成该伤害的{2}伤害
L42: 异常转移 | M42: 对目标造成的异常状态有{0}%概率转移到下一个目标，不会来回转移
L44: 阴水 | M44: 前方功法会让目标扎染上阴水。如果目标身上有寒气则会将阴水转换为冰冻值(冰冻值到达一定程度会冰冻敌人)
L46: 灵油 | M46: 前方功法附加上灵气汇聚而成的可燃物质，火属性伤害提升{0}%并额外施加一层灼烧
L48: 厚土护体 | M48: 每使用一个土系功法时获得{0}点土系值，达到100时获得{1}%防御。持续{2}秒，每对敌人施加一次细尘额外获得{3}点
L50: 金沙 | M50: 前方功法命中目标时额外施加1层细尘。并将细尘的的品质提升为金沙，效果提升{0}%
